Body Name,Date Paid,Transaction Number,Amount,Supplier Name,Supplier Type,Expense Area,Cost Centre Description,Expense Type
Cambridgeshire County Council,31-Jul-20,51301410079,"-20,749.52",LGSS LAW LTD,TRADE SUPPLIER,Legal Proceedings,Legal Proceedings,External Legal Fees
Cambridgeshire County Council,03-Jul-20,51301393317,"-8,943.53",WNCT Ltd,TRADE SUPPLIER,Concessionary Fares,Concessionary Fares,Concessions - payments to transport operators
Cambridgeshire County Council,16-Jul-20,51301406723,"-8,592.50",EAST CAMBRIDGESHIRE DISTRICT COUNCIL,OTHER PUBLIC BODIES,Corporate Offices,Sutton Children's Centre,Business rates
Cambridgeshire County Council,29-Jul-20,51301410515,"-8,225.98",KISIMUL SCHOOL,CARE ESTABLISHMENT,LD - Hunts Locality - Cost of Care,LD - Huntingdonshire - Special Needs,Residential Care
Cambridgeshire County Council,10-Jul-20,51301393900,"-5,977.12",AGE CONCERN CAMBRIDGESHIRE,CHARITY,OP - Hunts Locality - Cost of Care,Hunts OP Team - Care,Day Care
Cambridgeshire County Council,24-Jul-20,53300025811,"-5,489.07",HMRC - PAYE,OTHER PUBLIC BODIES,Financing items,Additional Pension Contribution,Pay
Cambridgeshire County Council,24-Jul-20,51301409783,"-5,318.43",AVICAN SUPPORT LTD,CARE ESTABLISHMENT,LAC Placements,Placements - 16+,Agency Placements - In County
Cambridgeshire County Council,08-Jul-20,51301399793,"-5,000.00",ELTISLEY MANOR (PSYCARE LTD),CARE ESTABLISHMENT,Strategic Management - Adults,Adults Assistant Director,Nursing Care
Cambridgeshire County Council,08-Jul-20,51301399793,"-5,000.00",ELTISLEY MANOR (PSYCARE LTD),CARE ESTABLISHMENT,Strategic Management - Adults,Adults Assistant Director,Nursing Care
Cambridgeshire County Council,08-Jul-20,51301399793,"-5,000.00",ELTISLEY MANOR (PSYCARE LTD),CARE ESTABLISHMENT,Strategic Management - Adults,Adults Assistant Director,Nursing Care
Cambridgeshire County Council,08-Jul-20,51301399793,"-5,000.00",ELTISLEY MANOR (PSYCARE LTD),CARE ESTABLISHMENT,Strategic Management - Adults,Adults Assistant Director,Nursing Care
Cambridgeshire County Council,08-Jul-20,51301399793,"-5,000.00",ELTISLEY MANOR (PSYCARE LTD),CARE ESTABLISHMENT,Strategic Management - Adults,Adults Assistant Director,Nursing Care
Cambridgeshire County Council,08-Jul-20,51301399793,"-5,000.00",ELTISLEY MANOR (PSYCARE LTD),CARE ESTABLISHMENT,Strategic Management - Adults,Adults Assistant Director,Nursing Care
Cambridgeshire County Council,08-Jul-20,51301399793,"-5,000.00",ELTISLEY MANOR (PSYCARE LTD),CARE ESTABLISHMENT,Strategic Management - Adults,Adults Assistant Director,Nursing Care
Cambridgeshire County Council,08-Jul-20,51301399793,"-5,000.00",ELTISLEY MANOR (PSYCARE LTD),CARE ESTABLISHMENT,Strategic Management - Adults,Adults Assistant Director,Nursing Care
Cambridgeshire County Council,08-Jul-20,51301399793,"-5,000.00",ELTISLEY MANOR (PSYCARE LTD),CARE ESTABLISHMENT,Strategic Management - Adults,Adults Assistant Director,Nursing Care
Cambridgeshire County Council,08-Jul-20,51301399793,"-5,000.00",ELTISLEY MANOR (PSYCARE LTD),CARE ESTABLISHMENT,Strategic Management - Adults,Adults Assistant Director,Nursing Care
Cambridgeshire County Council,08-Jul-20,51301399793,"-5,000.00",ELTISLEY MANOR (PSYCARE LTD),CARE ESTABLISHMENT,Strategic Management - Adults,Adults Assistant Director,Nursing Care
Cambridgeshire County Council,08-Jul-20,51301399793,"-5,000.00",ELTISLEY MANOR (PSYCARE LTD),CARE ESTABLISHMENT,Strategic Management - Adults,Adults Assistant Director,Nursing Care
Cambridgeshire County Council,08-Jul-20,51301399793,"-5,000.00",ELTISLEY MANOR (PSYCARE LTD),CARE ESTABLISHMENT,Strategic Management - Adults,Adults Assistant Director,Nursing Care
Cambridgeshire County Council,08-Jul-20,51301399793,"-5,000.00",ELTISLEY MANOR (PSYCARE LTD),CARE ESTABLISHMENT,Strategic Management - Adults,Adults Assistant Director,Nursing Care
Cambridgeshire County Council,08-Jul-20,51301399793,"-5,000.00",ELTISLEY MANOR (PSYCARE LTD),CARE ESTABLISHMENT,Strategic Management - Adults,Adults Assistant Director,Nursing Care
Cambridgeshire County Council,08-Jul-20,51301399793,"-5,000.00",ELTISLEY MANOR (PSYCARE LTD),CARE ESTABLISHMENT,Strategic Management - Adults,Adults Assistant Director,Nursing Care
Cambridgeshire County Council,16-Jul-20,51301406724,"-4,878.90",EAST CAMBRIDGESHIRE DISTRICT COUNCIL,OTHER PUBLIC BODIES,Corporate Offices,Sutton Children's Centre,Business rates
Cambridgeshire County Council,28-Jul-20,51301410199,"-4,619.00",Florinee Homes Ltd,CARE ESTABLISHMENT,LAC Placements,Placements - supported accommodation,Agency Placements - In County
Cambridgeshire County Council,08-Jul-20,51301403783,"-4,356.66",GLENHOLME HEALTHCARE LTD,CARE ESTABLISHMENT,LD - Young Adults Team,LD - Young Adults - Care,Residential Care
Cambridgeshire County Council,08-Jul-20,51301403783,"-4,356.66",GLENHOLME HEALTHCARE LTD,CARE ESTABLISHMENT,LD - Young Adults Team,LD - Young Adults - Care,Residential Care
Cambridgeshire County Council,08-Jul-20,51301403783,"-4,356.66",GLENHOLME HEALTHCARE LTD,CARE ESTABLISHMENT,LD - Young Adults Team,LD - Young Adults - Care,Residential Care
Cambridgeshire County Council,08-Jul-20,51301403783,"-4,356.66",GLENHOLME HEALTHCARE LTD,CARE ESTABLISHMENT,LD - Young Adults Team,LD - Young Adults - Care,Residential Care
Cambridgeshire County Council,08-Jul-20,51301403783,"-4,356.66",GLENHOLME HEALTHCARE LTD,CARE ESTABLISHMENT,LD - Young Adults Team,LD - Young Adults - Care,Residential Care
Cambridgeshire County Council,08-Jul-20,51301402311,"-4,317.00",WESTMINSTER HOMECARE LIMITED,CARE ESTABLISHMENT,OP - Hunts Locality - Cost of Care,Hunts OP Team - Care,Domiciliary Care
Cambridgeshire County Council,08-Jul-20,51301399793,"-4,285.71",ELTISLEY MANOR (PSYCARE LTD),CARE ESTABLISHMENT,Strategic Management - Adults,Adults Assistant Director,Nursing Care
Cambridgeshire County Council,13-Jul-20,51301405702,"-4,221.26",KISIMUL SCHOOL,CARE ESTABLISHMENT,SEND High Needs Top Up,SEND Specialist Services-High needs top-up-Post 16,Independent School Placements
Cambridgeshire County Council,13-Jul-20,51301395254,"-4,052.40",JOHNSONS 1871 LTD,TRADE SUPPLIER,Shire Hall Relocation,Shire Hall Relocation,"Fixtures, Fittings and Furnishings"
Cambridgeshire County Council,08-Jul-20,51301402167,"-3,689.09",SENSE NATIONAL DEAF & BLIND,CARE ESTABLISHMENT,LD - Fenland Locality - Cost of Care,LD - Fenland  - Care,Residential Care
Cambridgeshire County Council,08-Jul-20,51301402167,"-3,689.09",SENSE NATIONAL DEAF & BLIND,CARE ESTABLISHMENT,LD - Fenland Locality - Cost of Care,LD - Fenland  - Care,Residential Care
Cambridgeshire County Council,08-Jul-20,51301402167,"-3,689.09",SENSE NATIONAL DEAF & BLIND,CARE ESTABLISHMENT,LD - Fenland Locality - Cost of Care,LD - Fenland  - Care,Residential Care
Cambridgeshire County Council,08-Jul-20,51301402167,"-3,689.09",SENSE NATIONAL DEAF & BLIND,CARE ESTABLISHMENT,LD - Fenland Locality - Cost of Care,LD - Fenland  - Care,Residential Care
Cambridgeshire County Council,08-Jul-20,51301402167,"-3,689.09",SENSE NATIONAL DEAF & BLIND,CARE ESTABLISHMENT,LD - Fenland Locality - Cost of Care,LD - Fenland  - Care,Residential Care
Cambridgeshire County Council,08-Jul-20,51301402167,"-3,689.09",SENSE NATIONAL DEAF & BLIND,CARE ESTABLISHMENT,LD - Fenland Locality - Cost of Care,LD - Fenland  - Care,Residential Care
Cambridgeshire County Council,08-Jul-20,51301402167,"-3,689.09",SENSE NATIONAL DEAF & BLIND,CARE ESTABLISHMENT,LD - Fenland Locality - Cost of Care,LD - Fenland  - Care,Residential Care
Cambridgeshire County Council,08-Jul-20,51301402167,"-3,689.09",SENSE NATIONAL DEAF & BLIND,CARE ESTABLISHMENT,LD - Fenland Locality - Cost of Care,LD - Fenland  - Care,Residential Care
Cambridgeshire County Council,08-Jul-20,51301402167,"-3,689.09",SENSE NATIONAL DEAF & BLIND,CARE ESTABLISHMENT,LD - Fenland Locality - Cost of Care,LD - Fenland  - Care,Residential Care
Cambridgeshire County Council,08-Jul-20,51301402167,"-3,689.09",SENSE NATIONAL DEAF & BLIND,CARE ESTABLISHMENT,LD - Fenland Locality - Cost of Care,LD - Fenland  - Care,Residential Care
Cambridgeshire County Council,08-Jul-20,51301402167,"-3,689.09",SENSE NATIONAL DEAF & BLIND,CARE ESTABLISHMENT,LD - Fenland Locality - Cost of Care,LD - Fenland  - Care,Residential Care
Cambridgeshire County Council,08-Jul-20,51301402167,"-3,689.09",SENSE NATIONAL DEAF & BLIND,CARE ESTABLISHMENT,LD - Fenland Locality - Cost of Care,LD - Fenland  - Care,Residential Care
Cambridgeshire County Council,08-Jul-20,51301402167,"-3,689.09",SENSE NATIONAL DEAF & BLIND,CARE ESTABLISHMENT,LD - Fenland Locality - Cost of Care,LD - Fenland  - Care,Residential Care
Cambridgeshire County Council,08-Jul-20,51301402167,"-3,689.09",SENSE NATIONAL DEAF & BLIND,CARE ESTABLISHMENT,LD - Fenland Locality - Cost of Care,LD - Fenland  - Care,Residential Care
Cambridgeshire County Council,08-Jul-20,51301402167,"-3,689.09",SENSE NATIONAL DEAF & BLIND,CARE ESTABLISHMENT,LD - Fenland Locality - Cost of Care,LD - Fenland  - Care,Residential Care
Cambridgeshire County Council,08-Jul-20,51301402167,"-3,689.09",SENSE NATIONAL DEAF & BLIND,CARE ESTABLISHMENT,LD - Fenland Locality - Cost of Care,LD - Fenland  - Care,Residential Care
Cambridgeshire County Council,08-Jul-20,51301402167,"-3,689.09",SENSE NATIONAL DEAF & BLIND,CARE ESTABLISHMENT,LD - Fenland Locality - Cost of Care,LD - Fenland  - Care,Residential Care
Cambridgeshire County Council,08-Jul-20,51301402167,"-3,689.09",SENSE NATIONAL DEAF & BLIND,CARE ESTABLISHMENT,LD - Fenland Locality - Cost of Care,LD - Fenland  - Care,Residential Care
Cambridgeshire County Council,08-Jul-20,51301402167,"-3,689.09",SENSE NATIONAL DEAF & BLIND,CARE ESTABLISHMENT,LD - Fenland Locality - Cost of Care,LD - Fenland  - Care,Residential Care
Cambridgeshire County Council,08-Jul-20,51301402167,"-3,689.09",SENSE NATIONAL DEAF & BLIND,CARE ESTABLISHMENT,LD - Fenland Locality - Cost of Care,LD - Fenland  - Care,Residential Care
Cambridgeshire County Council,08-Jul-20,51301402167,"-3,689.09",SENSE NATIONAL DEAF & BLIND,CARE ESTABLISHMENT,LD - Fenland Locality - Cost of Care,LD - Fenland  - Care,Residential Care
Cambridgeshire County Council,08-Jul-20,51301402167,"-3,689.09",SENSE NATIONAL DEAF & BLIND,CARE ESTABLISHMENT,LD - Fenland Locality - Cost of Care,LD - Fenland  - Care,Residential Care
Cambridgeshire County Council,08-Jul-20,51301402167,"-3,689.09",SENSE NATIONAL DEAF & BLIND,CARE ESTABLISHMENT,LD - Fenland Locality - Cost of Care,LD - Fenland  - Care,Residential Care
Cambridgeshire County Council,08-Jul-20,51301402167,"-3,689.09",SENSE NATIONAL DEAF & BLIND,CARE ESTABLISHMENT,LD - Fenland Locality - Cost of Care,LD - Fenland  - Care,Residential Care
Cambridgeshire County Council,08-Jul-20,51301402167,"-3,689.09",SENSE NATIONAL DEAF & BLIND,CARE ESTABLISHMENT,LD - Fenland Locality - Cost of Care,LD - Fenland  - Care,Residential Care
Cambridgeshire County Council,08-Jul-20,51301402167,"-3,689.09",SENSE NATIONAL DEAF & BLIND,CARE ESTABLISHMENT,LD - Fenland Locality - Cost of Care,LD - Fenland  - Care,Residential Care
Cambridgeshire County Council,08-Jul-20,51301402167,"-3,689.09",SENSE NATIONAL DEAF & BLIND,CARE ESTABLISHMENT,LD - Fenland Locality - Cost of Care,LD - Fenland  - Care,Residential Care
Cambridgeshire County Council,08-Jul-20,51301402167,"-3,689.09",SENSE NATIONAL DEAF & BLIND,CARE ESTABLISHMENT,LD - Fenland Locality - Cost of Care,LD - Fenland  - Care,Residential Care
Cambridgeshire County Council,08-Jul-20,51301402167,"-3,689.09",SENSE NATIONAL DEAF & BLIND,CARE ESTABLISHMENT,LD - Fenland Locality - Cost of Care,LD - Fenland  - Care,Residential Care
Cambridgeshire County Council,08-Jul-20,51301402167,"-3,689.09",SENSE NATIONAL DEAF & BLIND,CARE ESTABLISHMENT,LD - Fenland Locality - Cost of Care,LD - Fenland  - Care,Residential Care
Cambridgeshire County Council,08-Jul-20,51301402167,"-3,689.09",SENSE NATIONAL DEAF & BLIND,CARE ESTABLISHMENT,LD - Fenland Locality - Cost of Care,LD - Fenland  - Care,Residential Care
Cambridgeshire County Council,08-Jul-20,51301402167,"-3,689.09",SENSE NATIONAL DEAF & BLIND,CARE ESTABLISHMENT,LD - Fenland Locality - Cost of Care,LD - Fenland  - Care,Residential Care
Cambridgeshire County Council,08-Jul-20,51301402167,"-3,689.09",SENSE NATIONAL DEAF & BLIND,CARE ESTABLISHMENT,LD - Fenland Locality - Cost of Care,LD - Fenland  - Care,Residential Care
Cambridgeshire County Council,08-Jul-20,51301402167,"-3,689.09",SENSE NATIONAL DEAF & BLIND,CARE ESTABLISHMENT,LD - Fenland Locality - Cost of Care,LD - Fenland  - Care,Residential Care
Cambridgeshire County Council,08-Jul-20,51301402167,"-3,689.09",SENSE NATIONAL DEAF & BLIND,CARE ESTABLISHMENT,LD - Fenland Locality - Cost of Care,LD - Fenland  - Care,Residential Care
Cambridgeshire County Council,08-Jul-20,51301402167,"-3,689.09",SENSE NATIONAL DEAF & BLIND,CARE ESTABLISHMENT,LD - Fenland Locality - Cost of Care,LD - Fenland  - Care,Residential Care
Cambridgeshire County Council,08-Jul-20,51301402167,"-3,689.09",SENSE NATIONAL DEAF & BLIND,CARE ESTABLISHMENT,LD - Fenland Locality - Cost of Care,LD - Fenland  - Care,Residential Care
Cambridgeshire County Council,08-Jul-20,51301402167,"-3,689.09",SENSE NATIONAL DEAF & BLIND,CARE ESTABLISHMENT,LD - Fenland Locality - Cost of Care,LD - Fenland  - Care,Residential Care
Cambridgeshire County Council,08-Jul-20,51301402167,"-3,689.09",SENSE NATIONAL DEAF & BLIND,CARE ESTABLISHMENT,LD - Fenland Locality - Cost of Care,LD - Fenland  - Care,Residential Care
Cambridgeshire County Council,08-Jul-20,51301402167,"-3,689.09",SENSE NATIONAL DEAF & BLIND,CARE ESTABLISHMENT,LD - Fenland Locality - Cost of Care,LD - Fenland  - Care,Residential Care
Cambridgeshire County Council,08-Jul-20,51301402167,"-3,689.09",SENSE NATIONAL DEAF & BLIND,CARE ESTABLISHMENT,LD - Fenland Locality - Cost of Care,LD - Fenland  - Care,Residential Care
Cambridgeshire County Council,08-Jul-20,51301402167,"-3,689.09",SENSE NATIONAL DEAF & BLIND,CARE ESTABLISHMENT,LD - Fenland Locality - Cost of Care,LD - Fenland  - Care,Residential Care
Cambridgeshire County Council,08-Jul-20,51301402167,"-3,647.87",SENSE NATIONAL DEAF & BLIND,CARE ESTABLISHMENT,LD - Fenland Locality - Cost of Care,LD - Fenland  - Care,Residential Care
Cambridgeshire County Council,08-Jul-20,51301403374,"-3,541.23",Redacted Personal Data,SERVICE USER,LD - South Locality - Cost of Care,LD - South Cambs - Special Needs,Direct Payments
Cambridgeshire County Council,08-Jul-20,51301403374,"-3,541.23",Redacted Personal Data,SERVICE USER,LD - South Locality - Cost of Care,LD - South Cambs - Special Needs,Direct Payments
Cambridgeshire County Council,08-Jul-20,51301403374,"-3,541.23",Redacted Personal Data,SERVICE USER,LD - South Locality - Cost of Care,LD - South Cambs - Special Needs,Direct Payments
Cambridgeshire County Council,08-Jul-20,51301398645,"-3,480.82",BETTER HEALTHCARE PETERBOROUGH,CARE ESTABLISHMENT,Physical Disablity - Cost of Care,Countywide PD Service - Care,Domiciliary Care
Cambridgeshire County Council,08-Jul-20,51301399433,"-3,265.35",CARETECH COMMUNITY SERVICES,CARE ESTABLISHMENT,LD - Hunts Locality - Cost of Care,LD - Huntingdonshire - Care,Residential Care
Cambridgeshire County Council,08-Jul-20,51301399433,"-3,265.35",CARETECH COMMUNITY SERVICES,CARE ESTABLISHMENT,LD - Hunts Locality - Cost of Care,LD - Huntingdonshire - Care,Residential Care
Cambridgeshire County Council,08-Jul-20,51301399433,"-3,265.35",CARETECH COMMUNITY SERVICES,CARE ESTABLISHMENT,LD - Hunts Locality - Cost of Care,LD - Huntingdonshire - Care,Residential Care
Cambridgeshire County Council,08-Jul-20,51301399433,"-3,265.35",CARETECH COMMUNITY SERVICES,CARE ESTABLISHMENT,LD - Hunts Locality - Cost of Care,LD - Huntingdonshire - Care,Residential Care
Cambridgeshire County Council,08-Jul-20,51301399433,"-3,265.35",CARETECH COMMUNITY SERVICES,CARE ESTABLISHMENT,LD - Hunts Locality - Cost of Care,LD - Huntingdonshire - Care,Residential Care
Cambridgeshire County Council,08-Jul-20,51301401473,"-3,201.34",Redacted Personal Data,INDIVIDUAL,LD - South Locality - Cost of Care,LD - South Cambs - Special Needs,Direct Payments
Cambridgeshire County Council,08-Jul-20,51301401473,"-3,201.34",Redacted Personal Data,INDIVIDUAL,LD - South Locality - Cost of Care,LD - South Cambs - Special Needs,Direct Payments
Cambridgeshire County Council,08-Jul-20,51301401473,"-3,201.34",Redacted Personal Data,INDIVIDUAL,LD - South Locality - Cost of Care,LD - South Cambs - Special Needs,Direct Payments
Cambridgeshire County Council,28-Jul-20,51301393357,"-2,968.03",HUGH STEEPER LTD,TRADE SUPPLIER,Assistive Telecare & Technology,Environmental Controls,Specialist Equipment For Service Delivery
Cambridgeshire County Council,08-Jul-20,51301403102,"-2,799.38",Redacted Personal Data,SERVICE USER,LD - South Locality - Cost of Care,LD - South Cambs - Care,Direct Payments
Cambridgeshire County Council,08-Jul-20,51301403102,"-2,799.38",Redacted Personal Data,SERVICE USER,LD - South Locality - Cost of Care,LD - South Cambs - Care,Direct Payments
Cambridgeshire County Council,08-Jul-20,51301403102,"-2,799.38",Redacted Personal Data,SERVICE USER,LD - South Locality - Cost of Care,LD - South Cambs - Care,Direct Payments
Cambridgeshire County Council,08-Jul-20,51301403103,"-2,772.00",Redacted Personal Data,SERVICE USER,LD - South Locality - Cost of Care,LD - South Cambs - Care,Direct Payments
Cambridgeshire County Council,08-Jul-20,51301403103,"-2,772.00",Redacted Personal Data,SERVICE USER,LD - South Locality - Cost of Care,LD - South Cambs - Care,Direct Payments
Cambridgeshire County Council,08-Jul-20,51301403103,"-2,772.00",Redacted Personal Data,SERVICE USER,LD - South Locality - Cost of Care,LD - South Cambs - Care,Direct Payments
Cambridgeshire County Council,08-Jul-20,51301403282,"-2,589.51",Redacted Personal Data,SERVICE USER,LD - Hunts Locality - Cost of Care,LD - Huntingdonshire - Care,Direct Payments
Cambridgeshire County Council,08-Jul-20,51301403282,"-2,589.51",Redacted Personal Data,SERVICE USER,LD - Hunts Locality - Cost of Care,LD - Huntingdonshire - Care,Direct Payments
Cambridgeshire County Council,08-Jul-20,51301403282,"-2,589.51",Redacted Personal Data,SERVICE USER,LD - Hunts Locality - Cost of Care,LD - Huntingdonshire - Care,Direct Payments
Cambridgeshire County Council,08-Jul-20,51301399796,"-2,400.00",HILL HOUSE RESIDENTIAL HOME,CARE ESTABLISHMENT,Strategic Management - Adults,Adults Assistant Director,Residential Care
Cambridgeshire County Council,08-Jul-20,51301399796,"-2,400.00",HILL HOUSE RESIDENTIAL HOME,CARE ESTABLISHMENT,Strategic Management - Adults,Adults Assistant Director,Residential Care
Cambridgeshire County Council,08-Jul-20,51301399796,"-2,400.00",HILL HOUSE RESIDENTIAL HOME,CARE ESTABLISHMENT,Strategic Management - Adults,Adults Assistant Director,Residential Care
Cambridgeshire County Council,08-Jul-20,51301399796,"-2,400.00",HILL HOUSE RESIDENTIAL HOME,CARE ESTABLISHMENT,Strategic Management - Adults,Adults Assistant Director,Residential Care
Cambridgeshire County Council,08-Jul-20,51301399796,"-2,400.00",HILL HOUSE RESIDENTIAL HOME,CARE ESTABLISHMENT,Strategic Management - Adults,Adults Assistant Director,Residential Care
Cambridgeshire County Council,08-Jul-20,51301399796,"-2,400.00",HILL HOUSE RESIDENTIAL HOME,CARE ESTABLISHMENT,Strategic Management - Adults,Adults Assistant Director,Residential Care
Cambridgeshire County Council,08-Jul-20,51301399796,"-2,400.00",HILL HOUSE RESIDENTIAL HOME,CARE ESTABLISHMENT,Strategic Management - Adults,Adults Assistant Director,Residential Care
Cambridgeshire County Council,08-Jul-20,51301399796,"-2,400.00",HILL HOUSE RESIDENTIAL HOME,CARE ESTABLISHMENT,Strategic Management - Adults,Adults Assistant Director,Residential Care
Cambridgeshire County Council,08-Jul-20,51301399796,"-2,400.00",HILL HOUSE RESIDENTIAL HOME,CARE ESTABLISHMENT,Strategic Management - Adults,Adults Assistant Director,Residential Care
Cambridgeshire County Council,08-Jul-20,51301399796,"-2,400.00",HILL HOUSE RESIDENTIAL HOME,CARE ESTABLISHMENT,Strategic Management - Adults,Adults Assistant Director,Residential Care
Cambridgeshire County Council,08-Jul-20,51301399796,"-2,400.00",HILL HOUSE RESIDENTIAL HOME,CARE ESTABLISHMENT,Strategic Management - Adults,Adults Assistant Director,Residential Care
Cambridgeshire County Council,08-Jul-20,51301399796,"-2,400.00",HILL HOUSE RESIDENTIAL HOME,CARE ESTABLISHMENT,Strategic Management - Adults,Adults Assistant Director,Residential Care
Cambridgeshire County Council,08-Jul-20,51301399796,"-2,400.00",HILL HOUSE RESIDENTIAL HOME,CARE ESTABLISHMENT,Strategic Management - Adults,Adults Assistant Director,Residential Care
Cambridgeshire County Council,08-Jul-20,51301399796,"-2,400.00",HILL HOUSE RESIDENTIAL HOME,CARE ESTABLISHMENT,Strategic Management - Adults,Adults Assistant Director,Residential Care
Cambridgeshire County Council,08-Jul-20,51301399796,"-2,400.00",HILL HOUSE RESIDENTIAL HOME,CARE ESTABLISHMENT,Strategic Management - Adults,Adults Assistant Director,Residential Care
Cambridgeshire County Council,08-Jul-20,51301399796,"-2,400.00",HILL HOUSE RESIDENTIAL HOME,CARE ESTABLISHMENT,Strategic Management - Adults,Adults Assistant Director,Residential Care
Cambridgeshire County Council,08-Jul-20,51301403390,"-2,381.24",Redacted Personal Data,SERVICE USER,LD - Hunts Locality - Cost of Care,LD - Huntingdonshire - Special Needs,Direct Payments
Cambridgeshire County Council,08-Jul-20,51301403390,"-2,381.24",Redacted Personal Data,SERVICE USER,LD - Hunts Locality - Cost of Care,LD - Huntingdonshire - Special Needs,Direct Payments
Cambridgeshire County Council,08-Jul-20,51301403390,"-2,381.24",Redacted Personal Data,SERVICE USER,LD - Hunts Locality - Cost of Care,LD - Huntingdonshire - Special Needs,Direct Payments
Cambridgeshire County Council,27-Jul-20,51301410039,"-2,346.68",DAME HANNAH ROGERS TRUST,TRUST (OTHER),LD - South Locality - Cost of Care,LD - South Cambs - Care,Residential Care
Cambridgeshire County Council,27-Jul-20,51301410039,"-2,346.68",DAME HANNAH ROGERS TRUST,TRUST (OTHER),LD - South Locality - Cost of Care,LD - South Cambs - Care,Residential Care
Cambridgeshire County Council,27-Jul-20,51301410039,"-2,346.68",DAME HANNAH ROGERS TRUST,TRUST (OTHER),LD - South Locality - Cost of Care,LD - South Cambs - Care,Residential Care
Cambridgeshire County Council,27-Jul-20,51301410039,"-2,346.68",DAME HANNAH ROGERS TRUST,TRUST (OTHER),LD - South Locality - Cost of Care,LD - South Cambs - Care,Residential Care
Cambridgeshire County Council,27-Jul-20,51301410039,"-2,346.68",DAME HANNAH ROGERS TRUST,TRUST (OTHER),LD - South Locality - Cost of Care,LD - South Cambs - Care,Residential Care
Cambridgeshire County Council,27-Jul-20,51301410039,"-2,346.68",DAME HANNAH ROGERS TRUST,TRUST (OTHER),LD - South Locality - Cost of Care,LD - South Cambs - Care,Residential Care
Cambridgeshire County Council,27-Jul-20,51301410039,"-2,346.68",DAME HANNAH ROGERS TRUST,TRUST (OTHER),LD - South Locality - Cost of Care,LD - South Cambs - Care,Residential Care
Cambridgeshire County Council,27-Jul-20,51301410039,"-2,346.68",DAME HANNAH ROGERS TRUST,TRUST (OTHER),LD - South Locality - Cost of Care,LD - South Cambs - Care,Residential Care
Cambridgeshire County Council,27-Jul-20,51301410039,"-2,346.68",DAME HANNAH ROGERS TRUST,TRUST (OTHER),LD - South Locality - Cost of Care,LD - South Cambs - Care,Residential Care
Cambridgeshire County Council,27-Jul-20,51301410039,"-2,346.68",DAME HANNAH ROGERS TRUST,TRUST (OTHER),LD - South Locality - Cost of Care,LD - South Cambs - Care,Residential Care
Cambridgeshire County Council,27-Jul-20,51301410039,"-2,346.68",DAME HANNAH ROGERS TRUST,TRUST (OTHER),LD - South Locality - Cost of Care,LD - South Cambs - Care,Residential Care
Cambridgeshire County Council,27-Jul-20,51301410039,"-2,346.68",DAME HANNAH ROGERS TRUST,TRUST (OTHER),LD - South Locality - Cost of Care,LD - South Cambs - Care,Residential Care
Cambridgeshire County Council,27-Jul-20,51301410039,"-2,346.68",DAME HANNAH ROGERS TRUST,TRUST (OTHER),LD - South Locality - Cost of Care,LD - South Cambs - Care,Residential Care
Cambridgeshire County Council,27-Jul-20,51301410039,"-2,346.68",DAME HANNAH ROGERS TRUST,TRUST (OTHER),LD - South Locality - Cost of Care,LD - South Cambs - Care,Residential Care
Cambridgeshire County Council,27-Jul-20,51301410039,"-2,346.68",DAME HANNAH ROGERS TRUST,TRUST (OTHER),LD - South Locality - Cost of Care,LD - South Cambs - Care,Residential Care
Cambridgeshire County Council,27-Jul-20,51301410039,"-2,346.68",DAME HANNAH ROGERS TRUST,TRUST (OTHER),LD - South Locality - Cost of Care,LD - South Cambs - Care,Residential Care
Cambridgeshire County Council,27-Jul-20,51301410039,"-2,346.68",DAME HANNAH ROGERS TRUST,TRUST (OTHER),LD - South Locality - Cost of Care,LD - South Cambs - Care,Residential Care
Cambridgeshire County Council,27-Jul-20,51301410039,"-2,346.68",DAME HANNAH ROGERS TRUST,TRUST (OTHER),LD - South Locality - Cost of Care,LD - South Cambs - Care,Residential Care
Cambridgeshire County Council,27-Jul-20,51301410039,"-2,346.68",DAME HANNAH ROGERS TRUST,TRUST (OTHER),LD - South Locality - Cost of Care,LD - South Cambs - Care,Residential Care
Cambridgeshire County Council,27-Jul-20,51301410039,"-2,346.68",DAME HANNAH ROGERS TRUST,TRUST (OTHER),LD - South Locality - Cost of Care,LD - South Cambs - Care,Residential Care
Cambridgeshire County Council,27-Jul-20,51301410039,"-2,346.68",DAME HANNAH ROGERS TRUST,TRUST (OTHER),LD - South Locality - Cost of Care,LD - South Cambs - Care,Residential Care
Cambridgeshire County Council,27-Jul-20,51301410039,"-2,346.68",DAME HANNAH ROGERS TRUST,TRUST (OTHER),LD - South Locality - Cost of Care,LD - South Cambs - Care,Residential Care
Cambridgeshire County Council,27-Jul-20,51301410039,"-2,346.68",DAME HANNAH ROGERS TRUST,TRUST (OTHER),LD - South Locality - Cost of Care,LD - South Cambs - Care,Residential Care
Cambridgeshire County Council,27-Jul-20,51301410039,"-2,346.68",DAME HANNAH ROGERS TRUST,TRUST (OTHER),LD - South Locality - Cost of Care,LD - South Cambs - Care,Residential Care
Cambridgeshire County Council,27-Jul-20,51301410039,"-2,346.68",DAME HANNAH ROGERS TRUST,TRUST (OTHER),LD - South Locality - Cost of Care,LD - South Cambs - Care,Residential Care
Cambridgeshire County Council,27-Jul-20,51301410039,"-2,346.68",DAME HANNAH ROGERS TRUST,TRUST (OTHER),LD - South Locality - Cost of Care,LD - South Cambs - Care,Residential Care
Cambridgeshire County Council,27-Jul-20,51301410039,"-2,346.68",DAME HANNAH ROGERS TRUST,TRUST (OTHER),LD - South Locality - Cost of Care,LD - South Cambs - Care,Residential Care
Cambridgeshire County Council,27-Jul-20,51301410039,"-2,346.68",DAME HANNAH ROGERS TRUST,TRUST (OTHER),LD - South Locality - Cost of Care,LD - South Cambs - Care,Residential Care
Cambridgeshire County Council,27-Jul-20,51301410039,"-2,346.68",DAME HANNAH ROGERS TRUST,TRUST (OTHER),LD - South Locality - Cost of Care,LD - South Cambs - Care,Residential Care
Cambridgeshire County Council,27-Jul-20,51301410039,"-2,346.68",DAME HANNAH ROGERS TRUST,TRUST (OTHER),LD - South Locality - Cost of Care,LD - South Cambs - Care,Residential Care
Cambridgeshire County Council,27-Jul-20,51301410039,"-2,346.68",DAME HANNAH ROGERS TRUST,TRUST (OTHER),LD - South Locality - Cost of Care,LD - South Cambs - Care,Residential Care
Cambridgeshire County Council,27-Jul-20,51301410039,"-2,346.68",DAME HANNAH ROGERS TRUST,TRUST (OTHER),LD - South Locality - Cost of Care,LD - South Cambs - Care,Residential Care
Cambridgeshire County Council,27-Jul-20,51301410039,"-2,346.68",DAME HANNAH ROGERS TRUST,TRUST (OTHER),LD - South Locality - Cost of Care,LD - South Cambs - Care,Residential Care
Cambridgeshire County Council,27-Jul-20,51301410039,"-2,346.68",DAME HANNAH ROGERS TRUST,TRUST (OTHER),LD - South Locality - Cost of Care,LD - South Cambs - Care,Residential Care
Cambridgeshire County Council,24-Jul-20,51301380786,"-2,274.16",APS Group,COMPANY,Customer Services,Contact Centre - Operations,Specialist Supplies and Materials
Cambridgeshire County Council,08-Jul-20,51301401861,"-2,177.45",Redacted Personal Data,SERVICE USER,LD - Hunts Locality - Cost of Care,LD - Huntingdonshire - Special Needs,Direct Payments
Cambridgeshire County Council,08-Jul-20,51301401861,"-2,177.45",Redacted Personal Data,SERVICE USER,LD - Hunts Locality - Cost of Care,LD - Huntingdonshire - Special Needs,Direct Payments
Cambridgeshire County Council,08-Jul-20,51301401861,"-2,177.45",Redacted Personal Data,SERVICE USER,LD - Hunts Locality - Cost of Care,LD - Huntingdonshire - Special Needs,Direct Payments
Cambridgeshire County Council,08-Jul-20,51301403102,"-2,111.81",Redacted Personal Data,SERVICE USER,LD - South Locality - Cost of Care,LD - South Cambs - Care,Direct Payments
Cambridgeshire County Council,08-Jul-20,51301403102,"-2,111.81",Redacted Personal Data,SERVICE USER,LD - South Locality - Cost of Care,LD - South Cambs - Care,Direct Payments
Cambridgeshire County Council,08-Jul-20,51301403102,"-2,111.81",Redacted Personal Data,SERVICE USER,LD - South Locality - Cost of Care,LD - South Cambs - Care,Direct Payments
Cambridgeshire County Council,08-Jul-20,51301402105,"-2,111.34",EYNESBURY HOUSE,CARE ESTABLISHMENT,AMH - Hunts & Fens,Hunts Mental Health Team,Residential Care
Cambridgeshire County Council,08-Jul-20,51301402105,"-2,111.34",EYNESBURY HOUSE,CARE ESTABLISHMENT,AMH - Hunts & Fens,Hunts Mental Health Team,Residential Care
Cambridgeshire County Council,08-Jul-20,51301402105,"-2,111.34",EYNESBURY HOUSE,CARE ESTABLISHMENT,AMH - Hunts & Fens,Hunts Mental Health Team,Residential Care
Cambridgeshire County Council,08-Jul-20,51301402105,"-2,111.34",EYNESBURY HOUSE,CARE ESTABLISHMENT,AMH - Hunts & Fens,Hunts Mental Health Team,Residential Care
Cambridgeshire County Council,08-Jul-20,51301402105,"-2,111.34",EYNESBURY HOUSE,CARE ESTABLISHMENT,AMH - Hunts & Fens,Hunts Mental Health Team,Residential Care
Cambridgeshire County Council,08-Jul-20,51301402105,"-2,111.34",EYNESBURY HOUSE,CARE ESTABLISHMENT,AMH - Hunts & Fens,Hunts Mental Health Team,Residential Care
Cambridgeshire County Council,08-Jul-20,51301402105,"-2,111.34",EYNESBURY HOUSE,CARE ESTABLISHMENT,AMH - Hunts & Fens,Hunts Mental Health Team,Residential Care
Cambridgeshire County Council,08-Jul-20,51301402105,"-2,111.34",EYNESBURY HOUSE,CARE ESTABLISHMENT,AMH - Hunts & Fens,Hunts Mental Health Team,Residential Care
Cambridgeshire County Council,08-Jul-20,51301402105,"-2,111.34",EYNESBURY HOUSE,CARE ESTABLISHMENT,AMH - Hunts & Fens,Hunts Mental Health Team,Residential Care
Cambridgeshire County Council,08-Jul-20,51301402105,"-2,111.34",EYNESBURY HOUSE,CARE ESTABLISHMENT,AMH - Hunts & Fens,Hunts Mental Health Team,Residential Care
Cambridgeshire County Council,08-Jul-20,51301402105,"-2,111.34",EYNESBURY HOUSE,CARE ESTABLISHMENT,AMH - Hunts & Fens,Hunts Mental Health Team,Residential Care
Cambridgeshire County Council,08-Jul-20,51301402105,"-2,111.34",EYNESBURY HOUSE,CARE ESTABLISHMENT,AMH - Hunts & Fens,Hunts Mental Health Team,Residential Care
Cambridgeshire County Council,08-Jul-20,51301402947,"-2,089.25",TIGH NAVEEN (KISIMUL),CARE ESTABLISHMENT,LD - Hunts Locality - Cost of Care,LD - Huntingdonshire - Care,Supported Living
Cambridgeshire County Council,08-Jul-20,51301402947,"-2,089.25",TIGH NAVEEN (KISIMUL),CARE ESTABLISHMENT,LD - Hunts Locality - Cost of Care,LD - Huntingdonshire - Care,Supported Living
Cambridgeshire County Council,08-Jul-20,51301402947,"-2,089.25",TIGH NAVEEN (KISIMUL),CARE ESTABLISHMENT,LD - Hunts Locality - Cost of Care,LD - Huntingdonshire - Care,Supported Living
Cambridgeshire County Council,08-Jul-20,51301402947,"-2,089.25",TIGH NAVEEN (KISIMUL),CARE ESTABLISHMENT,LD - Hunts Locality - Cost of Care,LD - Huntingdonshire - Care,Supported Living
Cambridgeshire County Council,08-Jul-20,51301402947,"-2,089.25",TIGH NAVEEN (KISIMUL),CARE ESTABLISHMENT,LD - Hunts Locality - Cost of Care,LD - Huntingdonshire - Care,Supported Living
Cambridgeshire County Council,08-Jul-20,51301402947,"-2,089.25",TIGH NAVEEN (KISIMUL),CARE ESTABLISHMENT,LD - Hunts Locality - Cost of Care,LD - Huntingdonshire - Care,Supported Living
Cambridgeshire County Council,08-Jul-20,51301402947,"-2,089.25",TIGH NAVEEN (KISIMUL),CARE ESTABLISHMENT,LD - Hunts Locality - Cost of Care,LD - Huntingdonshire - Care,Supported Living
Cambridgeshire County Council,08-Jul-20,51301402947,"-2,089.25",TIGH NAVEEN (KISIMUL),CARE ESTABLISHMENT,LD - Hunts Locality - Cost of Care,LD - Huntingdonshire - Care,Supported Living
Cambridgeshire County Council,08-Jul-20,51301402947,"-2,089.25",TIGH NAVEEN (KISIMUL),CARE ESTABLISHMENT,LD - Hunts Locality - Cost of Care,LD - Huntingdonshire - Care,Supported Living
Cambridgeshire County Council,08-Jul-20,51301402947,"-2,089.25",TIGH NAVEEN (KISIMUL),CARE ESTABLISHMENT,LD - Hunts Locality - Cost of Care,LD - Huntingdonshire - Care,Supported Living
Cambridgeshire County Council,08-Jul-20,51301402947,"-2,089.25",TIGH NAVEEN (KISIMUL),CARE ESTABLISHMENT,LD - Hunts Locality - Cost of Care,LD - Huntingdonshire - Care,Supported Living
Cambridgeshire County Council,08-Jul-20,51301402947,"-2,089.25",TIGH NAVEEN (KISIMUL),CARE ESTABLISHMENT,LD - Hunts Locality - Cost of Care,LD - Huntingdonshire - Care,Supported Living
Cambridgeshire County Council,08-Jul-20,51301402947,"-2,089.25",TIGH NAVEEN (KISIMUL),CARE ESTABLISHMENT,LD - Hunts Locality - Cost of Care,LD - Huntingdonshire - Care,Supported Living
Cambridgeshire County Council,08-Jul-20,51301402947,"-2,089.25",TIGH NAVEEN (KISIMUL),CARE ESTABLISHMENT,LD - Hunts Locality - Cost of Care,LD - Huntingdonshire - Care,Supported Living
Cambridgeshire County Council,08-Jul-20,51301402947,"-2,089.25",TIGH NAVEEN (KISIMUL),CARE ESTABLISHMENT,LD - Hunts Locality - Cost of Care,LD - Huntingdonshire - Care,Supported Living
Cambridgeshire County Council,08-Jul-20,51301402947,"-2,089.25",TIGH NAVEEN (KISIMUL),CARE ESTABLISHMENT,LD - Hunts Locality - Cost of Care,LD - Huntingdonshire - Care,Supported Living
Cambridgeshire County Council,08-Jul-20,51301402947,"-2,089.25",TIGH NAVEEN (KISIMUL),CARE ESTABLISHMENT,LD - Hunts Locality - Cost of Care,LD - Huntingdonshire - Care,Supported Living
Cambridgeshire County Council,08-Jul-20,51301402947,"-2,089.25",TIGH NAVEEN (KISIMUL),CARE ESTABLISHMENT,LD - Hunts Locality - Cost of Care,LD - Huntingdonshire - Care,Supported Living
Cambridgeshire County Council,08-Jul-20,51301402947,"-2,089.25",TIGH NAVEEN (KISIMUL),CARE ESTABLISHMENT,LD - Hunts Locality - Cost of Care,LD - Huntingdonshire - Care,Supported Living
Cambridgeshire County Council,08-Jul-20,51301402947,"-2,089.25",TIGH NAVEEN (KISIMUL),CARE ESTABLISHMENT,LD - Hunts Locality - Cost of Care,LD - Huntingdonshire - Care,Supported Living
Cambridgeshire County Council,08-Jul-20,51301402947,"-2,089.25",TIGH NAVEEN (KISIMUL),CARE ESTABLISHMENT,LD - Hunts Locality - Cost of Care,LD - Huntingdonshire - Care,Supported Living
Cambridgeshire County Council,08-Jul-20,51301402947,"-2,089.25",TIGH NAVEEN (KISIMUL),CARE ESTABLISHMENT,LD - Hunts Locality - Cost of Care,LD - Huntingdonshire - Care,Supported Living
Cambridgeshire County Council,08-Jul-20,51301402947,"-2,089.25",TIGH NAVEEN (KISIMUL),CARE ESTABLISHMENT,LD - Hunts Locality - Cost of Care,LD - Huntingdonshire - Care,Supported Living
Cambridgeshire County Council,08-Jul-20,51301402947,"-2,089.25",TIGH NAVEEN (KISIMUL),CARE ESTABLISHMENT,LD - Hunts Locality - Cost of Care,LD - Huntingdonshire - Care,Supported Living
Cambridgeshire County Council,08-Jul-20,51301402947,"-2,089.25",TIGH NAVEEN (KISIMUL),CARE ESTABLISHMENT,LD - Hunts Locality - Cost of Care,LD - Huntingdonshire - Care,Supported Living
Cambridgeshire County Council,08-Jul-20,51301402947,"-2,089.25",TIGH NAVEEN (KISIMUL),CARE ESTABLISHMENT,LD - Hunts Locality - Cost of Care,LD - Huntingdonshire - Care,Supported Living
Cambridgeshire County Council,08-Jul-20,51301402947,"-2,089.25",TIGH NAVEEN (KISIMUL),CARE ESTABLISHMENT,LD - Hunts Locality - Cost of Care,LD - Huntingdonshire - Care,Supported Living
Cambridgeshire County Council,08-Jul-20,51301402947,"-2,089.25",TIGH NAVEEN (KISIMUL),CARE ESTABLISHMENT,LD - Hunts Locality - Cost of Care,LD - Huntingdonshire - Care,Supported Living
Cambridgeshire County Council,08-Jul-20,51301402947,"-2,089.25",TIGH NAVEEN (KISIMUL),CARE ESTABLISHMENT,LD - Hunts Locality - Cost of Care,LD - Huntingdonshire - Care,Supported Living
Cambridgeshire County Council,08-Jul-20,51301402947,"-2,089.25",TIGH NAVEEN (KISIMUL),CARE ESTABLISHMENT,LD - Hunts Locality - Cost of Care,LD - Huntingdonshire - Care,Supported Living
Cambridgeshire County Council,08-Jul-20,51301402947,"-2,089.25",TIGH NAVEEN (KISIMUL),CARE ESTABLISHMENT,LD - Hunts Locality - Cost of Care,LD - Huntingdonshire - Care,Supported Living
Cambridgeshire County Council,08-Jul-20,51301402947,"-2,089.25",TIGH NAVEEN (KISIMUL),CARE ESTABLISHMENT,LD - Hunts Locality - Cost of Care,LD - Huntingdonshire - Care,Supported Living
Cambridgeshire County Council,08-Jul-20,51301402947,"-2,089.25",TIGH NAVEEN (KISIMUL),CARE ESTABLISHMENT,LD - Hunts Locality - Cost of Care,LD - Huntingdonshire - Care,Supported Living
Cambridgeshire County Council,08-Jul-20,51301402947,"-2,089.25",TIGH NAVEEN (KISIMUL),CARE ESTABLISHMENT,LD - Hunts Locality - Cost of Care,LD - Huntingdonshire - Care,Supported Living
Cambridgeshire County Council,08-Jul-20,51301402947,"-2,089.25",TIGH NAVEEN (KISIMUL),CARE ESTABLISHMENT,LD - Hunts Locality - Cost of Care,LD - Huntingdonshire - Care,Supported Living
Cambridgeshire County Council,08-Jul-20,51301402947,"-2,089.25",TIGH NAVEEN (KISIMUL),CARE ESTABLISHMENT,LD - Hunts Locality - Cost of Care,LD - Huntingdonshire - Care,Supported Living
Cambridgeshire County Council,08-Jul-20,51301402947,"-2,089.25",TIGH NAVEEN (KISIMUL),CARE ESTABLISHMENT,LD - Hunts Locality - Cost of Care,LD - Huntingdonshire - Care,Supported Living
Cambridgeshire County Council,08-Jul-20,51301402947,"-2,089.25",TIGH NAVEEN (KISIMUL),CARE ESTABLISHMENT,LD - Hunts Locality - Cost of Care,LD - Huntingdonshire - Care,Supported Living
Cambridgeshire County Council,08-Jul-20,51301399796,"-2,057.14",HILL HOUSE RESIDENTIAL HOME,CARE ESTABLISHMENT,Strategic Management - Adults,Adults Assistant Director,Residential Care
Cambridgeshire County Council,08-Jul-20,51301400766,"-2,041.92",AURORA ORCHARD MANOR,CARE ESTABLISHMENT,LD - Young Adults Team,LD - Young Adults - Care,Residential Care
Cambridgeshire County Council,08-Jul-20,51301400766,"-2,041.92",AURORA ORCHARD MANOR,CARE ESTABLISHMENT,LD - Young Adults Team,LD - Young Adults - Care,Residential Care
Cambridgeshire County Council,08-Jul-20,51301400766,"-2,037.20",AURORA ORCHARD MANOR,CARE ESTABLISHMENT,LD - Young Adults Team,LD - Young Adults - Care,Residential Care
Cambridgeshire County Council,08-Jul-20,51301400766,"-2,037.20",AURORA ORCHARD MANOR,CARE ESTABLISHMENT,LD - Young Adults Team,LD - Young Adults - Care,Residential Care
Cambridgeshire County Council,08-Jul-20,51301400766,"-2,037.20",AURORA ORCHARD MANOR,CARE ESTABLISHMENT,LD - Young Adults Team,LD - Young Adults - Care,Residential Care
Cambridgeshire County Council,08-Jul-20,51301400766,"-2,037.20",AURORA ORCHARD MANOR,CARE ESTABLISHMENT,LD - Young Adults Team,LD - Young Adults - Care,Residential Care
Cambridgeshire County Council,08-Jul-20,51301400766,"-2,037.20",AURORA ORCHARD MANOR,CARE ESTABLISHMENT,LD - Young Adults Team,LD - Young Adults - Care,Residential Care
Cambridgeshire County Council,08-Jul-20,51301400766,"-2,037.20",AURORA ORCHARD MANOR,CARE ESTABLISHMENT,LD - Young Adults Team,LD - Young Adults - Care,Residential Care
Cambridgeshire County Council,08-Jul-20,51301400766,"-2,037.20",AURORA ORCHARD MANOR,CARE ESTABLISHMENT,LD - Young Adults Team,LD - Young Adults - Care,Residential Care
Cambridgeshire County Council,08-Jul-20,51301400766,"-2,037.20",AURORA ORCHARD MANOR,CARE ESTABLISHMENT,LD - Young Adults Team,LD - Young Adults - Care,Residential Care
Cambridgeshire County Council,08-Jul-20,51301400766,"-2,037.20",AURORA ORCHARD MANOR,CARE ESTABLISHMENT,LD - Young Adults Team,LD - Young Adults - Care,Residential Care
Cambridgeshire County Council,08-Jul-20,51301400766,"-2,037.20",AURORA ORCHARD MANOR,CARE ESTABLISHMENT,LD - Young Adults Team,LD - Young Adults - Care,Residential Care
Cambridgeshire County Council,08-Jul-20,51301400766,"-2,037.20",AURORA ORCHARD MANOR,CARE ESTABLISHMENT,LD - Young Adults Team,LD - Young Adults - Care,Residential Care
Cambridgeshire County Council,08-Jul-20,51301400766,"-2,037.20",AURORA ORCHARD MANOR,CARE ESTABLISHMENT,LD - Young Adults Team,LD - Young Adults - Care,Residential Care
Cambridgeshire County Council,08-Jul-20,51301400766,"-2,037.20",AURORA ORCHARD MANOR,CARE ESTABLISHMENT,LD - Young Adults Team,LD - Young Adults - Care,Residential Care
Cambridgeshire County Council,08-Jul-20,51301400766,"-2,037.20",AURORA ORCHARD MANOR,CARE ESTABLISHMENT,LD - Young Adults Team,LD - Young Adults - Care,Residential Care
Cambridgeshire County Council,08-Jul-20,51301400766,"-2,037.20",AURORA ORCHARD MANOR,CARE ESTABLISHMENT,LD - Young Adults Team,LD - Young Adults - Care,Residential Care
Cambridgeshire County Council,08-Jul-20,51301400766,"-2,037.20",AURORA ORCHARD MANOR,CARE ESTABLISHMENT,LD - Young Adults Team,LD - Young Adults - Care,Residential Care
Cambridgeshire County Council,08-Jul-20,51301400766,"-2,037.20",AURORA ORCHARD MANOR,CARE ESTABLISHMENT,LD - Young Adults Team,LD - Young Adults - Care,Residential Care
Cambridgeshire County Council,08-Jul-20,51301400766,"-2,037.20",AURORA ORCHARD MANOR,CARE ESTABLISHMENT,LD - Young Adults Team,LD - Young Adults - Care,Residential Care
Cambridgeshire County Council,08-Jul-20,51301400766,"-2,037.20",AURORA ORCHARD MANOR,CARE ESTABLISHMENT,LD - Young Adults Team,LD - Young Adults - Care,Residential Care
Cambridgeshire County Council,08-Jul-20,51301400766,"-2,037.20",AURORA ORCHARD MANOR,CARE ESTABLISHMENT,LD - Young Adults Team,LD - Young Adults - Care,Residential Care
Cambridgeshire County Council,08-Jul-20,51301400766,"-2,037.20",AURORA ORCHARD MANOR,CARE ESTABLISHMENT,LD - Young Adults Team,LD - Young Adults - Care,Residential Care
Cambridgeshire County Council,08-Jul-20,51301400766,"-2,037.20",AURORA ORCHARD MANOR,CARE ESTABLISHMENT,LD - Young Adults Team,LD - Young Adults - Care,Residential Care
Cambridgeshire County Council,08-Jul-20,51301400766,"-2,037.20",AURORA ORCHARD MANOR,CARE ESTABLISHMENT,LD - Young Adults Team,LD - Young Adults - Care,Residential Care
Cambridgeshire County Council,08-Jul-20,51301400766,"-2,037.20",AURORA ORCHARD MANOR,CARE ESTABLISHMENT,LD - Young Adults Team,LD - Young Adults - Care,Residential Care
Cambridgeshire County Council,08-Jul-20,51301400766,"-2,037.20",AURORA ORCHARD MANOR,CARE ESTABLISHMENT,LD - Young Adults Team,LD - Young Adults - Care,Residential Care
Cambridgeshire County Council,08-Jul-20,51301400766,"-2,037.20",AURORA ORCHARD MANOR,CARE ESTABLISHMENT,LD - Young Adults Team,LD - Young Adults - Care,Residential Care
Cambridgeshire County Council,08-Jul-20,51301400766,"-2,037.20",AURORA ORCHARD MANOR,CARE ESTABLISHMENT,LD - Young Adults Team,LD - Young Adults - Care,Residential Care
Cambridgeshire County Council,08-Jul-20,51301403301,"-2,031.30",Redacted Personal Data,SERVICE USER,LD - South Locality - Cost of Care,LD - South Cambs - Care,Direct Payments
Cambridgeshire County Council,08-Jul-20,51301403301,"-2,031.30",Redacted Personal Data,SERVICE USER,LD - South Locality - Cost of Care,LD - South Cambs - Care,Direct Payments
Cambridgeshire County Council,08-Jul-20,51301403301,"-2,031.30",Redacted Personal Data,SERVICE USER,LD - South Locality - Cost of Care,LD - South Cambs - Care,Direct Payments
Cambridgeshire County Council,08-Jul-20,51301403374,"-2,023.56",Redacted Personal Data,SERVICE USER,LD - South Locality - Cost of Care,LD - South Cambs - Special Needs,Direct Payments
Cambridgeshire County Council,09-Jul-20,51301396307,"-2,000.00",ARTHUR J GALLAGHER,TRADE SUPPLIER,Insurance,Insurance Section,Insurance Fund External
Cambridgeshire County Council,01-Jul-20,51301394159,"-1,952.57",KEY2 FUTURES LTD,TRADE SUPPLIER,Unaccompanied Asylum Seeking Children,Unaccompanied Asylum Seeking Children <18,Asylum Seekers
Cambridgeshire County Council,08-Jul-20,51301403082,"-1,913.96",Redacted Personal Data,SERVICE USER,LD - East Locality - Cost of Care,LD - East Cambs - Care,Direct Payments
Cambridgeshire County Council,08-Jul-20,51301403082,"-1,913.96",Redacted Personal Data,SERVICE USER,LD - East Locality - Cost of Care,LD - East Cambs - Care,Direct Payments
Cambridgeshire County Council,08-Jul-20,51301403082,"-1,913.96",Redacted Personal Data,SERVICE USER,LD - East Locality - Cost of Care,LD - East Cambs - Care,Direct Payments
Cambridgeshire County Council,08-Jul-20,51301403111,"-1,904.50",Redacted Personal Data,SERVICE USER,LD - South Locality - Cost of Care,LD - South Cambs - Care,Direct Payments
Cambridgeshire County Council,08-Jul-20,51301403111,"-1,904.50",Redacted Personal Data,SERVICE USER,LD - South Locality - Cost of Care,LD - South Cambs - Care,Direct Payments
Cambridgeshire County Council,08-Jul-20,51301403111,"-1,904.50",Redacted Personal Data,SERVICE USER,LD - South Locality - Cost of Care,LD - South Cambs - Care,Direct Payments
Cambridgeshire County Council,08-Jul-20,51301398219,"-1,885.71",THE NATIONAL FOSTERING AGENCY,CARE ESTABLISHMENT,LAC Placements,Placements - independent fostering,Agency Placements - Out of  County
Cambridgeshire County Council,08-Jul-20,51301403783,"-1,867.14",GLENHOLME HEALTHCARE LTD,CARE ESTABLISHMENT,LD - Young Adults Team,LD - Young Adults - Care,Residential Care
Cambridgeshire County Council,08-Jul-20,51301403956,"-1,837.01",HUNTINGDON MENCAP LTD,CARE ESTABLISHMENT,LD - Hunts Locality - Cost of Care,LD - Huntingdonshire - Care,Domiciliary Care
Cambridgeshire County Council,08-Jul-20,51301403956,"-1,837.01",HUNTINGDON MENCAP LTD,CARE ESTABLISHMENT,LD - Hunts Locality - Cost of Care,LD - Huntingdonshire - Care,Domiciliary Care
Cambridgeshire County Council,08-Jul-20,51301403956,"-1,837.01",HUNTINGDON MENCAP LTD,CARE ESTABLISHMENT,LD - Hunts Locality - Cost of Care,LD - Huntingdonshire - Care,Domiciliary Care
Cambridgeshire County Council,08-Jul-20,51301403956,"-1,837.01",HUNTINGDON MENCAP LTD,CARE ESTABLISHMENT,LD - Hunts Locality - Cost of Care,LD - Huntingdonshire - Care,Domiciliary Care
Cambridgeshire County Council,08-Jul-20,51301403956,"-1,837.01",HUNTINGDON MENCAP LTD,CARE ESTABLISHMENT,LD - Hunts Locality - Cost of Care,LD - Huntingdonshire - Care,Domiciliary Care
Cambridgeshire County Council,08-Jul-20,51301403956,"-1,837.01",HUNTINGDON MENCAP LTD,CARE ESTABLISHMENT,LD - Hunts Locality - Cost of Care,LD - Huntingdonshire - Care,Domiciliary Care
Cambridgeshire County Council,08-Jul-20,51301403956,"-1,837.01",HUNTINGDON MENCAP LTD,CARE ESTABLISHMENT,LD - Hunts Locality - Cost of Care,LD - Huntingdonshire - Care,Domiciliary Care
Cambridgeshire County Council,08-Jul-20,51301403956,"-1,837.01",HUNTINGDON MENCAP LTD,CARE ESTABLISHMENT,LD - Hunts Locality - Cost of Care,LD - Huntingdonshire - Care,Domiciliary Care
Cambridgeshire County Council,08-Jul-20,51301403956,"-1,837.01",HUNTINGDON MENCAP LTD,CARE ESTABLISHMENT,LD - Hunts Locality - Cost of Care,LD - Huntingdonshire - Care,Domiciliary Care
Cambridgeshire County Council,08-Jul-20,51301403956,"-1,837.01",HUNTINGDON MENCAP LTD,CARE ESTABLISHMENT,LD - Hunts Locality - Cost of Care,LD - Huntingdonshire - Care,Domiciliary Care
Cambridgeshire County Council,08-Jul-20,51301403956,"-1,837.01",HUNTINGDON MENCAP LTD,CARE ESTABLISHMENT,LD - Hunts Locality - Cost of Care,LD - Huntingdonshire - Care,Domiciliary Care
Cambridgeshire County Council,08-Jul-20,51301401473,"-1,829.34",Redacted Personal Data,INDIVIDUAL,LD - South Locality - Cost of Care,LD - South Cambs - Special Needs,Direct Payments
Cambridgeshire County Council,08-Jul-20,51301400766,"-1,787.01",AURORA ORCHARD MANOR,CARE ESTABLISHMENT,LD - Young Adults Team,LD - Young Adults - Care,Residential Care
Cambridgeshire County Council,08-Jul-20,51301400766,"-1,787.01",AURORA ORCHARD MANOR,CARE ESTABLISHMENT,LD - Young Adults Team,LD - Young Adults - Care,Residential Care
Cambridgeshire County Council,08-Jul-20,51301400766,"-1,787.01",AURORA ORCHARD MANOR,CARE ESTABLISHMENT,LD - Young Adults Team,LD - Young Adults - Care,Residential Care
Cambridgeshire County Council,08-Jul-20,51301400766,"-1,787.01",AURORA ORCHARD MANOR,CARE ESTABLISHMENT,LD - Young Adults Team,LD - Young Adults - Care,Residential Care
Cambridgeshire County Council,08-Jul-20,51301400766,"-1,787.01",AURORA ORCHARD MANOR,CARE ESTABLISHMENT,LD - Young Adults Team,LD - Young Adults - Care,Residential Care
Cambridgeshire County Council,08-Jul-20,51301400766,"-1,787.01",AURORA ORCHARD MANOR,CARE ESTABLISHMENT,LD - Young Adults Team,LD - Young Adults - Care,Residential Care
Cambridgeshire County Council,08-Jul-20,51301400766,"-1,787.01",AURORA ORCHARD MANOR,CARE ESTABLISHMENT,LD - Young Adults Team,LD - Young Adults - Care,Residential Care
Cambridgeshire County Council,08-Jul-20,51301400766,"-1,787.01",AURORA ORCHARD MANOR,CARE ESTABLISHMENT,LD - Young Adults Team,LD - Young Adults - Care,Residential Care
Cambridgeshire County Council,08-Jul-20,51301400766,"-1,787.01",AURORA ORCHARD MANOR,CARE ESTABLISHMENT,LD - Young Adults Team,LD - Young Adults - Care,Residential Care
Cambridgeshire County Council,08-Jul-20,51301400766,"-1,787.01",AURORA ORCHARD MANOR,CARE ESTABLISHMENT,LD - Young Adults Team,LD - Young Adults - Care,Residential Care
Cambridgeshire County Council,08-Jul-20,51301400766,"-1,787.01",AURORA ORCHARD MANOR,CARE ESTABLISHMENT,LD - Young Adults Team,LD - Young Adults - Care,Residential Care
Cambridgeshire County Council,08-Jul-20,51301400766,"-1,787.01",AURORA ORCHARD MANOR,CARE ESTABLISHMENT,LD - Young Adults Team,LD - Young Adults - Care,Residential Care
Cambridgeshire County Council,08-Jul-20,51301400766,"-1,787.01",AURORA ORCHARD MANOR,CARE ESTABLISHMENT,LD - Young Adults Team,LD - Young Adults - Care,Residential Care
Cambridgeshire County Council,08-Jul-20,51301400766,"-1,787.01",AURORA ORCHARD MANOR,CARE ESTABLISHMENT,LD - Young Adults Team,LD - Young Adults - Care,Residential Care
Cambridgeshire County Council,08-Jul-20,51301400766,"-1,787.01",AURORA ORCHARD MANOR,CARE ESTABLISHMENT,LD - Young Adults Team,LD - Young Adults - Care,Residential Care
Cambridgeshire County Council,08-Jul-20,51301400766,"-1,787.01",AURORA ORCHARD MANOR,CARE ESTABLISHMENT,LD - Young Adults Team,LD - Young Adults - Care,Residential Care
Cambridgeshire County Council,08-Jul-20,51301400766,"-1,787.01",AURORA ORCHARD MANOR,CARE ESTABLISHMENT,LD - Young Adults Team,LD - Young Adults - Care,Residential Care
Cambridgeshire County Council,08-Jul-20,51301400766,"-1,787.01",AURORA ORCHARD MANOR,CARE ESTABLISHMENT,LD - Young Adults Team,LD - Young Adults - Care,Residential Care
Cambridgeshire County Council,08-Jul-20,51301400766,"-1,787.01",AURORA ORCHARD MANOR,CARE ESTABLISHMENT,LD - Young Adults Team,LD - Young Adults - Care,Residential Care
Cambridgeshire County Council,08-Jul-20,51301400766,"-1,787.01",AURORA ORCHARD MANOR,CARE ESTABLISHMENT,LD - Young Adults Team,LD - Young Adults - Care,Residential Care
Cambridgeshire County Council,08-Jul-20,51301400766,"-1,787.01",AURORA ORCHARD MANOR,CARE ESTABLISHMENT,LD - Young Adults Team,LD - Young Adults - Care,Residential Care
Cambridgeshire County Council,08-Jul-20,51301400766,"-1,787.01",AURORA ORCHARD MANOR,CARE ESTABLISHMENT,LD - Young Adults Team,LD - Young Adults - Care,Residential Care
Cambridgeshire County Council,08-Jul-20,51301400766,"-1,787.01",AURORA ORCHARD MANOR,CARE ESTABLISHMENT,LD - Young Adults Team,LD - Young Adults - Care,Residential Care
Cambridgeshire County Council,08-Jul-20,51301400766,"-1,787.01",AURORA ORCHARD MANOR,CARE ESTABLISHMENT,LD - Young Adults Team,LD - Young Adults - Care,Residential Care
Cambridgeshire County Council,08-Jul-20,51301400766,"-1,787.01",AURORA ORCHARD MANOR,CARE ESTABLISHMENT,LD - Young Adults Team,LD - Young Adults - Care,Residential Care
Cambridgeshire County Council,08-Jul-20,51301400766,"-1,787.01",AURORA ORCHARD MANOR,CARE ESTABLISHMENT,LD - Young Adults Team,LD - Young Adults - Care,Residential Care
Cambridgeshire County Council,08-Jul-20,51301400766,"-1,787.01",AURORA ORCHARD MANOR,CARE ESTABLISHMENT,LD - Young Adults Team,LD - Young Adults - Care,Residential Care
Cambridgeshire County Council,08-Jul-20,51301400766,"-1,787.01",AURORA ORCHARD MANOR,CARE ESTABLISHMENT,LD - Young Adults Team,LD - Young Adults - Care,Residential Care
Cambridgeshire County Council,08-Jul-20,51301400766,"-1,787.01",AURORA ORCHARD MANOR,CARE ESTABLISHMENT,LD - Young Adults Team,LD - Young Adults - Care,Residential Care
Cambridgeshire County Council,08-Jul-20,51301400766,"-1,787.01",AURORA ORCHARD MANOR,CARE ESTABLISHMENT,LD - Young Adults Team,LD - Young Adults - Care,Residential Care
Cambridgeshire County Council,08-Jul-20,51301400766,"-1,787.01",AURORA ORCHARD MANOR,CARE ESTABLISHMENT,LD - Young Adults Team,LD - Young Adults - Care,Residential Care
Cambridgeshire County Council,08-Jul-20,51301400766,"-1,787.01",AURORA ORCHARD MANOR,CARE ESTABLISHMENT,LD - Young Adults Team,LD - Young Adults - Care,Residential Care
Cambridgeshire County Council,08-Jul-20,51301400766,"-1,787.01",AURORA ORCHARD MANOR,CARE ESTABLISHMENT,LD - Young Adults Team,LD - Young Adults - Care,Residential Care
Cambridgeshire County Council,08-Jul-20,51301400766,"-1,787.01",AURORA ORCHARD MANOR,CARE ESTABLISHMENT,LD - Young Adults Team,LD - Young Adults - Care,Residential Care
Cambridgeshire County Council,08-Jul-20,51301400766,"-1,787.01",AURORA ORCHARD MANOR,CARE ESTABLISHMENT,LD - Young Adults Team,LD - Young Adults - Care,Residential Care
Cambridgeshire County Council,08-Jul-20,51301400766,"-1,787.01",AURORA ORCHARD MANOR,CARE ESTABLISHMENT,LD - Young Adults Team,LD - Young Adults - Care,Residential Care
Cambridgeshire County Council,08-Jul-20,51301400766,"-1,787.01",AURORA ORCHARD MANOR,CARE ESTABLISHMENT,LD - Young Adults Team,LD - Young Adults - Care,Residential Care
Cambridgeshire County Council,08-Jul-20,51301400766,"-1,787.01",AURORA ORCHARD MANOR,CARE ESTABLISHMENT,LD - Young Adults Team,LD - Young Adults - Care,Residential Care
Cambridgeshire County Council,08-Jul-20,51301400766,"-1,787.01",AURORA ORCHARD MANOR,CARE ESTABLISHMENT,LD - Young Adults Team,LD - Young Adults - Care,Residential Care
Cambridgeshire County Council,08-Jul-20,51301400766,"-1,787.01",AURORA ORCHARD MANOR,CARE ESTABLISHMENT,LD - Young Adults Team,LD - Young Adults - Care,Residential Care
Cambridgeshire County Council,08-Jul-20,51301400766,"-1,787.01",AURORA ORCHARD MANOR,CARE ESTABLISHMENT,LD - Young Adults Team,LD - Young Adults - Care,Residential Care
Cambridgeshire County Council,08-Jul-20,51301400766,"-1,787.01",AURORA ORCHARD MANOR,CARE ESTABLISHMENT,LD - Young Adults Team,LD - Young Adults - Care,Residential Care
Cambridgeshire County Council,08-Jul-20,51301400766,"-1,787.01",AURORA ORCHARD MANOR,CARE ESTABLISHMENT,LD - Young Adults Team,LD - Young Adults - Care,Residential Care
Cambridgeshire County Council,08-Jul-20,51301400766,"-1,787.01",AURORA ORCHARD MANOR,CARE ESTABLISHMENT,LD - Young Adults Team,LD - Young Adults - Care,Residential Care
Cambridgeshire County Council,08-Jul-20,51301403270,"-1,786.36",Redacted Personal Data,SERVICE USER,LD - South Locality - Cost of Care,LD - South Cambs - Care,Direct Payments
Cambridgeshire County Council,08-Jul-20,51301403270,"-1,786.36",Redacted Personal Data,SERVICE USER,LD - South Locality - Cost of Care,LD - South Cambs - Care,Direct Payments
Cambridgeshire County Council,08-Jul-20,51301403270,"-1,786.36",Redacted Personal Data,SERVICE USER,LD - South Locality - Cost of Care,LD - South Cambs - Care,Direct Payments
Cambridgeshire County Council,08-Jul-20,51301403483,"-1,761.27",Redacted Personal Data,SERVICE USER,LD - Young Adults Team,LD - Young Adults - Special Needs,Direct Payments
Cambridgeshire County Council,08-Jul-20,51301403483,"-1,761.27",Redacted Personal Data,SERVICE USER,LD - Young Adults Team,LD - Young Adults - Special Needs,Direct Payments
Cambridgeshire County Council,08-Jul-20,51301403483,"-1,761.27",Redacted Personal Data,SERVICE USER,LD - Young Adults Team,LD - Young Adults - Special Needs,Direct Payments
Cambridgeshire County Council,16-Jul-20,51301406722,"-1,748.50",EAST CAMBRIDGESHIRE DISTRICT COUNCIL,OTHER PUBLIC BODIES,Corporate Offices,Sutton Children's Centre,Business rates
Cambridgeshire County Council,08-Jul-20,51301403433,"-1,748.43",Redacted Personal Data,FOSTER PARENT,LD - Hunts Locality - Cost of Care,LD - Huntingdonshire - Care,Direct Payments
Cambridgeshire County Council,08-Jul-20,51301403433,"-1,748.43",Redacted Personal Data,FOSTER PARENT,LD - Hunts Locality - Cost of Care,LD - Huntingdonshire - Care,Direct Payments
Cambridgeshire County Council,08-Jul-20,51301403433,"-1,748.43",Redacted Personal Data,FOSTER PARENT,LD - Hunts Locality - Cost of Care,LD - Huntingdonshire - Care,Direct Payments
Cambridgeshire County Council,08-Jul-20,51301399394,"-1,744.12",CONQUEST CARE HOMES PETERBOROUGH,CARE ESTABLISHMENT,LD - Young Adults Team,LD - Young Adults - Care,Residential Care
Cambridgeshire County Council,08-Jul-20,51301399394,"-1,744.12",CONQUEST CARE HOMES PETERBOROUGH,CARE ESTABLISHMENT,LD - Young Adults Team,LD - Young Adults - Care,Residential Care
Cambridgeshire County Council,08-Jul-20,51301403089,"-1,716.59",Redacted Personal Data,PARENT/GUARDIAN,Physical Disablity - Cost of Care,Countywide PD Service - Care,Direct Payments
Cambridgeshire County Council,08-Jul-20,51301403089,"-1,716.59",Redacted Personal Data,PARENT/GUARDIAN,Physical Disablity - Cost of Care,Countywide PD Service - Care,Direct Payments
Cambridgeshire County Council,08-Jul-20,51301403089,"-1,716.59",Redacted Personal Data,PARENT/GUARDIAN,Physical Disablity - Cost of Care,Countywide PD Service - Care,Direct Payments
Cambridgeshire County Council,08-Jul-20,51301403373,"-1,709.01",Redacted Personal Data,PARENT/GUARDIAN,LD - Hunts Locality - Cost of Care,LD - Huntingdonshire - Care,Direct Payments
Cambridgeshire County Council,08-Jul-20,51301403373,"-1,709.01",Redacted Personal Data,PARENT/GUARDIAN,LD - Hunts Locality - Cost of Care,LD - Huntingdonshire - Care,Direct Payments
Cambridgeshire County Council,08-Jul-20,51301403373,"-1,709.01",Redacted Personal Data,PARENT/GUARDIAN,LD - Hunts Locality - Cost of Care,LD - Huntingdonshire - Care,Direct Payments
Cambridgeshire County Council,08-Jul-20,51301403090,"-1,671.97",Redacted Personal Data,SERVICE USER,LD - South Locality - Cost of Care,LD - South Cambs - Care,Direct Payments
Cambridgeshire County Council,08-Jul-20,51301403090,"-1,671.97",Redacted Personal Data,SERVICE USER,LD - South Locality - Cost of Care,LD - South Cambs - Care,Direct Payments
Cambridgeshire County Council,08-Jul-20,51301403090,"-1,671.97",Redacted Personal Data,SERVICE USER,LD - South Locality - Cost of Care,LD - South Cambs - Care,Direct Payments
Cambridgeshire County Council,27-Jul-20,51301410039,"-1,654.41",DAME HANNAH ROGERS TRUST,TRUST (OTHER),LD - South Locality - Cost of Care,LD - South Cambs - Care,Residential Care
Cambridgeshire County Council,27-Jul-20,51301410039,"-1,654.41",DAME HANNAH ROGERS TRUST,TRUST (OTHER),LD - South Locality - Cost of Care,LD - South Cambs - Care,Residential Care
Cambridgeshire County Council,27-Jul-20,51301410039,"-1,654.41",DAME HANNAH ROGERS TRUST,TRUST (OTHER),LD - South Locality - Cost of Care,LD - South Cambs - Care,Residential Care
Cambridgeshire County Council,27-Jul-20,51301410039,"-1,654.41",DAME HANNAH ROGERS TRUST,TRUST (OTHER),LD - South Locality - Cost of Care,LD - South Cambs - Care,Residential Care
Cambridgeshire County Council,27-Jul-20,51301410039,"-1,654.41",DAME HANNAH ROGERS TRUST,TRUST (OTHER),LD - South Locality - Cost of Care,LD - South Cambs - Care,Residential Care
Cambridgeshire County Council,27-Jul-20,51301410039,"-1,654.41",DAME HANNAH ROGERS TRUST,TRUST (OTHER),LD - South Locality - Cost of Care,LD - South Cambs - Care,Residential Care
Cambridgeshire County Council,27-Jul-20,51301410039,"-1,654.41",DAME HANNAH ROGERS TRUST,TRUST (OTHER),LD - South Locality - Cost of Care,LD - South Cambs - Care,Residential Care
Cambridgeshire County Council,27-Jul-20,51301410039,"-1,654.41",DAME HANNAH ROGERS TRUST,TRUST (OTHER),LD - South Locality - Cost of Care,LD - South Cambs - Care,Residential Care
Cambridgeshire County Council,27-Jul-20,51301410039,"-1,654.41",DAME HANNAH ROGERS TRUST,TRUST (OTHER),LD - South Locality - Cost of Care,LD - South Cambs - Care,Residential Care
Cambridgeshire County Council,27-Jul-20,51301410039,"-1,654.41",DAME HANNAH ROGERS TRUST,TRUST (OTHER),LD - South Locality - Cost of Care,LD - South Cambs - Care,Residential Care
Cambridgeshire County Council,27-Jul-20,51301410039,"-1,654.41",DAME HANNAH ROGERS TRUST,TRUST (OTHER),LD - South Locality - Cost of Care,LD - South Cambs - Care,Residential Care
Cambridgeshire County Council,27-Jul-20,51301410039,"-1,654.41",DAME HANNAH ROGERS TRUST,TRUST (OTHER),LD - South Locality - Cost of Care,LD - South Cambs - Care,Residential Care
Cambridgeshire County Council,27-Jul-20,51301410039,"-1,654.41",DAME HANNAH ROGERS TRUST,TRUST (OTHER),LD - South Locality - Cost of Care,LD - South Cambs - Care,Residential Care
Cambridgeshire County Council,27-Jul-20,51301410039,"-1,654.41",DAME HANNAH ROGERS TRUST,TRUST (OTHER),LD - South Locality - Cost of Care,LD - South Cambs - Care,Residential Care
Cambridgeshire County Council,27-Jul-20,51301410039,"-1,654.41",DAME HANNAH ROGERS TRUST,TRUST (OTHER),LD - South Locality - Cost of Care,LD - South Cambs - Care,Residential Care
Cambridgeshire County Council,27-Jul-20,51301410039,"-1,654.41",DAME HANNAH ROGERS TRUST,TRUST (OTHER),LD - South Locality - Cost of Care,LD - South Cambs - Care,Residential Care
Cambridgeshire County Council,27-Jul-20,51301410039,"-1,654.41",DAME HANNAH ROGERS TRUST,TRUST (OTHER),LD - South Locality - Cost of Care,LD - South Cambs - Care,Residential Care
Cambridgeshire County Council,27-Jul-20,51301410039,"-1,654.41",DAME HANNAH ROGERS TRUST,TRUST (OTHER),LD - South Locality - Cost of Care,LD - South Cambs - Care,Residential Care
Cambridgeshire County Council,27-Jul-20,51301410039,"-1,654.41",DAME HANNAH ROGERS TRUST,TRUST (OTHER),LD - South Locality - Cost of Care,LD - South Cambs - Care,Residential Care
Cambridgeshire County Council,27-Jul-20,51301410039,"-1,654.41",DAME HANNAH ROGERS TRUST,TRUST (OTHER),LD - South Locality - Cost of Care,LD - South Cambs - Care,Residential Care
Cambridgeshire County Council,27-Jul-20,51301410039,"-1,654.41",DAME HANNAH ROGERS TRUST,TRUST (OTHER),LD - South Locality - Cost of Care,LD - South Cambs - Care,Residential Care
Cambridgeshire County Council,27-Jul-20,51301410039,"-1,654.41",DAME HANNAH ROGERS TRUST,TRUST (OTHER),LD - South Locality - Cost of Care,LD - South Cambs - Care,Residential Care
Cambridgeshire County Council,27-Jul-20,51301410039,"-1,654.41",DAME HANNAH ROGERS TRUST,TRUST (OTHER),LD - South Locality - Cost of Care,LD - South Cambs - Care,Residential Care
Cambridgeshire County Council,27-Jul-20,51301410039,"-1,654.41",DAME HANNAH ROGERS TRUST,TRUST (OTHER),LD - South Locality - Cost of Care,LD - South Cambs - Care,Residential Care
Cambridgeshire County Council,27-Jul-20,51301410039,"-1,654.41",DAME HANNAH ROGERS TRUST,TRUST (OTHER),LD - South Locality - Cost of Care,LD - South Cambs - Care,Residential Care
Cambridgeshire County Council,27-Jul-20,51301410039,"-1,654.41",DAME HANNAH ROGERS TRUST,TRUST (OTHER),LD - South Locality - Cost of Care,LD - South Cambs - Care,Residential Care
Cambridgeshire County Council,27-Jul-20,51301410039,"-1,654.41",DAME HANNAH ROGERS TRUST,TRUST (OTHER),LD - South Locality - Cost of Care,LD - South Cambs - Care,Residential Care
Cambridgeshire County Council,27-Jul-20,51301410039,"-1,654.41",DAME HANNAH ROGERS TRUST,TRUST (OTHER),LD - South Locality - Cost of Care,LD - South Cambs - Care,Residential Care
Cambridgeshire County Council,27-Jul-20,51301410039,"-1,654.41",DAME HANNAH ROGERS TRUST,TRUST (OTHER),LD - South Locality - Cost of Care,LD - South Cambs - Care,Residential Care
Cambridgeshire County Council,27-Jul-20,51301410039,"-1,654.41",DAME HANNAH ROGERS TRUST,TRUST (OTHER),LD - South Locality - Cost of Care,LD - South Cambs - Care,Residential Care
Cambridgeshire County Council,27-Jul-20,51301410039,"-1,654.41",DAME HANNAH ROGERS TRUST,TRUST (OTHER),LD - South Locality - Cost of Care,LD - South Cambs - Care,Residential Care
Cambridgeshire County Council,27-Jul-20,51301410039,"-1,654.41",DAME HANNAH ROGERS TRUST,TRUST (OTHER),LD - South Locality - Cost of Care,LD - South Cambs - Care,Residential Care
Cambridgeshire County Council,27-Jul-20,51301410039,"-1,654.41",DAME HANNAH ROGERS TRUST,TRUST (OTHER),LD - South Locality - Cost of Care,LD - South Cambs - Care,Residential Care
Cambridgeshire County Council,27-Jul-20,51301410039,"-1,654.41",DAME HANNAH ROGERS TRUST,TRUST (OTHER),LD - South Locality - Cost of Care,LD - South Cambs - Care,Residential Care
Cambridgeshire County Council,27-Jul-20,51301410039,"-1,654.41",DAME HANNAH ROGERS TRUST,TRUST (OTHER),LD - South Locality - Cost of Care,LD - South Cambs - Care,Residential Care
Cambridgeshire County Council,27-Jul-20,51301410039,"-1,654.41",DAME HANNAH ROGERS TRUST,TRUST (OTHER),LD - South Locality - Cost of Care,LD - South Cambs - Care,Residential Care
Cambridgeshire County Council,27-Jul-20,51301410039,"-1,654.41",DAME HANNAH ROGERS TRUST,TRUST (OTHER),LD - South Locality - Cost of Care,LD - South Cambs - Care,Residential Care
Cambridgeshire County Council,27-Jul-20,51301410039,"-1,654.41",DAME HANNAH ROGERS TRUST,TRUST (OTHER),LD - South Locality - Cost of Care,LD - South Cambs - Care,Residential Care
Cambridgeshire County Council,27-Jul-20,51301410039,"-1,654.41",DAME HANNAH ROGERS TRUST,TRUST (OTHER),LD - South Locality - Cost of Care,LD - South Cambs - Care,Residential Care
Cambridgeshire County Council,27-Jul-20,51301410039,"-1,654.41",DAME HANNAH ROGERS TRUST,TRUST (OTHER),LD - South Locality - Cost of Care,LD - South Cambs - Care,Residential Care
Cambridgeshire County Council,27-Jul-20,51301410039,"-1,654.41",DAME HANNAH ROGERS TRUST,TRUST (OTHER),LD - South Locality - Cost of Care,LD - South Cambs - Care,Residential Care
Cambridgeshire County Council,27-Jul-20,51301410039,"-1,654.41",DAME HANNAH ROGERS TRUST,TRUST (OTHER),LD - South Locality - Cost of Care,LD - South Cambs - Care,Residential Care
Cambridgeshire County Council,27-Jul-20,51301410039,"-1,654.41",DAME HANNAH ROGERS TRUST,TRUST (OTHER),LD - South Locality - Cost of Care,LD - South Cambs - Care,Residential Care
Cambridgeshire County Council,27-Jul-20,51301410039,"-1,654.41",DAME HANNAH ROGERS TRUST,TRUST (OTHER),LD - South Locality - Cost of Care,LD - South Cambs - Care,Residential Care
Cambridgeshire County Council,27-Jul-20,51301410039,"-1,654.41",DAME HANNAH ROGERS TRUST,TRUST (OTHER),LD - South Locality - Cost of Care,LD - South Cambs - Care,Residential Care
Cambridgeshire County Council,27-Jul-20,51301410039,"-1,654.41",DAME HANNAH ROGERS TRUST,TRUST (OTHER),LD - South Locality - Cost of Care,LD - South Cambs - Care,Residential Care
Cambridgeshire County Council,27-Jul-20,51301410039,"-1,654.41",DAME HANNAH ROGERS TRUST,TRUST (OTHER),LD - South Locality - Cost of Care,LD - South Cambs - Care,Residential Care
Cambridgeshire County Council,27-Jul-20,51301410039,"-1,654.41",DAME HANNAH ROGERS TRUST,TRUST (OTHER),LD - South Locality - Cost of Care,LD - South Cambs - Care,Residential Care
Cambridgeshire County Council,27-Jul-20,51301410039,"-1,654.41",DAME HANNAH ROGERS TRUST,TRUST (OTHER),LD - South Locality - Cost of Care,LD - South Cambs - Care,Residential Care
Cambridgeshire County Council,27-Jul-20,51301410039,"-1,654.41",DAME HANNAH ROGERS TRUST,TRUST (OTHER),LD - South Locality - Cost of Care,LD - South Cambs - Care,Residential Care
Cambridgeshire County Council,27-Jul-20,51301410039,"-1,654.41",DAME HANNAH ROGERS TRUST,TRUST (OTHER),LD - South Locality - Cost of Care,LD - South Cambs - Care,Residential Care
Cambridgeshire County Council,27-Jul-20,51301410039,"-1,654.41",DAME HANNAH ROGERS TRUST,TRUST (OTHER),LD - South Locality - Cost of Care,LD - South Cambs - Care,Residential Care
Cambridgeshire County Council,27-Jul-20,51301410039,"-1,654.41",DAME HANNAH ROGERS TRUST,TRUST (OTHER),LD - South Locality - Cost of Care,LD - South Cambs - Care,Residential Care
Cambridgeshire County Council,27-Jul-20,51301410039,"-1,654.41",DAME HANNAH ROGERS TRUST,TRUST (OTHER),LD - South Locality - Cost of Care,LD - South Cambs - Care,Residential Care
Cambridgeshire County Council,27-Jul-20,51301410039,"-1,654.41",DAME HANNAH ROGERS TRUST,TRUST (OTHER),LD - South Locality - Cost of Care,LD - South Cambs - Care,Residential Care
Cambridgeshire County Council,27-Jul-20,51301410039,"-1,654.41",DAME HANNAH ROGERS TRUST,TRUST (OTHER),LD - South Locality - Cost of Care,LD - South Cambs - Care,Residential Care
Cambridgeshire County Council,27-Jul-20,51301410039,"-1,654.41",DAME HANNAH ROGERS TRUST,TRUST (OTHER),LD - South Locality - Cost of Care,LD - South Cambs - Care,Residential Care
Cambridgeshire County Council,27-Jul-20,51301410039,"-1,654.41",DAME HANNAH ROGERS TRUST,TRUST (OTHER),LD - South Locality - Cost of Care,LD - South Cambs - Care,Residential Care
Cambridgeshire County Council,27-Jul-20,51301410039,"-1,654.41",DAME HANNAH ROGERS TRUST,TRUST (OTHER),LD - South Locality - Cost of Care,LD - South Cambs - Care,Residential Care
Cambridgeshire County Council,27-Jul-20,51301410039,"-1,654.41",DAME HANNAH ROGERS TRUST,TRUST (OTHER),LD - South Locality - Cost of Care,LD - South Cambs - Care,Residential Care
Cambridgeshire County Council,27-Jul-20,51301410039,"-1,654.41",DAME HANNAH ROGERS TRUST,TRUST (OTHER),LD - South Locality - Cost of Care,LD - South Cambs - Care,Residential Care
Cambridgeshire County Council,27-Jul-20,51301410039,"-1,654.41",DAME HANNAH ROGERS TRUST,TRUST (OTHER),LD - South Locality - Cost of Care,LD - South Cambs - Care,Residential Care
Cambridgeshire County Council,27-Jul-20,51301410039,"-1,654.41",DAME HANNAH ROGERS TRUST,TRUST (OTHER),LD - South Locality - Cost of Care,LD - South Cambs - Care,Residential Care
Cambridgeshire County Council,27-Jul-20,51301410039,"-1,654.41",DAME HANNAH ROGERS TRUST,TRUST (OTHER),LD - South Locality - Cost of Care,LD - South Cambs - Care,Residential Care
Cambridgeshire County Council,27-Jul-20,51301410039,"-1,654.41",DAME HANNAH ROGERS TRUST,TRUST (OTHER),LD - South Locality - Cost of Care,LD - South Cambs - Care,Residential Care
Cambridgeshire County Council,27-Jul-20,51301410039,"-1,654.41",DAME HANNAH ROGERS TRUST,TRUST (OTHER),LD - South Locality - Cost of Care,LD - South Cambs - Care,Residential Care
Cambridgeshire County Council,27-Jul-20,51301410039,"-1,654.41",DAME HANNAH ROGERS TRUST,TRUST (OTHER),LD - South Locality - Cost of Care,LD - South Cambs - Care,Residential Care
Cambridgeshire County Council,08-Jul-20,51301403525,"-1,650.00",Redacted Personal Data,SERVICE USER,Physical Disablity - Cost of Care,Countywide PD Service - Care,Direct Payments
Cambridgeshire County Council,08-Jul-20,51301403525,"-1,650.00",Redacted Personal Data,SERVICE USER,Physical Disablity - Cost of Care,Countywide PD Service - Care,Direct Payments
Cambridgeshire County Council,08-Jul-20,51301403525,"-1,650.00",Redacted Personal Data,SERVICE USER,Physical Disablity - Cost of Care,Countywide PD Service - Care,Direct Payments
Cambridgeshire County Council,09-Jul-20,51301404676,"-1,650.00",Redacted Personal Data,SERVICE USER,Physical Disablity - Cost of Care,Countywide PD Service - Care,Direct Payments
Cambridgeshire County Council,08-Jul-20,51301403273,"-1,619.53",Redacted Personal Data,SERVICE USER,LD - South Locality - Cost of Care,LD - South Cambs - Care,Direct Payments
Cambridgeshire County Council,08-Jul-20,51301403273,"-1,619.53",Redacted Personal Data,SERVICE USER,LD - South Locality - Cost of Care,LD - South Cambs - Care,Direct Payments
Cambridgeshire County Council,08-Jul-20,51301403273,"-1,619.53",Redacted Personal Data,SERVICE USER,LD - South Locality - Cost of Care,LD - South Cambs - Care,Direct Payments
Cambridgeshire County Council,08-Jul-20,51301403102,"-1,599.65",Redacted Personal Data,SERVICE USER,LD - South Locality - Cost of Care,LD - South Cambs - Care,Direct Payments
Cambridgeshire County Council,08-Jul-20,51301401853,"-1,595.00",Redacted Personal Data,SERVICE USER,Physical Disablity - Cost of Care,Countywide PD Service - Care,Direct Payments
Cambridgeshire County Council,08-Jul-20,51301401853,"-1,595.00",Redacted Personal Data,SERVICE USER,Physical Disablity - Cost of Care,Countywide PD Service - Care,Direct Payments
Cambridgeshire County Council,08-Jul-20,51301401853,"-1,595.00",Redacted Personal Data,SERVICE USER,Physical Disablity - Cost of Care,Countywide PD Service - Care,Direct Payments
Cambridgeshire County Council,08-Jul-20,51301401898,"-1,586.22",Redacted Personal Data,SERVICE USER,LD - South Locality - Cost of Care,LD - South Cambs - Care,Direct Payments
Cambridgeshire County Council,08-Jul-20,51301401898,"-1,586.22",Redacted Personal Data,SERVICE USER,LD - South Locality - Cost of Care,LD - South Cambs - Care,Direct Payments
Cambridgeshire County Council,08-Jul-20,51301401898,"-1,586.22",Redacted Personal Data,SERVICE USER,LD - South Locality - Cost of Care,LD - South Cambs - Care,Direct Payments
Cambridgeshire County Council,08-Jul-20,51301403103,"-1,584.00",Redacted Personal Data,SERVICE USER,LD - South Locality - Cost of Care,LD - South Cambs - Care,Direct Payments
Cambridgeshire County Council,08-Jul-20,51301403374,"-1,579.27",Redacted Personal Data,SERVICE USER,LD - South Locality - Cost of Care,LD - South Cambs - Special Needs,Direct Payments
Cambridgeshire County Council,08-Jul-20,51301403374,"-1,579.27",Redacted Personal Data,SERVICE USER,LD - South Locality - Cost of Care,LD - South Cambs - Special Needs,Direct Payments
Cambridgeshire County Council,08-Jul-20,51301403374,"-1,579.27",Redacted Personal Data,SERVICE USER,LD - South Locality - Cost of Care,LD - South Cambs - Special Needs,Direct Payments
Cambridgeshire County Council,08-Jul-20,51301402986,"-1,569.39",GLENHOLME HEALTHCARE LTD,CARE ESTABLISHMENT,LD - Hunts Locality - Cost of Care,LD - Huntingdonshire - Care,Supported Living
Cambridgeshire County Council,08-Jul-20,51301402986,"-1,569.39",GLENHOLME HEALTHCARE LTD,CARE ESTABLISHMENT,LD - Hunts Locality - Cost of Care,LD - Huntingdonshire - Care,Supported Living
Cambridgeshire County Council,08-Jul-20,51301402986,"-1,569.39",GLENHOLME HEALTHCARE LTD,CARE ESTABLISHMENT,LD - Hunts Locality - Cost of Care,LD - Huntingdonshire - Care,Supported Living
Cambridgeshire County Council,08-Jul-20,51301402986,"-1,569.39",GLENHOLME HEALTHCARE LTD,CARE ESTABLISHMENT,LD - Hunts Locality - Cost of Care,LD - Huntingdonshire - Care,Supported Living
Cambridgeshire County Council,08-Jul-20,51301402986,"-1,569.39",GLENHOLME HEALTHCARE LTD,CARE ESTABLISHMENT,LD - Hunts Locality - Cost of Care,LD - Huntingdonshire - Care,Supported Living
Cambridgeshire County Council,08-Jul-20,51301402986,"-1,569.39",GLENHOLME HEALTHCARE LTD,CARE ESTABLISHMENT,LD - Hunts Locality - Cost of Care,LD - Huntingdonshire - Care,Supported Living
Cambridgeshire County Council,08-Jul-20,51301402986,"-1,569.39",GLENHOLME HEALTHCARE LTD,CARE ESTABLISHMENT,LD - Hunts Locality - Cost of Care,LD - Huntingdonshire - Care,Supported Living
Cambridgeshire County Council,08-Jul-20,51301402986,"-1,569.39",GLENHOLME HEALTHCARE LTD,CARE ESTABLISHMENT,LD - Hunts Locality - Cost of Care,LD - Huntingdonshire - Care,Supported Living
Cambridgeshire County Council,08-Jul-20,51301402986,"-1,569.39",GLENHOLME HEALTHCARE LTD,CARE ESTABLISHMENT,LD - Hunts Locality - Cost of Care,LD - Huntingdonshire - Care,Supported Living
Cambridgeshire County Council,08-Jul-20,51301402986,"-1,569.39",GLENHOLME HEALTHCARE LTD,CARE ESTABLISHMENT,LD - Hunts Locality - Cost of Care,LD - Huntingdonshire - Care,Supported Living
Cambridgeshire County Council,08-Jul-20,51301402986,"-1,569.39",GLENHOLME HEALTHCARE LTD,CARE ESTABLISHMENT,LD - Hunts Locality - Cost of Care,LD - Huntingdonshire - Care,Supported Living
Cambridgeshire County Council,08-Jul-20,51301402986,"-1,569.39",GLENHOLME HEALTHCARE LTD,CARE ESTABLISHMENT,LD - Hunts Locality - Cost of Care,LD - Huntingdonshire - Care,Supported Living
Cambridgeshire County Council,08-Jul-20,51301402986,"-1,569.39",GLENHOLME HEALTHCARE LTD,CARE ESTABLISHMENT,LD - Hunts Locality - Cost of Care,LD - Huntingdonshire - Care,Supported Living
Cambridgeshire County Council,08-Jul-20,51301402986,"-1,569.39",GLENHOLME HEALTHCARE LTD,CARE ESTABLISHMENT,LD - Hunts Locality - Cost of Care,LD - Huntingdonshire - Care,Supported Living
Cambridgeshire County Council,08-Jul-20,51301402986,"-1,569.39",GLENHOLME HEALTHCARE LTD,CARE ESTABLISHMENT,LD - Hunts Locality - Cost of Care,LD - Huntingdonshire - Care,Supported Living
Cambridgeshire County Council,08-Jul-20,51301402986,"-1,569.39",GLENHOLME HEALTHCARE LTD,CARE ESTABLISHMENT,LD - Hunts Locality - Cost of Care,LD - Huntingdonshire - Care,Supported Living
Cambridgeshire County Council,08-Jul-20,51301402986,"-1,569.39",GLENHOLME HEALTHCARE LTD,CARE ESTABLISHMENT,LD - Hunts Locality - Cost of Care,LD - Huntingdonshire - Care,Supported Living
Cambridgeshire County Council,08-Jul-20,51301402986,"-1,569.39",GLENHOLME HEALTHCARE LTD,CARE ESTABLISHMENT,LD - Hunts Locality - Cost of Care,LD - Huntingdonshire - Care,Supported Living
Cambridgeshire County Council,08-Jul-20,51301402986,"-1,569.39",GLENHOLME HEALTHCARE LTD,CARE ESTABLISHMENT,LD - Hunts Locality - Cost of Care,LD - Huntingdonshire - Care,Supported Living
Cambridgeshire County Council,08-Jul-20,51301402986,"-1,569.39",GLENHOLME HEALTHCARE LTD,CARE ESTABLISHMENT,LD - Hunts Locality - Cost of Care,LD - Huntingdonshire - Care,Supported Living
Cambridgeshire County Council,08-Jul-20,51301402986,"-1,569.39",GLENHOLME HEALTHCARE LTD,CARE ESTABLISHMENT,LD - Hunts Locality - Cost of Care,LD - Huntingdonshire - Care,Supported Living
Cambridgeshire County Council,08-Jul-20,51301402986,"-1,569.39",GLENHOLME HEALTHCARE LTD,CARE ESTABLISHMENT,LD - Hunts Locality - Cost of Care,LD - Huntingdonshire - Care,Supported Living
Cambridgeshire County Council,08-Jul-20,51301402986,"-1,569.39",GLENHOLME HEALTHCARE LTD,CARE ESTABLISHMENT,LD - Hunts Locality - Cost of Care,LD - Huntingdonshire - Care,Supported Living
Cambridgeshire County Council,08-Jul-20,51301402986,"-1,569.39",GLENHOLME HEALTHCARE LTD,CARE ESTABLISHMENT,LD - Hunts Locality - Cost of Care,LD - Huntingdonshire - Care,Supported Living
Cambridgeshire County Council,08-Jul-20,51301402986,"-1,569.39",GLENHOLME HEALTHCARE LTD,CARE ESTABLISHMENT,LD - Hunts Locality - Cost of Care,LD - Huntingdonshire - Care,Supported Living
Cambridgeshire County Council,08-Jul-20,51301402986,"-1,569.39",GLENHOLME HEALTHCARE LTD,CARE ESTABLISHMENT,LD - Hunts Locality - Cost of Care,LD - Huntingdonshire - Care,Supported Living
Cambridgeshire County Council,08-Jul-20,51301402986,"-1,569.39",GLENHOLME HEALTHCARE LTD,CARE ESTABLISHMENT,LD - Hunts Locality - Cost of Care,LD - Huntingdonshire - Care,Supported Living
Cambridgeshire County Council,08-Jul-20,51301403222,"-1,538.70",Redacted Personal Data,SERVICE USER,LD - South Locality - Cost of Care,LD - South Cambs - Care,Direct Payments
Cambridgeshire County Council,08-Jul-20,51301403222,"-1,538.70",Redacted Personal Data,SERVICE USER,LD - South Locality - Cost of Care,LD - South Cambs - Care,Direct Payments
Cambridgeshire County Council,08-Jul-20,51301403222,"-1,538.70",Redacted Personal Data,SERVICE USER,LD - South Locality - Cost of Care,LD - South Cambs - Care,Direct Payments
Cambridgeshire County Council,08-Jul-20,51301404160,"-1,533.24",AFFINITY TRUST,CARE ESTABLISHMENT,LD - Fenland Locality - Cost of Care,LD - Fenland  - Care,Domiciliary Care
Cambridgeshire County Council,08-Jul-20,51301404160,"-1,533.24",AFFINITY TRUST,CARE ESTABLISHMENT,LD - Fenland Locality - Cost of Care,LD - Fenland  - Care,Domiciliary Care
Cambridgeshire County Council,08-Jul-20,51301404160,"-1,533.24",AFFINITY TRUST,CARE ESTABLISHMENT,LD - Fenland Locality - Cost of Care,LD - Fenland  - Care,Domiciliary Care
Cambridgeshire County Council,08-Jul-20,51301404160,"-1,533.24",AFFINITY TRUST,CARE ESTABLISHMENT,LD - Fenland Locality - Cost of Care,LD - Fenland  - Care,Domiciliary Care
Cambridgeshire County Council,08-Jul-20,51301404160,"-1,533.24",AFFINITY TRUST,CARE ESTABLISHMENT,LD - Fenland Locality - Cost of Care,LD - Fenland  - Care,Domiciliary Care
Cambridgeshire County Council,08-Jul-20,51301404160,"-1,533.24",AFFINITY TRUST,CARE ESTABLISHMENT,LD - Fenland Locality - Cost of Care,LD - Fenland  - Care,Domiciliary Care
Cambridgeshire County Council,08-Jul-20,51301404160,"-1,533.24",AFFINITY TRUST,CARE ESTABLISHMENT,LD - Fenland Locality - Cost of Care,LD - Fenland  - Care,Domiciliary Care
Cambridgeshire County Council,08-Jul-20,51301404160,"-1,533.24",AFFINITY TRUST,CARE ESTABLISHMENT,LD - Fenland Locality - Cost of Care,LD - Fenland  - Care,Domiciliary Care
Cambridgeshire County Council,08-Jul-20,51301404160,"-1,533.24",AFFINITY TRUST,CARE ESTABLISHMENT,LD - Fenland Locality - Cost of Care,LD - Fenland  - Care,Domiciliary Care
Cambridgeshire County Council,08-Jul-20,51301404160,"-1,533.24",AFFINITY TRUST,CARE ESTABLISHMENT,LD - Fenland Locality - Cost of Care,LD - Fenland  - Care,Domiciliary Care
Cambridgeshire County Council,08-Jul-20,51301404160,"-1,533.24",AFFINITY TRUST,CARE ESTABLISHMENT,LD - Fenland Locality - Cost of Care,LD - Fenland  - Care,Domiciliary Care
Cambridgeshire County Council,08-Jul-20,51301404160,"-1,533.24",AFFINITY TRUST,CARE ESTABLISHMENT,LD - Fenland Locality - Cost of Care,LD - Fenland  - Care,Domiciliary Care
Cambridgeshire County Council,08-Jul-20,51301404160,"-1,533.24",AFFINITY TRUST,CARE ESTABLISHMENT,LD - Fenland Locality - Cost of Care,LD - Fenland  - Care,Domiciliary Care
Cambridgeshire County Council,08-Jul-20,51301404160,"-1,533.24",AFFINITY TRUST,CARE ESTABLISHMENT,LD - Fenland Locality - Cost of Care,LD - Fenland  - Care,Domiciliary Care
Cambridgeshire County Council,08-Jul-20,51301404160,"-1,533.24",AFFINITY TRUST,CARE ESTABLISHMENT,LD - Fenland Locality - Cost of Care,LD - Fenland  - Care,Domiciliary Care
Cambridgeshire County Council,08-Jul-20,51301404160,"-1,533.24",AFFINITY TRUST,CARE ESTABLISHMENT,LD - Fenland Locality - Cost of Care,LD - Fenland  - Care,Domiciliary Care
Cambridgeshire County Council,08-Jul-20,51301404160,"-1,533.24",AFFINITY TRUST,CARE ESTABLISHMENT,LD - Fenland Locality - Cost of Care,LD - Fenland  - Care,Domiciliary Care
Cambridgeshire County Council,08-Jul-20,51301404160,"-1,533.24",AFFINITY TRUST,CARE ESTABLISHMENT,LD - Fenland Locality - Cost of Care,LD - Fenland  - Care,Domiciliary Care
Cambridgeshire County Council,08-Jul-20,51301404160,"-1,533.24",AFFINITY TRUST,CARE ESTABLISHMENT,LD - Fenland Locality - Cost of Care,LD - Fenland  - Care,Domiciliary Care
Cambridgeshire County Council,08-Jul-20,51301404160,"-1,533.24",AFFINITY TRUST,CARE ESTABLISHMENT,LD - Fenland Locality - Cost of Care,LD - Fenland  - Care,Domiciliary Care
Cambridgeshire County Council,08-Jul-20,51301404160,"-1,533.24",AFFINITY TRUST,CARE ESTABLISHMENT,LD - Fenland Locality - Cost of Care,LD - Fenland  - Care,Domiciliary Care
Cambridgeshire County Council,08-Jul-20,51301404160,"-1,533.24",AFFINITY TRUST,CARE ESTABLISHMENT,LD - Fenland Locality - Cost of Care,LD - Fenland  - Care,Domiciliary Care
Cambridgeshire County Council,08-Jul-20,51301404160,"-1,533.24",AFFINITY TRUST,CARE ESTABLISHMENT,LD - Fenland Locality - Cost of Care,LD - Fenland  - Care,Domiciliary Care
Cambridgeshire County Council,08-Jul-20,51301404160,"-1,533.24",AFFINITY TRUST,CARE ESTABLISHMENT,LD - Fenland Locality - Cost of Care,LD - Fenland  - Care,Domiciliary Care
Cambridgeshire County Council,08-Jul-20,51301404160,"-1,533.24",AFFINITY TRUST,CARE ESTABLISHMENT,LD - Fenland Locality - Cost of Care,LD - Fenland  - Care,Domiciliary Care
Cambridgeshire County Council,08-Jul-20,51301404160,"-1,533.24",AFFINITY TRUST,CARE ESTABLISHMENT,LD - Fenland Locality - Cost of Care,LD - Fenland  - Care,Domiciliary Care
Cambridgeshire County Council,08-Jul-20,51301404160,"-1,533.24",AFFINITY TRUST,CARE ESTABLISHMENT,LD - Fenland Locality - Cost of Care,LD - Fenland  - Care,Domiciliary Care
Cambridgeshire County Council,08-Jul-20,51301404160,"-1,533.24",AFFINITY TRUST,CARE ESTABLISHMENT,LD - Fenland Locality - Cost of Care,LD - Fenland  - Care,Domiciliary Care
Cambridgeshire County Council,08-Jul-20,51301404160,"-1,533.24",AFFINITY TRUST,CARE ESTABLISHMENT,LD - Fenland Locality - Cost of Care,LD - Fenland  - Care,Domiciliary Care
Cambridgeshire County Council,08-Jul-20,51301404160,"-1,533.24",AFFINITY TRUST,CARE ESTABLISHMENT,LD - Fenland Locality - Cost of Care,LD - Fenland  - Care,Domiciliary Care
Cambridgeshire County Council,08-Jul-20,51301404160,"-1,533.24",AFFINITY TRUST,CARE ESTABLISHMENT,LD - Fenland Locality - Cost of Care,LD - Fenland  - Care,Domiciliary Care
Cambridgeshire County Council,08-Jul-20,51301404160,"-1,533.24",AFFINITY TRUST,CARE ESTABLISHMENT,LD - Fenland Locality - Cost of Care,LD - Fenland  - Care,Domiciliary Care
Cambridgeshire County Council,08-Jul-20,51301404160,"-1,533.24",AFFINITY TRUST,CARE ESTABLISHMENT,LD - Fenland Locality - Cost of Care,LD - Fenland  - Care,Domiciliary Care
Cambridgeshire County Council,08-Jul-20,51301404160,"-1,533.24",AFFINITY TRUST,CARE ESTABLISHMENT,LD - Fenland Locality - Cost of Care,LD - Fenland  - Care,Domiciliary Care
Cambridgeshire County Council,08-Jul-20,51301404160,"-1,533.24",AFFINITY TRUST,CARE ESTABLISHMENT,LD - Fenland Locality - Cost of Care,LD - Fenland  - Care,Domiciliary Care
Cambridgeshire County Council,08-Jul-20,51301404160,"-1,533.24",AFFINITY TRUST,CARE ESTABLISHMENT,LD - Fenland Locality - Cost of Care,LD - Fenland  - Care,Domiciliary Care
Cambridgeshire County Council,08-Jul-20,51301404160,"-1,533.24",AFFINITY TRUST,CARE ESTABLISHMENT,LD - Fenland Locality - Cost of Care,LD - Fenland  - Care,Domiciliary Care
Cambridgeshire County Council,08-Jul-20,51301404160,"-1,533.24",AFFINITY TRUST,CARE ESTABLISHMENT,LD - Fenland Locality - Cost of Care,LD - Fenland  - Care,Domiciliary Care
Cambridgeshire County Council,08-Jul-20,51301404160,"-1,533.24",AFFINITY TRUST,CARE ESTABLISHMENT,LD - Fenland Locality - Cost of Care,LD - Fenland  - Care,Domiciliary Care
Cambridgeshire County Council,08-Jul-20,51301404160,"-1,533.24",AFFINITY TRUST,CARE ESTABLISHMENT,LD - Fenland Locality - Cost of Care,LD - Fenland  - Care,Domiciliary Care
Cambridgeshire County Council,08-Jul-20,51301404160,"-1,533.24",AFFINITY TRUST,CARE ESTABLISHMENT,LD - Fenland Locality - Cost of Care,LD - Fenland  - Care,Domiciliary Care
Cambridgeshire County Council,08-Jul-20,51301404160,"-1,533.24",AFFINITY TRUST,CARE ESTABLISHMENT,LD - Fenland Locality - Cost of Care,LD - Fenland  - Care,Domiciliary Care
Cambridgeshire County Council,08-Jul-20,51301404160,"-1,533.24",AFFINITY TRUST,CARE ESTABLISHMENT,LD - Fenland Locality - Cost of Care,LD - Fenland  - Care,Domiciliary Care
Cambridgeshire County Council,08-Jul-20,51301404160,"-1,533.24",AFFINITY TRUST,CARE ESTABLISHMENT,LD - Fenland Locality - Cost of Care,LD - Fenland  - Care,Domiciliary Care
Cambridgeshire County Council,08-Jul-20,51301404160,"-1,533.24",AFFINITY TRUST,CARE ESTABLISHMENT,LD - Fenland Locality - Cost of Care,LD - Fenland  - Care,Domiciliary Care
Cambridgeshire County Council,08-Jul-20,51301404160,"-1,533.24",AFFINITY TRUST,CARE ESTABLISHMENT,LD - Fenland Locality - Cost of Care,LD - Fenland  - Care,Domiciliary Care
Cambridgeshire County Council,08-Jul-20,51301404160,"-1,533.24",AFFINITY TRUST,CARE ESTABLISHMENT,LD - Fenland Locality - Cost of Care,LD - Fenland  - Care,Domiciliary Care
Cambridgeshire County Council,08-Jul-20,51301404160,"-1,533.24",AFFINITY TRUST,CARE ESTABLISHMENT,LD - Fenland Locality - Cost of Care,LD - Fenland  - Care,Domiciliary Care
Cambridgeshire County Council,08-Jul-20,51301404160,"-1,533.24",AFFINITY TRUST,CARE ESTABLISHMENT,LD - Fenland Locality - Cost of Care,LD - Fenland  - Care,Domiciliary Care
Cambridgeshire County Council,08-Jul-20,51301404160,"-1,533.24",AFFINITY TRUST,CARE ESTABLISHMENT,LD - Fenland Locality - Cost of Care,LD - Fenland  - Care,Domiciliary Care
Cambridgeshire County Council,08-Jul-20,51301404160,"-1,533.24",AFFINITY TRUST,CARE ESTABLISHMENT,LD - Fenland Locality - Cost of Care,LD - Fenland  - Care,Domiciliary Care
Cambridgeshire County Council,08-Jul-20,51301404160,"-1,533.24",AFFINITY TRUST,CARE ESTABLISHMENT,LD - Fenland Locality - Cost of Care,LD - Fenland  - Care,Domiciliary Care
Cambridgeshire County Council,08-Jul-20,51301404160,"-1,533.24",AFFINITY TRUST,CARE ESTABLISHMENT,LD - Fenland Locality - Cost of Care,LD - Fenland  - Care,Domiciliary Care
Cambridgeshire County Council,08-Jul-20,51301404160,"-1,533.24",AFFINITY TRUST,CARE ESTABLISHMENT,LD - Fenland Locality - Cost of Care,LD - Fenland  - Care,Domiciliary Care
Cambridgeshire County Council,08-Jul-20,51301404160,"-1,533.24",AFFINITY TRUST,CARE ESTABLISHMENT,LD - Fenland Locality - Cost of Care,LD - Fenland  - Care,Domiciliary Care
Cambridgeshire County Council,08-Jul-20,51301404160,"-1,533.24",AFFINITY TRUST,CARE ESTABLISHMENT,LD - Fenland Locality - Cost of Care,LD - Fenland  - Care,Domiciliary Care
Cambridgeshire County Council,08-Jul-20,51301404160,"-1,533.24",AFFINITY TRUST,CARE ESTABLISHMENT,LD - Fenland Locality - Cost of Care,LD - Fenland  - Care,Domiciliary Care
Cambridgeshire County Council,08-Jul-20,51301404160,"-1,533.24",AFFINITY TRUST,CARE ESTABLISHMENT,LD - Fenland Locality - Cost of Care,LD - Fenland  - Care,Domiciliary Care
Cambridgeshire County Council,08-Jul-20,51301404160,"-1,533.24",AFFINITY TRUST,CARE ESTABLISHMENT,LD - Fenland Locality - Cost of Care,LD - Fenland  - Care,Domiciliary Care
Cambridgeshire County Council,08-Jul-20,51301404160,"-1,533.24",AFFINITY TRUST,CARE ESTABLISHMENT,LD - Fenland Locality - Cost of Care,LD - Fenland  - Care,Domiciliary Care
Cambridgeshire County Council,08-Jul-20,51301404160,"-1,533.24",AFFINITY TRUST,CARE ESTABLISHMENT,LD - Fenland Locality - Cost of Care,LD - Fenland  - Care,Domiciliary Care
Cambridgeshire County Council,08-Jul-20,51301404160,"-1,533.24",AFFINITY TRUST,CARE ESTABLISHMENT,LD - Fenland Locality - Cost of Care,LD - Fenland  - Care,Domiciliary Care
Cambridgeshire County Council,08-Jul-20,51301404160,"-1,533.24",AFFINITY TRUST,CARE ESTABLISHMENT,LD - Fenland Locality - Cost of Care,LD - Fenland  - Care,Domiciliary Care
Cambridgeshire County Council,08-Jul-20,51301404160,"-1,533.24",AFFINITY TRUST,CARE ESTABLISHMENT,LD - Fenland Locality - Cost of Care,LD - Fenland  - Care,Domiciliary Care
Cambridgeshire County Council,08-Jul-20,51301404160,"-1,533.24",AFFINITY TRUST,CARE ESTABLISHMENT,LD - Fenland Locality - Cost of Care,LD - Fenland  - Care,Domiciliary Care
Cambridgeshire County Council,08-Jul-20,51301404160,"-1,533.24",AFFINITY TRUST,CARE ESTABLISHMENT,LD - Fenland Locality - Cost of Care,LD - Fenland  - Care,Domiciliary Care
Cambridgeshire County Council,08-Jul-20,51301404160,"-1,533.24",AFFINITY TRUST,CARE ESTABLISHMENT,LD - Fenland Locality - Cost of Care,LD - Fenland  - Care,Domiciliary Care
Cambridgeshire County Council,08-Jul-20,51301404160,"-1,533.24",AFFINITY TRUST,CARE ESTABLISHMENT,LD - Fenland Locality - Cost of Care,LD - Fenland  - Care,Domiciliary Care
Cambridgeshire County Council,08-Jul-20,51301404160,"-1,533.24",AFFINITY TRUST,CARE ESTABLISHMENT,LD - Fenland Locality - Cost of Care,LD - Fenland  - Care,Domiciliary Care
Cambridgeshire County Council,08-Jul-20,51301404160,"-1,533.24",AFFINITY TRUST,CARE ESTABLISHMENT,LD - Fenland Locality - Cost of Care,LD - Fenland  - Care,Domiciliary Care
Cambridgeshire County Council,08-Jul-20,51301404160,"-1,533.24",AFFINITY TRUST,CARE ESTABLISHMENT,LD - Fenland Locality - Cost of Care,LD - Fenland  - Care,Domiciliary Care
Cambridgeshire County Council,08-Jul-20,51301404160,"-1,533.24",AFFINITY TRUST,CARE ESTABLISHMENT,LD - Fenland Locality - Cost of Care,LD - Fenland  - Care,Domiciliary Care
Cambridgeshire County Council,08-Jul-20,51301404160,"-1,533.24",AFFINITY TRUST,CARE ESTABLISHMENT,LD - Fenland Locality - Cost of Care,LD - Fenland  - Care,Domiciliary Care
Cambridgeshire County Council,08-Jul-20,51301404160,"-1,533.24",AFFINITY TRUST,CARE ESTABLISHMENT,LD - Fenland Locality - Cost of Care,LD - Fenland  - Care,Domiciliary Care
Cambridgeshire County Council,08-Jul-20,51301404160,"-1,533.24",AFFINITY TRUST,CARE ESTABLISHMENT,LD - Fenland Locality - Cost of Care,LD - Fenland  - Care,Domiciliary Care
Cambridgeshire County Council,08-Jul-20,51301404160,"-1,533.24",AFFINITY TRUST,CARE ESTABLISHMENT,LD - Fenland Locality - Cost of Care,LD - Fenland  - Care,Domiciliary Care
Cambridgeshire County Council,08-Jul-20,51301404160,"-1,533.24",AFFINITY TRUST,CARE ESTABLISHMENT,LD - Fenland Locality - Cost of Care,LD - Fenland  - Care,Domiciliary Care
Cambridgeshire County Council,08-Jul-20,51301404160,"-1,533.24",AFFINITY TRUST,CARE ESTABLISHMENT,LD - Fenland Locality - Cost of Care,LD - Fenland  - Care,Domiciliary Care
Cambridgeshire County Council,08-Jul-20,51301404160,"-1,533.24",AFFINITY TRUST,CARE ESTABLISHMENT,LD - Fenland Locality - Cost of Care,LD - Fenland  - Care,Domiciliary Care
Cambridgeshire County Council,08-Jul-20,51301404160,"-1,533.24",AFFINITY TRUST,CARE ESTABLISHMENT,LD - Fenland Locality - Cost of Care,LD - Fenland  - Care,Domiciliary Care
Cambridgeshire County Council,08-Jul-20,51301404160,"-1,533.24",AFFINITY TRUST,CARE ESTABLISHMENT,LD - Fenland Locality - Cost of Care,LD - Fenland  - Care,Domiciliary Care
Cambridgeshire County Council,08-Jul-20,51301404160,"-1,533.24",AFFINITY TRUST,CARE ESTABLISHMENT,LD - Fenland Locality - Cost of Care,LD - Fenland  - Care,Domiciliary Care
Cambridgeshire County Council,08-Jul-20,51301404160,"-1,533.24",AFFINITY TRUST,CARE ESTABLISHMENT,LD - Fenland Locality - Cost of Care,LD - Fenland  - Care,Domiciliary Care
Cambridgeshire County Council,08-Jul-20,51301404160,"-1,533.24",AFFINITY TRUST,CARE ESTABLISHMENT,LD - Fenland Locality - Cost of Care,LD - Fenland  - Care,Domiciliary Care
Cambridgeshire County Council,08-Jul-20,51301403115,"-1,517.36",Redacted Personal Data,SERVICE USER,LD - Hunts Locality - Cost of Care,LD - Huntingdonshire - Care,Direct Payments
Cambridgeshire County Council,08-Jul-20,51301403115,"-1,517.36",Redacted Personal Data,SERVICE USER,LD - Hunts Locality - Cost of Care,LD - Huntingdonshire - Care,Direct Payments
Cambridgeshire County Council,08-Jul-20,51301403115,"-1,517.36",Redacted Personal Data,SERVICE USER,LD - Hunts Locality - Cost of Care,LD - Huntingdonshire - Care,Direct Payments
Cambridgeshire County Council,08-Jul-20,51301402105,"-1,508.10",EYNESBURY HOUSE,CARE ESTABLISHMENT,AMH - Hunts & Fens,Hunts Mental Health Team,Residential Care
Cambridgeshire County Council,08-Jul-20,51301400308,"-1,500.00",ETHELDRED HOUSE,CARE ESTABLISHMENT,OPMH - City & South,Older People Mental Health City & South,Nursing Care
Cambridgeshire County Council,08-Jul-20,51301400308,"-1,500.00",ETHELDRED HOUSE,CARE ESTABLISHMENT,OPMH - City & South,Older People Mental Health City & South,Nursing Care
Cambridgeshire County Council,08-Jul-20,51301400308,"-1,500.00",ETHELDRED HOUSE,CARE ESTABLISHMENT,OPMH - City & South,Older People Mental Health City & South,Nursing Care
Cambridgeshire County Council,08-Jul-20,51301400308,"-1,500.00",ETHELDRED HOUSE,CARE ESTABLISHMENT,OPMH - City & South,Older People Mental Health City & South,Nursing Care
Cambridgeshire County Council,08-Jul-20,51301400308,"-1,500.00",ETHELDRED HOUSE,CARE ESTABLISHMENT,OPMH - City & South,Older People Mental Health City & South,Nursing Care
Cambridgeshire County Council,08-Jul-20,51301400308,"-1,500.00",ETHELDRED HOUSE,CARE ESTABLISHMENT,OPMH - City & South,Older People Mental Health City & South,Nursing Care
Cambridgeshire County Council,08-Jul-20,51301400308,"-1,500.00",ETHELDRED HOUSE,CARE ESTABLISHMENT,OPMH - City & South,Older People Mental Health City & South,Nursing Care
Cambridgeshire County Council,08-Jul-20,51301400308,"-1,500.00",ETHELDRED HOUSE,CARE ESTABLISHMENT,OPMH - City & South,Older People Mental Health City & South,Nursing Care
Cambridgeshire County Council,08-Jul-20,51301400308,"-1,500.00",ETHELDRED HOUSE,CARE ESTABLISHMENT,OPMH - City & South,Older People Mental Health City & South,Nursing Care
Cambridgeshire County Council,08-Jul-20,51301400308,"-1,500.00",ETHELDRED HOUSE,CARE ESTABLISHMENT,OPMH - City & South,Older People Mental Health City & South,Nursing Care
Cambridgeshire County Council,08-Jul-20,51301400308,"-1,500.00",ETHELDRED HOUSE,CARE ESTABLISHMENT,OPMH - City & South,Older People Mental Health City & South,Nursing Care
Cambridgeshire County Council,08-Jul-20,51301400308,"-1,500.00",ETHELDRED HOUSE,CARE ESTABLISHMENT,OPMH - City & South,Older People Mental Health City & South,Nursing Care
Cambridgeshire County Council,08-Jul-20,51301400308,"-1,500.00",ETHELDRED HOUSE,CARE ESTABLISHMENT,OPMH - City & South,Older People Mental Health City & South,Nursing Care
Cambridgeshire County Council,08-Jul-20,51301400308,"-1,500.00",ETHELDRED HOUSE,CARE ESTABLISHMENT,OPMH - City & South,Older People Mental Health City & South,Nursing Care
Cambridgeshire County Council,08-Jul-20,51301400308,"-1,500.00",ETHELDRED HOUSE,CARE ESTABLISHMENT,OPMH - City & South,Older People Mental Health City & South,Nursing Care
Cambridgeshire County Council,08-Jul-20,51301400308,"-1,500.00",ETHELDRED HOUSE,CARE ESTABLISHMENT,OPMH - City & South,Older People Mental Health City & South,Nursing Care
Cambridgeshire County Council,08-Jul-20,51301400308,"-1,500.00",ETHELDRED HOUSE,CARE ESTABLISHMENT,OPMH - City & South,Older People Mental Health City & South,Nursing Care
Cambridgeshire County Council,08-Jul-20,51301400308,"-1,500.00",ETHELDRED HOUSE,CARE ESTABLISHMENT,OPMH - City & South,Older People Mental Health City & South,Nursing Care
Cambridgeshire County Council,08-Jul-20,51301400308,"-1,500.00",ETHELDRED HOUSE,CARE ESTABLISHMENT,OPMH - City & South,Older People Mental Health City & South,Nursing Care
Cambridgeshire County Council,08-Jul-20,51301400308,"-1,500.00",ETHELDRED HOUSE,CARE ESTABLISHMENT,OPMH - City & South,Older People Mental Health City & South,Nursing Care
Cambridgeshire County Council,08-Jul-20,51301400308,"-1,500.00",ETHELDRED HOUSE,CARE ESTABLISHMENT,OPMH - City & South,Older People Mental Health City & South,Nursing Care
Cambridgeshire County Council,08-Jul-20,51301400308,"-1,500.00",ETHELDRED HOUSE,CARE ESTABLISHMENT,OPMH - City & South,Older People Mental Health City & South,Nursing Care
Cambridgeshire County Council,08-Jul-20,51301400308,"-1,500.00",ETHELDRED HOUSE,CARE ESTABLISHMENT,OPMH - City & South,Older People Mental Health City & South,Nursing Care
Cambridgeshire County Council,08-Jul-20,51301400308,"-1,500.00",ETHELDRED HOUSE,CARE ESTABLISHMENT,OPMH - City & South,Older People Mental Health City & South,Nursing Care
Cambridgeshire County Council,08-Jul-20,51301400308,"-1,500.00",ETHELDRED HOUSE,CARE ESTABLISHMENT,OPMH - City & South,Older People Mental Health City & South,Nursing Care
Cambridgeshire County Council,08-Jul-20,51301400308,"-1,500.00",ETHELDRED HOUSE,CARE ESTABLISHMENT,OPMH - City & South,Older People Mental Health City & South,Nursing Care
Cambridgeshire County Council,08-Jul-20,51301400308,"-1,500.00",ETHELDRED HOUSE,CARE ESTABLISHMENT,OPMH - City & South,Older People Mental Health City & South,Nursing Care
Cambridgeshire County Council,08-Jul-20,51301400308,"-1,500.00",ETHELDRED HOUSE,CARE ESTABLISHMENT,OPMH - City & South,Older People Mental Health City & South,Nursing Care
Cambridgeshire County Council,08-Jul-20,51301400308,"-1,500.00",ETHELDRED HOUSE,CARE ESTABLISHMENT,OPMH - City & South,Older People Mental Health City & South,Nursing Care
Cambridgeshire County Council,08-Jul-20,51301400308,"-1,500.00",ETHELDRED HOUSE,CARE ESTABLISHMENT,OPMH - City & South,Older People Mental Health City & South,Nursing Care
Cambridgeshire County Council,08-Jul-20,51301400308,"-1,500.00",ETHELDRED HOUSE,CARE ESTABLISHMENT,OPMH - City & South,Older People Mental Health City & South,Nursing Care
Cambridgeshire County Council,08-Jul-20,51301400308,"-1,500.00",ETHELDRED HOUSE,CARE ESTABLISHMENT,OPMH - City & South,Older People Mental Health City & South,Nursing Care
Cambridgeshire County Council,08-Jul-20,51301400308,"-1,500.00",ETHELDRED HOUSE,CARE ESTABLISHMENT,OPMH - City & South,Older People Mental Health City & South,Nursing Care
Cambridgeshire County Council,08-Jul-20,51301400308,"-1,500.00",ETHELDRED HOUSE,CARE ESTABLISHMENT,OPMH - City & South,Older People Mental Health City & South,Nursing Care
Cambridgeshire County Council,08-Jul-20,51301400308,"-1,500.00",ETHELDRED HOUSE,CARE ESTABLISHMENT,OPMH - City & South,Older People Mental Health City & South,Nursing Care
Cambridgeshire County Council,09-Jul-20,51301404676,"-1,500.00",Redacted Personal Data,SERVICE USER,Physical Disablity - Cost of Care,Countywide PD Service - Care,Direct Payments
Cambridgeshire County Council,09-Jul-20,51301404676,"-1,500.00",Redacted Personal Data,SERVICE USER,Physical Disablity - Cost of Care,Countywide PD Service - Care,Direct Payments
Cambridgeshire County Council,09-Jul-20,51301404676,"-1,500.00",Redacted Personal Data,SERVICE USER,Physical Disablity - Cost of Care,Countywide PD Service - Care,Direct Payments
Cambridgeshire County Council,09-Jul-20,51301404676,"-1,500.00",Redacted Personal Data,SERVICE USER,Physical Disablity - Cost of Care,Countywide PD Service - Care,Direct Payments
Cambridgeshire County Council,09-Jul-20,51301404676,"-1,500.00",Redacted Personal Data,SERVICE USER,Physical Disablity - Cost of Care,Countywide PD Service - Care,Direct Payments
Cambridgeshire County Council,09-Jul-20,51301404676,"-1,500.00",Redacted Personal Data,SERVICE USER,Physical Disablity - Cost of Care,Countywide PD Service - Care,Direct Payments
Cambridgeshire County Council,09-Jul-20,51301404676,"-1,500.00",Redacted Personal Data,SERVICE USER,Physical Disablity - Cost of Care,Countywide PD Service - Care,Direct Payments
Cambridgeshire County Council,08-Jul-20,51301399394,"-1,494.96",CONQUEST CARE HOMES PETERBOROUGH,CARE ESTABLISHMENT,LD - Young Adults Team,LD - Young Adults - Care,Residential Care
Cambridgeshire County Council,08-Jul-20,51301403996,"-1,484.18",MENCAP (COWLEY ROAD),CARE ESTABLISHMENT,LD - Hunts Locality - Cost of Care,LD - Huntingdonshire - Care,Domiciliary Care
Cambridgeshire County Council,08-Jul-20,51301403282,"-1,479.72",Redacted Personal Data,SERVICE USER,LD - Hunts Locality - Cost of Care,LD - Huntingdonshire - Care,Direct Payments
Cambridgeshire County Council,20-Jul-20,51301405856,"-1,461.06",A J SPEECHLEY SON & PARTNER,COMPANY,County Farms,County Farms,County Farms Maintenance unplanned
Cambridgeshire County Council,08-Jul-20,51301400766,"-1,455.14",AURORA ORCHARD MANOR,CARE ESTABLISHMENT,LD - Young Adults Team,LD - Young Adults - Care,Residential Care
Cambridgeshire County Council,27-Jul-20,51301410039,"-1,418.07",DAME HANNAH ROGERS TRUST,TRUST (OTHER),LD - South Locality - Cost of Care,LD - South Cambs - Care,Residential Care
Cambridgeshire County Council,08-Jul-20,51301401948,"-1,416.39",Redacted Personal Data,SERVICE USER,LD - South Locality - Cost of Care,LD - South Cambs - Care,Direct Payments
Cambridgeshire County Council,08-Jul-20,51301401948,"-1,416.39",Redacted Personal Data,SERVICE USER,LD - South Locality - Cost of Care,LD - South Cambs - Care,Direct Payments
Cambridgeshire County Council,08-Jul-20,51301401948,"-1,416.39",Redacted Personal Data,SERVICE USER,LD - South Locality - Cost of Care,LD - South Cambs - Care,Direct Payments
Cambridgeshire County Council,08-Jul-20,51301399433,"-1,399.44",CARETECH COMMUNITY SERVICES,CARE ESTABLISHMENT,LD - Hunts Locality - Cost of Care,LD - Huntingdonshire - Care,Residential Care
Cambridgeshire County Council,08-Jul-20,51301401925,"-1,386.09",Redacted Personal Data,INDIVIDUAL,AMH - Hunts & Fens,Hunts Mental Health Team,Direct Payments
Cambridgeshire County Council,08-Jul-20,51301401925,"-1,386.09",Redacted Personal Data,INDIVIDUAL,AMH - Hunts & Fens,Hunts Mental Health Team,Direct Payments
Cambridgeshire County Council,08-Jul-20,51301401925,"-1,386.09",Redacted Personal Data,INDIVIDUAL,AMH - Hunts & Fens,Hunts Mental Health Team,Direct Payments
Cambridgeshire County Council,08-Jul-20,51301401421,"-1,375.00",Redacted Personal Data,INDIVIDUAL,Physical Disablity - Cost of Care,Countywide PD Service - Care,Direct Payments
Cambridgeshire County Council,08-Jul-20,51301401421,"-1,375.00",Redacted Personal Data,INDIVIDUAL,Physical Disablity - Cost of Care,Countywide PD Service - Care,Direct Payments
Cambridgeshire County Council,08-Jul-20,51301401421,"-1,375.00",Redacted Personal Data,INDIVIDUAL,Physical Disablity - Cost of Care,Countywide PD Service - Care,Direct Payments
Cambridgeshire County Council,08-Jul-20,51301403390,"-1,360.71",Redacted Personal Data,SERVICE USER,LD - Hunts Locality - Cost of Care,LD - Huntingdonshire - Special Needs,Direct Payments
Cambridgeshire County Council,27-Jul-20,51301410039,"-1,340.96",DAME HANNAH ROGERS TRUST,TRUST (OTHER),LD - South Locality - Cost of Care,LD - South Cambs - Care,Residential Care
Cambridgeshire County Council,08-Jul-20,51301403168,"-1,337.61",Redacted Personal Data,SERVICE USER,LD - South Locality - Cost of Care,LD - South Cambs - Care,Direct Payments
Cambridgeshire County Council,08-Jul-20,51301403168,"-1,337.61",Redacted Personal Data,SERVICE USER,LD - South Locality - Cost of Care,LD - South Cambs - Care,Direct Payments
Cambridgeshire County Council,08-Jul-20,51301403168,"-1,337.61",Redacted Personal Data,SERVICE USER,LD - South Locality - Cost of Care,LD - South Cambs - Care,Direct Payments
Cambridgeshire County Council,08-Jul-20,51301400716,"-1,333.46",EAGLE WOOD NEUROLOGICAL CARE,CARE ESTABLISHMENT,OPMH - City & South,Older People Mental Health City & South,Nursing Care
Cambridgeshire County Council,08-Jul-20,51301400716,"-1,333.46",EAGLE WOOD NEUROLOGICAL CARE,CARE ESTABLISHMENT,OPMH - City & South,Older People Mental Health City & South,Nursing Care
Cambridgeshire County Council,08-Jul-20,51301400716,"-1,333.46",EAGLE WOOD NEUROLOGICAL CARE,CARE ESTABLISHMENT,OPMH - City & South,Older People Mental Health City & South,Nursing Care
Cambridgeshire County Council,08-Jul-20,51301400716,"-1,333.46",EAGLE WOOD NEUROLOGICAL CARE,CARE ESTABLISHMENT,OPMH - City & South,Older People Mental Health City & South,Nursing Care
Cambridgeshire County Council,08-Jul-20,51301400716,"-1,333.46",EAGLE WOOD NEUROLOGICAL CARE,CARE ESTABLISHMENT,OPMH - City & South,Older People Mental Health City & South,Nursing Care
Cambridgeshire County Council,08-Jul-20,51301400716,"-1,333.46",EAGLE WOOD NEUROLOGICAL CARE,CARE ESTABLISHMENT,OPMH - City & South,Older People Mental Health City & South,Nursing Care
Cambridgeshire County Council,08-Jul-20,51301400716,"-1,333.46",EAGLE WOOD NEUROLOGICAL CARE,CARE ESTABLISHMENT,OPMH - City & South,Older People Mental Health City & South,Nursing Care
Cambridgeshire County Council,08-Jul-20,51301400716,"-1,333.46",EAGLE WOOD NEUROLOGICAL CARE,CARE ESTABLISHMENT,OPMH - City & South,Older People Mental Health City & South,Nursing Care
Cambridgeshire County Council,08-Jul-20,51301400716,"-1,333.46",EAGLE WOOD NEUROLOGICAL CARE,CARE ESTABLISHMENT,OPMH - City & South,Older People Mental Health City & South,Nursing Care
Cambridgeshire County Council,08-Jul-20,51301400716,"-1,333.46",EAGLE WOOD NEUROLOGICAL CARE,CARE ESTABLISHMENT,OPMH - City & South,Older People Mental Health City & South,Nursing Care
Cambridgeshire County Council,08-Jul-20,51301400716,"-1,333.46",EAGLE WOOD NEUROLOGICAL CARE,CARE ESTABLISHMENT,OPMH - City & South,Older People Mental Health City & South,Nursing Care
Cambridgeshire County Council,08-Jul-20,51301398525,"-1,328.57",GLENNFIELD CARE CENTRE (OP),CARE ESTABLISHMENT,OP - Fenland Blocks,Fenland - Long term blocks,Residential Care
Cambridgeshire County Council,08-Jul-20,51301403783,"-1,301.34",GLENHOLME HEALTHCARE LTD,CARE ESTABLISHMENT,LD - Young Adults Team,LD - Young Adults - Care,Residential Care
Cambridgeshire County Council,08-Jul-20,51301403783,"-1,301.34",GLENHOLME HEALTHCARE LTD,CARE ESTABLISHMENT,LD - Young Adults Team,LD - Young Adults - Care,Residential Care
Cambridgeshire County Council,08-Jul-20,51301403783,"-1,301.34",GLENHOLME HEALTHCARE LTD,CARE ESTABLISHMENT,LD - Young Adults Team,LD - Young Adults - Care,Residential Care
Cambridgeshire County Council,08-Jul-20,51301403783,"-1,301.34",GLENHOLME HEALTHCARE LTD,CARE ESTABLISHMENT,LD - Young Adults Team,LD - Young Adults - Care,Residential Care
Cambridgeshire County Council,08-Jul-20,51301403783,"-1,301.34",GLENHOLME HEALTHCARE LTD,CARE ESTABLISHMENT,LD - Young Adults Team,LD - Young Adults - Care,Residential Care
Cambridgeshire County Council,08-Jul-20,51301403244,"-1,293.60",Redacted Personal Data,SERVICE USER,LD - Fenland Locality - Cost of Care,LD - Fenland  - Special Needs,Direct Payments
Cambridgeshire County Council,08-Jul-20,51301403244,"-1,293.60",Redacted Personal Data,SERVICE USER,LD - Fenland Locality - Cost of Care,LD - Fenland  - Special Needs,Direct Payments
Cambridgeshire County Council,08-Jul-20,51301403244,"-1,293.60",Redacted Personal Data,SERVICE USER,LD - Fenland Locality - Cost of Care,LD - Fenland  - Special Needs,Direct Payments
Cambridgeshire County Council,08-Jul-20,51301400766,"-1,276.44",AURORA ORCHARD MANOR,CARE ESTABLISHMENT,LD - Young Adults Team,LD - Young Adults - Care,Residential Care
Cambridgeshire County Council,08-Jul-20,51301404002,"-1,269.00",BETTER HEALTHCARE SERVICES LTD,CARE ESTABLISHMENT,OPMH - Hunts & Fens,Older People Mental Health Hunts,Homecare
Cambridgeshire County Council,08-Jul-20,51301404002,"-1,269.00",BETTER HEALTHCARE SERVICES LTD,CARE ESTABLISHMENT,OPMH - Hunts & Fens,Older People Mental Health Hunts,Homecare
Cambridgeshire County Council,08-Jul-20,51301404002,"-1,269.00",BETTER HEALTHCARE SERVICES LTD,CARE ESTABLISHMENT,OPMH - Hunts & Fens,Older People Mental Health Hunts,Homecare
Cambridgeshire County Council,08-Jul-20,51301404002,"-1,269.00",BETTER HEALTHCARE SERVICES LTD,CARE ESTABLISHMENT,OPMH - Hunts & Fens,Older People Mental Health Hunts,Homecare
Cambridgeshire County Council,08-Jul-20,51301404002,"-1,269.00",BETTER HEALTHCARE SERVICES LTD,CARE ESTABLISHMENT,OPMH - Hunts & Fens,Older People Mental Health Hunts,Homecare
Cambridgeshire County Council,08-Jul-20,51301404002,"-1,269.00",BETTER HEALTHCARE SERVICES LTD,CARE ESTABLISHMENT,OPMH - Hunts & Fens,Older People Mental Health Hunts,Homecare
Cambridgeshire County Council,08-Jul-20,51301404002,"-1,269.00",BETTER HEALTHCARE SERVICES LTD,CARE ESTABLISHMENT,OPMH - Hunts & Fens,Older People Mental Health Hunts,Homecare
Cambridgeshire County Council,08-Jul-20,51301404002,"-1,269.00",BETTER HEALTHCARE SERVICES LTD,CARE ESTABLISHMENT,OPMH - Hunts & Fens,Older People Mental Health Hunts,Homecare
Cambridgeshire County Council,08-Jul-20,51301404002,"-1,269.00",BETTER HEALTHCARE SERVICES LTD,CARE ESTABLISHMENT,OPMH - Hunts & Fens,Older People Mental Health Hunts,Homecare
Cambridgeshire County Council,08-Jul-20,51301404002,"-1,269.00",BETTER HEALTHCARE SERVICES LTD,CARE ESTABLISHMENT,OPMH - Hunts & Fens,Older People Mental Health Hunts,Homecare
Cambridgeshire County Council,08-Jul-20,51301404002,"-1,269.00",BETTER HEALTHCARE SERVICES LTD,CARE ESTABLISHMENT,OPMH - Hunts & Fens,Older People Mental Health Hunts,Homecare
Cambridgeshire County Council,08-Jul-20,51301404002,"-1,269.00",BETTER HEALTHCARE SERVICES LTD,CARE ESTABLISHMENT,OPMH - Hunts & Fens,Older People Mental Health Hunts,Homecare
Cambridgeshire County Council,08-Jul-20,51301404002,"-1,269.00",BETTER HEALTHCARE SERVICES LTD,CARE ESTABLISHMENT,OPMH - Hunts & Fens,Older People Mental Health Hunts,Homecare
Cambridgeshire County Council,08-Jul-20,51301404002,"-1,269.00",BETTER HEALTHCARE SERVICES LTD,CARE ESTABLISHMENT,OPMH - Hunts & Fens,Older People Mental Health Hunts,Homecare
Cambridgeshire County Council,08-Jul-20,51301404002,"-1,269.00",BETTER HEALTHCARE SERVICES LTD,CARE ESTABLISHMENT,OPMH - Hunts & Fens,Older People Mental Health Hunts,Homecare
Cambridgeshire County Council,08-Jul-20,51301404002,"-1,269.00",BETTER HEALTHCARE SERVICES LTD,CARE ESTABLISHMENT,OPMH - Hunts & Fens,Older People Mental Health Hunts,Homecare
Cambridgeshire County Council,08-Jul-20,51301404002,"-1,269.00",BETTER HEALTHCARE SERVICES LTD,CARE ESTABLISHMENT,OPMH - Hunts & Fens,Older People Mental Health Hunts,Homecare
Cambridgeshire County Council,08-Jul-20,51301404002,"-1,269.00",BETTER HEALTHCARE SERVICES LTD,CARE ESTABLISHMENT,OPMH - Hunts & Fens,Older People Mental Health Hunts,Homecare
Cambridgeshire County Council,08-Jul-20,51301404002,"-1,269.00",BETTER HEALTHCARE SERVICES LTD,CARE ESTABLISHMENT,OPMH - Hunts & Fens,Older People Mental Health Hunts,Homecare
Cambridgeshire County Council,08-Jul-20,51301404002,"-1,269.00",BETTER HEALTHCARE SERVICES LTD,CARE ESTABLISHMENT,OPMH - Hunts & Fens,Older People Mental Health Hunts,Homecare
Cambridgeshire County Council,08-Jul-20,51301404002,"-1,269.00",BETTER HEALTHCARE SERVICES LTD,CARE ESTABLISHMENT,OPMH - Hunts & Fens,Older People Mental Health Hunts,Homecare
Cambridgeshire County Council,08-Jul-20,51301403222,"-1,258.94",Redacted Personal Data,SERVICE USER,LD - South Locality - Cost of Care,LD - South Cambs - Care,Direct Payments
Cambridgeshire County Council,08-Jul-20,51301403222,"-1,258.94",Redacted Personal Data,SERVICE USER,LD - South Locality - Cost of Care,LD - South Cambs - Care,Direct Payments
Cambridgeshire County Council,08-Jul-20,51301403222,"-1,258.94",Redacted Personal Data,SERVICE USER,LD - South Locality - Cost of Care,LD - South Cambs - Care,Direct Payments
Cambridgeshire County Council,08-Jul-20,51301399402,"-1,250.00",ELTISLEY MANOR (PSYCARE LTD),CARE ESTABLISHMENT,AMH - Hunts & Fens,Hunts Mental Health Team,Residential Care
Cambridgeshire County Council,08-Jul-20,51301399402,"-1,250.00",ELTISLEY MANOR (PSYCARE LTD),CARE ESTABLISHMENT,AMH - Hunts & Fens,Hunts Mental Health Team,Residential Care
Cambridgeshire County Council,08-Jul-20,51301399402,"-1,250.00",ELTISLEY MANOR (PSYCARE LTD),CARE ESTABLISHMENT,AMH - Hunts & Fens,Hunts Mental Health Team,Residential Care
Cambridgeshire County Council,08-Jul-20,51301399402,"-1,250.00",ELTISLEY MANOR (PSYCARE LTD),CARE ESTABLISHMENT,AMH - Hunts & Fens,Hunts Mental Health Team,Residential Care
Cambridgeshire County Council,08-Jul-20,51301399402,"-1,250.00",ELTISLEY MANOR (PSYCARE LTD),CARE ESTABLISHMENT,AMH - Hunts & Fens,Hunts Mental Health Team,Residential Care
Cambridgeshire County Council,08-Jul-20,51301399402,"-1,250.00",ELTISLEY MANOR (PSYCARE LTD),CARE ESTABLISHMENT,AMH - Hunts & Fens,Hunts Mental Health Team,Residential Care
Cambridgeshire County Council,08-Jul-20,51301399402,"-1,250.00",ELTISLEY MANOR (PSYCARE LTD),CARE ESTABLISHMENT,AMH - Hunts & Fens,Hunts Mental Health Team,Residential Care
Cambridgeshire County Council,08-Jul-20,51301399402,"-1,250.00",ELTISLEY MANOR (PSYCARE LTD),CARE ESTABLISHMENT,AMH - Hunts & Fens,Hunts Mental Health Team,Residential Care
Cambridgeshire County Council,08-Jul-20,51301399402,"-1,250.00",ELTISLEY MANOR (PSYCARE LTD),CARE ESTABLISHMENT,AMH - Hunts & Fens,Hunts Mental Health Team,Residential Care
Cambridgeshire County Council,08-Jul-20,51301399402,"-1,250.00",ELTISLEY MANOR (PSYCARE LTD),CARE ESTABLISHMENT,AMH - Hunts & Fens,Hunts Mental Health Team,Residential Care
Cambridgeshire County Council,08-Jul-20,51301399402,"-1,250.00",ELTISLEY MANOR (PSYCARE LTD),CARE ESTABLISHMENT,AMH - Hunts & Fens,Hunts Mental Health Team,Residential Care
Cambridgeshire County Council,08-Jul-20,51301399402,"-1,250.00",ELTISLEY MANOR (PSYCARE LTD),CARE ESTABLISHMENT,AMH - Hunts & Fens,Hunts Mental Health Team,Residential Care
Cambridgeshire County Council,08-Jul-20,51301399402,"-1,250.00",ELTISLEY MANOR (PSYCARE LTD),CARE ESTABLISHMENT,AMH - Hunts & Fens,Hunts Mental Health Team,Residential Care
Cambridgeshire County Council,08-Jul-20,51301399402,"-1,250.00",ELTISLEY MANOR (PSYCARE LTD),CARE ESTABLISHMENT,AMH - Hunts & Fens,Hunts Mental Health Team,Residential Care
Cambridgeshire County Council,08-Jul-20,51301399402,"-1,250.00",ELTISLEY MANOR (PSYCARE LTD),CARE ESTABLISHMENT,AMH - Hunts & Fens,Hunts Mental Health Team,Residential Care
Cambridgeshire County Council,08-Jul-20,51301399402,"-1,250.00",ELTISLEY MANOR (PSYCARE LTD),CARE ESTABLISHMENT,AMH - Hunts & Fens,Hunts Mental Health Team,Residential Care
Cambridgeshire County Council,08-Jul-20,51301399402,"-1,250.00",ELTISLEY MANOR (PSYCARE LTD),CARE ESTABLISHMENT,AMH - Hunts & Fens,Hunts Mental Health Team,Residential Care
Cambridgeshire County Council,08-Jul-20,51301399402,"-1,250.00",ELTISLEY MANOR (PSYCARE LTD),CARE ESTABLISHMENT,AMH - Hunts & Fens,Hunts Mental Health Team,Residential Care
Cambridgeshire County Council,08-Jul-20,51301399402,"-1,250.00",ELTISLEY MANOR (PSYCARE LTD),CARE ESTABLISHMENT,AMH - Hunts & Fens,Hunts Mental Health Team,Residential Care
Cambridgeshire County Council,08-Jul-20,51301399402,"-1,250.00",ELTISLEY MANOR (PSYCARE LTD),CARE ESTABLISHMENT,AMH - Hunts & Fens,Hunts Mental Health Team,Residential Care
Cambridgeshire County Council,08-Jul-20,51301399402,"-1,250.00",ELTISLEY MANOR (PSYCARE LTD),CARE ESTABLISHMENT,AMH - Hunts & Fens,Hunts Mental Health Team,Residential Care
Cambridgeshire County Council,08-Jul-20,51301399402,"-1,250.00",ELTISLEY MANOR (PSYCARE LTD),CARE ESTABLISHMENT,AMH - Hunts & Fens,Hunts Mental Health Team,Residential Care
Cambridgeshire County Council,08-Jul-20,51301399402,"-1,250.00",ELTISLEY MANOR (PSYCARE LTD),CARE ESTABLISHMENT,AMH - Hunts & Fens,Hunts Mental Health Team,Residential Care
Cambridgeshire County Council,08-Jul-20,51301399402,"-1,250.00",ELTISLEY MANOR (PSYCARE LTD),CARE ESTABLISHMENT,AMH - Hunts & Fens,Hunts Mental Health Team,Residential Care
Cambridgeshire County Council,08-Jul-20,51301399402,"-1,250.00",ELTISLEY MANOR (PSYCARE LTD),CARE ESTABLISHMENT,AMH - Hunts & Fens,Hunts Mental Health Team,Residential Care
Cambridgeshire County Council,08-Jul-20,51301399402,"-1,250.00",ELTISLEY MANOR (PSYCARE LTD),CARE ESTABLISHMENT,AMH - Hunts & Fens,Hunts Mental Health Team,Residential Care
Cambridgeshire County Council,08-Jul-20,51301399402,"-1,250.00",ELTISLEY MANOR (PSYCARE LTD),CARE ESTABLISHMENT,AMH - Hunts & Fens,Hunts Mental Health Team,Residential Care
Cambridgeshire County Council,08-Jul-20,51301399402,"-1,250.00",ELTISLEY MANOR (PSYCARE LTD),CARE ESTABLISHMENT,AMH - Hunts & Fens,Hunts Mental Health Team,Residential Care
Cambridgeshire County Council,08-Jul-20,51301399402,"-1,250.00",ELTISLEY MANOR (PSYCARE LTD),CARE ESTABLISHMENT,AMH - Hunts & Fens,Hunts Mental Health Team,Residential Care
Cambridgeshire County Council,08-Jul-20,51301399402,"-1,250.00",ELTISLEY MANOR (PSYCARE LTD),CARE ESTABLISHMENT,AMH - Hunts & Fens,Hunts Mental Health Team,Residential Care
Cambridgeshire County Council,08-Jul-20,51301399402,"-1,250.00",ELTISLEY MANOR (PSYCARE LTD),CARE ESTABLISHMENT,AMH - Hunts & Fens,Hunts Mental Health Team,Residential Care
Cambridgeshire County Council,08-Jul-20,51301399402,"-1,250.00",ELTISLEY MANOR (PSYCARE LTD),CARE ESTABLISHMENT,AMH - Hunts & Fens,Hunts Mental Health Team,Residential Care
Cambridgeshire County Council,08-Jul-20,51301399402,"-1,250.00",ELTISLEY MANOR (PSYCARE LTD),CARE ESTABLISHMENT,AMH - Hunts & Fens,Hunts Mental Health Team,Residential Care
Cambridgeshire County Council,08-Jul-20,51301399402,"-1,250.00",ELTISLEY MANOR (PSYCARE LTD),CARE ESTABLISHMENT,AMH - Hunts & Fens,Hunts Mental Health Team,Residential Care
Cambridgeshire County Council,08-Jul-20,51301399402,"-1,250.00",ELTISLEY MANOR (PSYCARE LTD),CARE ESTABLISHMENT,AMH - Hunts & Fens,Hunts Mental Health Team,Residential Care
Cambridgeshire County Council,08-Jul-20,51301399402,"-1,250.00",ELTISLEY MANOR (PSYCARE LTD),CARE ESTABLISHMENT,AMH - Hunts & Fens,Hunts Mental Health Team,Residential Care
Cambridgeshire County Council,08-Jul-20,51301399402,"-1,250.00",ELTISLEY MANOR (PSYCARE LTD),CARE ESTABLISHMENT,AMH - Hunts & Fens,Hunts Mental Health Team,Residential Care
Cambridgeshire County Council,08-Jul-20,51301399402,"-1,250.00",ELTISLEY MANOR (PSYCARE LTD),CARE ESTABLISHMENT,AMH - Hunts & Fens,Hunts Mental Health Team,Residential Care
Cambridgeshire County Council,08-Jul-20,51301401861,"-1,244.26",Redacted Personal Data,SERVICE USER,LD - Hunts Locality - Cost of Care,LD - Huntingdonshire - Special Needs,Direct Payments
Cambridgeshire County Council,08-Jul-20,51301399227,"-1,232.86",CONQUEST CARE HOMES PETERBOROUGH,CARE ESTABLISHMENT,LD - Young Adults Team,LD - Young Adults - Special Needs,Residential Care
Cambridgeshire County Council,08-Jul-20,51301399227,"-1,232.86",CONQUEST CARE HOMES PETERBOROUGH,CARE ESTABLISHMENT,LD - Young Adults Team,LD - Young Adults - Special Needs,Residential Care
Cambridgeshire County Council,08-Jul-20,51301403116,"-1,218.06",Redacted Personal Data,SERVICE USER,Physical Disablity - Cost of Care,Countywide PD Service - Care,Direct Payments
Cambridgeshire County Council,08-Jul-20,51301403116,"-1,218.06",Redacted Personal Data,SERVICE USER,Physical Disablity - Cost of Care,Countywide PD Service - Care,Direct Payments
Cambridgeshire County Council,08-Jul-20,51301403116,"-1,218.06",Redacted Personal Data,SERVICE USER,Physical Disablity - Cost of Care,Countywide PD Service - Care,Direct Payments
Cambridgeshire County Council,08-Jul-20,51301403194,"-1,215.32",Redacted Personal Data,SERVICE USER,Physical Disablity - Cost of Care,Countywide PD Service - Care,Direct Payments
Cambridgeshire County Council,08-Jul-20,51301403194,"-1,215.32",Redacted Personal Data,SERVICE USER,Physical Disablity - Cost of Care,Countywide PD Service - Care,Direct Payments
Cambridgeshire County Council,08-Jul-20,51301403194,"-1,215.32",Redacted Personal Data,SERVICE USER,Physical Disablity - Cost of Care,Countywide PD Service - Care,Direct Payments
Cambridgeshire County Council,08-Jul-20,51301403102,"-1,206.75",Redacted Personal Data,SERVICE USER,LD - South Locality - Cost of Care,LD - South Cambs - Care,Direct Payments
Cambridgeshire County Council,08-Jul-20,51301403208,"-1,204.94",Redacted Personal Data,SERVICE USER,Physical Disablity - Cost of Care,Countywide PD Service - Care,Direct Payments
Cambridgeshire County Council,08-Jul-20,51301403208,"-1,204.94",Redacted Personal Data,SERVICE USER,Physical Disablity - Cost of Care,Countywide PD Service - Care,Direct Payments
Cambridgeshire County Council,08-Jul-20,51301403208,"-1,204.94",Redacted Personal Data,SERVICE USER,Physical Disablity - Cost of Care,Countywide PD Service - Care,Direct Payments
Cambridgeshire County Council,08-Jul-20,51301401028,"-1,200.00",OAKLANDS CARE HOME,CARE ESTABLISHMENT,OP - East Cambs Locality - Cost of Care,East Cambs - O P Team - Care,Nursing Care
Cambridgeshire County Council,08-Jul-20,51301401028,"-1,200.00",OAKLANDS CARE HOME,CARE ESTABLISHMENT,OP - East Cambs Locality - Cost of Care,East Cambs - O P Team - Care,Nursing Care
Cambridgeshire County Council,08-Jul-20,51301401028,"-1,200.00",OAKLANDS CARE HOME,CARE ESTABLISHMENT,OP - East Cambs Locality - Cost of Care,East Cambs - O P Team - Care,Nursing Care
Cambridgeshire County Council,08-Jul-20,51301401028,"-1,200.00",OAKLANDS CARE HOME,CARE ESTABLISHMENT,OP - East Cambs Locality - Cost of Care,East Cambs - O P Team - Care,Nursing Care
Cambridgeshire County Council,08-Jul-20,51301401028,"-1,200.00",OAKLANDS CARE HOME,CARE ESTABLISHMENT,OP - East Cambs Locality - Cost of Care,East Cambs - O P Team - Care,Nursing Care
Cambridgeshire County Council,08-Jul-20,51301401028,"-1,200.00",OAKLANDS CARE HOME,CARE ESTABLISHMENT,OP - East Cambs Locality - Cost of Care,East Cambs - O P Team - Care,Nursing Care
Cambridgeshire County Council,08-Jul-20,51301401028,"-1,200.00",OAKLANDS CARE HOME,CARE ESTABLISHMENT,OP - East Cambs Locality - Cost of Care,East Cambs - O P Team - Care,Nursing Care
Cambridgeshire County Council,08-Jul-20,51301401028,"-1,200.00",OAKLANDS CARE HOME,CARE ESTABLISHMENT,OP - East Cambs Locality - Cost of Care,East Cambs - O P Team - Care,Nursing Care
Cambridgeshire County Council,08-Jul-20,51301401028,"-1,200.00",OAKLANDS CARE HOME,CARE ESTABLISHMENT,OP - East Cambs Locality - Cost of Care,East Cambs - O P Team - Care,Nursing Care
Cambridgeshire County Council,08-Jul-20,51301403854,"-1,200.00",WOODLANDS CARE CENTRE,CARE ESTABLISHMENT,OPMH - Under 65,Older People Mental Health - Under 65's,Residential Care
Cambridgeshire County Council,08-Jul-20,51301403854,"-1,200.00",WOODLANDS CARE CENTRE,CARE ESTABLISHMENT,OPMH - Under 65,Older People Mental Health - Under 65's,Residential Care
Cambridgeshire County Council,08-Jul-20,51301403854,"-1,200.00",WOODLANDS CARE CENTRE,CARE ESTABLISHMENT,OPMH - Under 65,Older People Mental Health - Under 65's,Residential Care
Cambridgeshire County Council,08-Jul-20,51301403854,"-1,200.00",WOODLANDS CARE CENTRE,CARE ESTABLISHMENT,OPMH - Under 65,Older People Mental Health - Under 65's,Residential Care
Cambridgeshire County Council,08-Jul-20,51301403854,"-1,200.00",WOODLANDS CARE CENTRE,CARE ESTABLISHMENT,OPMH - Under 65,Older People Mental Health - Under 65's,Residential Care
Cambridgeshire County Council,08-Jul-20,51301403854,"-1,200.00",WOODLANDS CARE CENTRE,CARE ESTABLISHMENT,OPMH - Under 65,Older People Mental Health - Under 65's,Residential Care
Cambridgeshire County Council,08-Jul-20,51301403854,"-1,200.00",WOODLANDS CARE CENTRE,CARE ESTABLISHMENT,OPMH - Under 65,Older People Mental Health - Under 65's,Residential Care
Cambridgeshire County Council,08-Jul-20,51301403854,"-1,200.00",WOODLANDS CARE CENTRE,CARE ESTABLISHMENT,OPMH - Under 65,Older People Mental Health - Under 65's,Residential Care
Cambridgeshire County Council,08-Jul-20,51301403854,"-1,200.00",WOODLANDS CARE CENTRE,CARE ESTABLISHMENT,OPMH - Under 65,Older People Mental Health - Under 65's,Residential Care
Cambridgeshire County Council,17-Jul-20,51301407302,"-1,200.00",Redacted Personal Data,SERVICE USER,Physical Disablity - Cost of Care,Countywide PD Service - Care,Direct Payments
Cambridgeshire County Council,17-Jul-20,51301407302,"-1,200.00",Redacted Personal Data,SERVICE USER,Physical Disablity - Cost of Care,Countywide PD Service - Care,Direct Payments
Cambridgeshire County Council,17-Jul-20,51301407302,"-1,200.00",Redacted Personal Data,SERVICE USER,Physical Disablity - Cost of Care,Countywide PD Service - Care,Direct Payments
Cambridgeshire County Council,08-Jul-20,51301403301,"-1,160.74",Redacted Personal Data,SERVICE USER,LD - South Locality - Cost of Care,LD - South Cambs - Care,Direct Payments
Cambridgeshire County Council,08-Jul-20,51301403011,"-1,150.00",BARCHESTER HEALTHCARE HOMES LTD,CARE ESTABLISHMENT,OP - City & South Locality - Cost of Care,Older People - City & South - Care,Short Term Other
Cambridgeshire County Council,08-Jul-20,51301403249,"-1,145.38",Redacted Personal Data,SERVICE USER,LD - Hunts Locality - Cost of Care,LD - Huntingdonshire - Care,Direct Payments
Cambridgeshire County Council,08-Jul-20,51301403249,"-1,145.38",Redacted Personal Data,SERVICE USER,LD - Hunts Locality - Cost of Care,LD - Huntingdonshire - Care,Direct Payments
Cambridgeshire County Council,08-Jul-20,51301403249,"-1,145.38",Redacted Personal Data,SERVICE USER,LD - Hunts Locality - Cost of Care,LD - Huntingdonshire - Care,Direct Payments
Cambridgeshire County Council,08-Jul-20,51301401986,"-1,138.50",Redacted Personal Data,INDIVIDUAL,OP - City & South Locality - Cost of Care,Older People - City & South - Care,Direct Payments
Cambridgeshire County Council,08-Jul-20,51301401986,"-1,138.50",Redacted Personal Data,INDIVIDUAL,OP - City & South Locality - Cost of Care,Older People - City & South - Care,Direct Payments
Cambridgeshire County Council,08-Jul-20,51301401986,"-1,138.50",Redacted Personal Data,INDIVIDUAL,OP - City & South Locality - Cost of Care,Older People - City & South - Care,Direct Payments
Cambridgeshire County Council,08-Jul-20,51301403433,"-1,117.85",Redacted Personal Data,FOSTER PARENT,LD - Hunts Locality - Cost of Care,LD - Huntingdonshire - Care,Direct Payments
Cambridgeshire County Council,08-Jul-20,51301403433,"-1,117.85",Redacted Personal Data,FOSTER PARENT,LD - Hunts Locality - Cost of Care,LD - Huntingdonshire - Care,Direct Payments
Cambridgeshire County Council,08-Jul-20,51301403433,"-1,117.85",Redacted Personal Data,FOSTER PARENT,LD - Hunts Locality - Cost of Care,LD - Huntingdonshire - Care,Direct Payments
Cambridgeshire County Council,01-Jul-20,51301394771,"-1,114.68",24/7 Support UK Limited,CARE ESTABLISHMENT,Unaccompanied Asylum Seeking Children,Unaccompanied Asylum Seeking Children <18,Asylum Seekers
Cambridgeshire County Council,01-Jul-20,51301394779,"-1,114.68",24/7 Support UK Limited,CARE ESTABLISHMENT,Unaccompanied Asylum Seeking Children,Unaccompanied Asylum Seeking Children <18,Asylum Seekers
Cambridgeshire County Council,01-Jul-20,51301394775,"-1,114.68",24/7 Support UK Limited,CARE ESTABLISHMENT,Unaccompanied Asylum Seeking Children,Unaccompanied Asylum Seeking Children <18,Asylum Seekers
Cambridgeshire County Council,08-Jul-20,51301403136,"-1,105.61",Redacted Personal Data,INDIVIDUAL,LD - Fenland Locality - Cost of Care,LD - Fenland  - Special Needs,Direct Payments
Cambridgeshire County Council,08-Jul-20,51301403136,"-1,105.61",Redacted Personal Data,INDIVIDUAL,LD - Fenland Locality - Cost of Care,LD - Fenland  - Special Needs,Direct Payments
Cambridgeshire County Council,08-Jul-20,51301403136,"-1,105.61",Redacted Personal Data,INDIVIDUAL,LD - Fenland Locality - Cost of Care,LD - Fenland  - Special Needs,Direct Payments
Cambridgeshire County Council,08-Jul-20,51301403247,"-1,100.00",Redacted Personal Data,SERVICE USER,Physical Disablity - Cost of Care,Countywide PD Service - Care,Direct Payments
Cambridgeshire County Council,08-Jul-20,51301403247,"-1,100.00",Redacted Personal Data,SERVICE USER,Physical Disablity - Cost of Care,Countywide PD Service - Care,Direct Payments
Cambridgeshire County Council,08-Jul-20,51301400717,"-1,100.00",Neem Tree Care Centre,COMPANY,Physical Disablity - Cost of Care,Countywide PD Service - Care,Nursing Care
Cambridgeshire County Council,08-Jul-20,51301400717,"-1,100.00",Neem Tree Care Centre,COMPANY,Physical Disablity - Cost of Care,Countywide PD Service - Care,Nursing Care
Cambridgeshire County Council,08-Jul-20,51301400717,"-1,100.00",Neem Tree Care Centre,COMPANY,Physical Disablity - Cost of Care,Countywide PD Service - Care,Nursing Care
Cambridgeshire County Council,08-Jul-20,51301400717,"-1,100.00",Neem Tree Care Centre,COMPANY,Physical Disablity - Cost of Care,Countywide PD Service - Care,Nursing Care
Cambridgeshire County Council,08-Jul-20,51301400717,"-1,100.00",Neem Tree Care Centre,COMPANY,Physical Disablity - Cost of Care,Countywide PD Service - Care,Nursing Care
Cambridgeshire County Council,08-Jul-20,51301400717,"-1,100.00",Neem Tree Care Centre,COMPANY,Physical Disablity - Cost of Care,Countywide PD Service - Care,Nursing Care
Cambridgeshire County Council,08-Jul-20,51301400717,"-1,100.00",Neem Tree Care Centre,COMPANY,Physical Disablity - Cost of Care,Countywide PD Service - Care,Nursing Care
Cambridgeshire County Council,08-Jul-20,51301400717,"-1,100.00",Neem Tree Care Centre,COMPANY,Physical Disablity - Cost of Care,Countywide PD Service - Care,Nursing Care
Cambridgeshire County Council,08-Jul-20,51301400717,"-1,100.00",Neem Tree Care Centre,COMPANY,Physical Disablity - Cost of Care,Countywide PD Service - Care,Nursing Care
Cambridgeshire County Council,08-Jul-20,51301400717,"-1,100.00",Neem Tree Care Centre,COMPANY,Physical Disablity - Cost of Care,Countywide PD Service - Care,Nursing Care
Cambridgeshire County Council,08-Jul-20,51301400717,"-1,100.00",Neem Tree Care Centre,COMPANY,Physical Disablity - Cost of Care,Countywide PD Service - Care,Nursing Care
Cambridgeshire County Council,08-Jul-20,51301400717,"-1,100.00",Neem Tree Care Centre,COMPANY,Physical Disablity - Cost of Care,Countywide PD Service - Care,Nursing Care
Cambridgeshire County Council,08-Jul-20,51301400717,"-1,100.00",Neem Tree Care Centre,COMPANY,Physical Disablity - Cost of Care,Countywide PD Service - Care,Nursing Care
Cambridgeshire County Council,08-Jul-20,51301403247,"-1,100.00",Redacted Personal Data,SERVICE USER,Physical Disablity - Cost of Care,Countywide PD Service - Care,Direct Payments
Cambridgeshire County Council,08-Jul-20,51301400717,"-1,100.00",Neem Tree Care Centre,COMPANY,Physical Disablity - Cost of Care,Countywide PD Service - Care,Nursing Care
Cambridgeshire County Council,08-Jul-20,51301400717,"-1,100.00",Neem Tree Care Centre,COMPANY,Physical Disablity - Cost of Care,Countywide PD Service - Care,Nursing Care
Cambridgeshire County Council,08-Jul-20,51301400717,"-1,100.00",Neem Tree Care Centre,COMPANY,Physical Disablity - Cost of Care,Countywide PD Service - Care,Nursing Care
Cambridgeshire County Council,08-Jul-20,51301400717,"-1,100.00",Neem Tree Care Centre,COMPANY,Physical Disablity - Cost of Care,Countywide PD Service - Care,Nursing Care
Cambridgeshire County Council,08-Jul-20,51301400717,"-1,100.00",Neem Tree Care Centre,COMPANY,Physical Disablity - Cost of Care,Countywide PD Service - Care,Nursing Care
Cambridgeshire County Council,08-Jul-20,51301400717,"-1,100.00",Neem Tree Care Centre,COMPANY,Physical Disablity - Cost of Care,Countywide PD Service - Care,Nursing Care
Cambridgeshire County Council,08-Jul-20,51301400717,"-1,100.00",Neem Tree Care Centre,COMPANY,Physical Disablity - Cost of Care,Countywide PD Service - Care,Nursing Care
Cambridgeshire County Council,08-Jul-20,51301400717,"-1,100.00",Neem Tree Care Centre,COMPANY,Physical Disablity - Cost of Care,Countywide PD Service - Care,Nursing Care
Cambridgeshire County Council,08-Jul-20,51301400717,"-1,100.00",Neem Tree Care Centre,COMPANY,Physical Disablity - Cost of Care,Countywide PD Service - Care,Nursing Care
Cambridgeshire County Council,08-Jul-20,51301400717,"-1,100.00",Neem Tree Care Centre,COMPANY,Physical Disablity - Cost of Care,Countywide PD Service - Care,Nursing Care
Cambridgeshire County Council,08-Jul-20,51301400717,"-1,100.00",Neem Tree Care Centre,COMPANY,Physical Disablity - Cost of Care,Countywide PD Service - Care,Nursing Care
Cambridgeshire County Council,08-Jul-20,51301400717,"-1,100.00",Neem Tree Care Centre,COMPANY,Physical Disablity - Cost of Care,Countywide PD Service - Care,Nursing Care
Cambridgeshire County Council,08-Jul-20,51301400717,"-1,100.00",Neem Tree Care Centre,COMPANY,Physical Disablity - Cost of Care,Countywide PD Service - Care,Nursing Care
Cambridgeshire County Council,08-Jul-20,51301400717,"-1,100.00",Neem Tree Care Centre,COMPANY,Physical Disablity - Cost of Care,Countywide PD Service - Care,Nursing Care
Cambridgeshire County Council,08-Jul-20,51301400717,"-1,100.00",Neem Tree Care Centre,COMPANY,Physical Disablity - Cost of Care,Countywide PD Service - Care,Nursing Care
Cambridgeshire County Council,08-Jul-20,51301400717,"-1,100.00",Neem Tree Care Centre,COMPANY,Physical Disablity - Cost of Care,Countywide PD Service - Care,Nursing Care
Cambridgeshire County Council,08-Jul-20,51301400717,"-1,100.00",Neem Tree Care Centre,COMPANY,Physical Disablity - Cost of Care,Countywide PD Service - Care,Nursing Care
Cambridgeshire County Council,08-Jul-20,51301400717,"-1,100.00",Neem Tree Care Centre,COMPANY,Physical Disablity - Cost of Care,Countywide PD Service - Care,Nursing Care
Cambridgeshire County Council,08-Jul-20,51301400717,"-1,100.00",Neem Tree Care Centre,COMPANY,Physical Disablity - Cost of Care,Countywide PD Service - Care,Nursing Care
Cambridgeshire County Council,08-Jul-20,51301400717,"-1,100.00",Neem Tree Care Centre,COMPANY,Physical Disablity - Cost of Care,Countywide PD Service - Care,Nursing Care
Cambridgeshire County Council,08-Jul-20,51301403168,"-1,094.41",Redacted Personal Data,SERVICE USER,LD - South Locality - Cost of Care,LD - South Cambs - Care,Direct Payments
Cambridgeshire County Council,08-Jul-20,51301403168,"-1,094.41",Redacted Personal Data,SERVICE USER,LD - South Locality - Cost of Care,LD - South Cambs - Care,Direct Payments
Cambridgeshire County Council,08-Jul-20,51301403168,"-1,094.41",Redacted Personal Data,SERVICE USER,LD - South Locality - Cost of Care,LD - South Cambs - Care,Direct Payments
Cambridgeshire County Council,08-Jul-20,51301403082,"-1,093.69",Redacted Personal Data,SERVICE USER,LD - East Locality - Cost of Care,LD - East Cambs - Care,Direct Payments
Cambridgeshire County Council,08-Jul-20,51301403373,"-1,092.64",Redacted Personal Data,PARENT/GUARDIAN,LD - Hunts Locality - Cost of Care,LD - Huntingdonshire - Care,Direct Payments
Cambridgeshire County Council,08-Jul-20,51301403373,"-1,092.64",Redacted Personal Data,PARENT/GUARDIAN,LD - Hunts Locality - Cost of Care,LD - Huntingdonshire - Care,Direct Payments
Cambridgeshire County Council,08-Jul-20,51301403373,"-1,092.64",Redacted Personal Data,PARENT/GUARDIAN,LD - Hunts Locality - Cost of Care,LD - Huntingdonshire - Care,Direct Payments
Cambridgeshire County Council,08-Jul-20,51301403111,"-1,088.29",Redacted Personal Data,SERVICE USER,LD - South Locality - Cost of Care,LD - South Cambs - Care,Direct Payments
Cambridgeshire County Council,08-Jul-20,51301401439,"-1,088.20",Redacted Personal Data,INDIVIDUAL,AMH - Hunts & Fens,Hunts Mental Health Team,Direct Payments
Cambridgeshire County Council,08-Jul-20,51301401439,"-1,088.20",Redacted Personal Data,INDIVIDUAL,AMH - Hunts & Fens,Hunts Mental Health Team,Direct Payments
Cambridgeshire County Council,08-Jul-20,51301401439,"-1,088.20",Redacted Personal Data,INDIVIDUAL,AMH - Hunts & Fens,Hunts Mental Health Team,Direct Payments
Cambridgeshire County Council,08-Jul-20,51301402507,"-1,079.06",WESTMINSTER HOMECARE LIMITED,CARE ESTABLISHMENT,OP - Hunts Locality - Cost of Care,Hunts OP Team - Care,Domiciliary Care
Cambridgeshire County Council,08-Jul-20,51301403319,"-1,077.99",Redacted Personal Data,INDIVIDUAL,LD - Young Adults Team,LD - Young Adults - Care,Direct Payments
Cambridgeshire County Council,08-Jul-20,51301403319,"-1,077.99",Redacted Personal Data,INDIVIDUAL,LD - Young Adults Team,LD - Young Adults - Care,Direct Payments
Cambridgeshire County Council,08-Jul-20,51301403319,"-1,077.99",Redacted Personal Data,INDIVIDUAL,LD - Young Adults Team,LD - Young Adults - Care,Direct Payments
Cambridgeshire County Council,08-Jul-20,51301403319,"-1,077.99",Redacted Personal Data,INDIVIDUAL,LD - Young Adults Team,LD - Young Adults - Care,Direct Payments
Cambridgeshire County Council,08-Jul-20,51301403319,"-1,077.99",Redacted Personal Data,INDIVIDUAL,LD - Young Adults Team,LD - Young Adults - Care,Direct Payments
Cambridgeshire County Council,08-Jul-20,51301403319,"-1,077.99",Redacted Personal Data,INDIVIDUAL,LD - Young Adults Team,LD - Young Adults - Care,Direct Payments
Cambridgeshire County Council,08-Jul-20,51301403319,"-1,077.99",Redacted Personal Data,INDIVIDUAL,LD - Young Adults Team,LD - Young Adults - Care,Direct Payments
Cambridgeshire County Council,08-Jul-20,51301403319,"-1,077.99",Redacted Personal Data,INDIVIDUAL,LD - Young Adults Team,LD - Young Adults - Care,Direct Payments
Cambridgeshire County Council,08-Jul-20,51301403319,"-1,077.99",Redacted Personal Data,INDIVIDUAL,LD - Young Adults Team,LD - Young Adults - Care,Direct Payments
Cambridgeshire County Council,08-Jul-20,51301403319,"-1,077.99",Redacted Personal Data,INDIVIDUAL,LD - Young Adults Team,LD - Young Adults - Care,Direct Payments
Cambridgeshire County Council,08-Jul-20,51301403319,"-1,077.99",Redacted Personal Data,INDIVIDUAL,LD - Young Adults Team,LD - Young Adults - Care,Direct Payments
Cambridgeshire County Council,08-Jul-20,51301403319,"-1,077.99",Redacted Personal Data,INDIVIDUAL,LD - Young Adults Team,LD - Young Adults - Care,Direct Payments
Cambridgeshire County Council,08-Jul-20,51301403319,"-1,077.99",Redacted Personal Data,INDIVIDUAL,LD - Young Adults Team,LD - Young Adults - Care,Direct Payments
Cambridgeshire County Council,08-Jul-20,51301400308,"-1,071.43",ETHELDRED HOUSE,CARE ESTABLISHMENT,OPMH - City & South,Older People Mental Health City & South,Nursing Care
Cambridgeshire County Council,08-Jul-20,51301399227,"-1,056.74",CONQUEST CARE HOMES PETERBOROUGH,CARE ESTABLISHMENT,LD - Young Adults Team,LD - Young Adults - Special Needs,Residential Care
Cambridgeshire County Council,08-Jul-20,51301403311,"-1,051.05",Redacted Personal Data,SERVICE USER,Physical Disablity - Cost of Care,Countywide PD Service - Care,Direct Payments
Cambridgeshire County Council,08-Jul-20,51301403311,"-1,051.05",Redacted Personal Data,SERVICE USER,Physical Disablity - Cost of Care,Countywide PD Service - Care,Direct Payments
Cambridgeshire County Council,08-Jul-20,51301403311,"-1,051.05",Redacted Personal Data,SERVICE USER,Physical Disablity - Cost of Care,Countywide PD Service - Care,Direct Payments
Cambridgeshire County Council,08-Jul-20,51301399790,"-1,050.00",GLENNFIELD CARE CENTRE (OP),CARE ESTABLISHMENT,Strategic Management - Adults,Adults Assistant Director,Nursing Care
Cambridgeshire County Council,08-Jul-20,51301399790,"-1,050.00",GLENNFIELD CARE CENTRE (OP),CARE ESTABLISHMENT,Strategic Management - Adults,Adults Assistant Director,Nursing Care
Cambridgeshire County Council,08-Jul-20,51301399790,"-1,050.00",GLENNFIELD CARE CENTRE (OP),CARE ESTABLISHMENT,Strategic Management - Adults,Adults Assistant Director,Nursing Care
Cambridgeshire County Council,08-Jul-20,51301399790,"-1,050.00",GLENNFIELD CARE CENTRE (OP),CARE ESTABLISHMENT,Strategic Management - Adults,Adults Assistant Director,Nursing Care
Cambridgeshire County Council,08-Jul-20,51301399790,"-1,050.00",GLENNFIELD CARE CENTRE (OP),CARE ESTABLISHMENT,Strategic Management - Adults,Adults Assistant Director,Nursing Care
Cambridgeshire County Council,08-Jul-20,51301399790,"-1,050.00",GLENNFIELD CARE CENTRE (OP),CARE ESTABLISHMENT,Strategic Management - Adults,Adults Assistant Director,Nursing Care
Cambridgeshire County Council,08-Jul-20,51301399790,"-1,050.00",GLENNFIELD CARE CENTRE (OP),CARE ESTABLISHMENT,Strategic Management - Adults,Adults Assistant Director,Nursing Care
Cambridgeshire County Council,08-Jul-20,51301399790,"-1,050.00",GLENNFIELD CARE CENTRE (OP),CARE ESTABLISHMENT,Strategic Management - Adults,Adults Assistant Director,Nursing Care
Cambridgeshire County Council,08-Jul-20,51301399790,"-1,050.00",GLENNFIELD CARE CENTRE (OP),CARE ESTABLISHMENT,Strategic Management - Adults,Adults Assistant Director,Nursing Care
Cambridgeshire County Council,08-Jul-20,51301399790,"-1,050.00",GLENNFIELD CARE CENTRE (OP),CARE ESTABLISHMENT,Strategic Management - Adults,Adults Assistant Director,Nursing Care
Cambridgeshire County Council,08-Jul-20,51301399790,"-1,050.00",GLENNFIELD CARE CENTRE (OP),CARE ESTABLISHMENT,Strategic Management - Adults,Adults Assistant Director,Nursing Care
Cambridgeshire County Council,08-Jul-20,51301399790,"-1,050.00",GLENNFIELD CARE CENTRE (OP),CARE ESTABLISHMENT,Strategic Management - Adults,Adults Assistant Director,Nursing Care
Cambridgeshire County Council,08-Jul-20,51301399790,"-1,050.00",GLENNFIELD CARE CENTRE (OP),CARE ESTABLISHMENT,Strategic Management - Adults,Adults Assistant Director,Nursing Care
Cambridgeshire County Council,08-Jul-20,51301399790,"-1,050.00",GLENNFIELD CARE CENTRE (OP),CARE ESTABLISHMENT,Strategic Management - Adults,Adults Assistant Director,Nursing Care
Cambridgeshire County Council,08-Jul-20,51301399790,"-1,050.00",GLENNFIELD CARE CENTRE (OP),CARE ESTABLISHMENT,Strategic Management - Adults,Adults Assistant Director,Nursing Care
Cambridgeshire County Council,08-Jul-20,51301399790,"-1,050.00",GLENNFIELD CARE CENTRE (OP),CARE ESTABLISHMENT,Strategic Management - Adults,Adults Assistant Director,Nursing Care
Cambridgeshire County Council,08-Jul-20,51301403956,"-1,049.72",HUNTINGDON MENCAP LTD,CARE ESTABLISHMENT,LD - Hunts Locality - Cost of Care,LD - Huntingdonshire - Care,Domiciliary Care
Cambridgeshire County Council,08-Jul-20,51301403035,"-1,034.44",SOHAM LODGE,CARE ESTABLISHMENT,Strategic Management - Adults,Adults Assistant Director,Short Term Other
Cambridgeshire County Council,08-Jul-20,51301403035,"-1,034.44",SOHAM LODGE,CARE ESTABLISHMENT,Strategic Management - Adults,Adults Assistant Director,Short Term Other
Cambridgeshire County Council,08-Jul-20,51301403035,"-1,034.44",SOHAM LODGE,CARE ESTABLISHMENT,Strategic Management - Adults,Adults Assistant Director,Short Term Other
Cambridgeshire County Council,08-Jul-20,51301403035,"-1,034.44",SOHAM LODGE,CARE ESTABLISHMENT,Strategic Management - Adults,Adults Assistant Director,Short Term Other
Cambridgeshire County Council,08-Jul-20,51301403128,"-1,031.56",Redacted Personal Data,SERVICE USER,Physical Disablity - Cost of Care,Countywide PD Service - Care,Direct Payments
Cambridgeshire County Council,08-Jul-20,51301403128,"-1,031.56",Redacted Personal Data,SERVICE USER,Physical Disablity - Cost of Care,Countywide PD Service - Care,Direct Payments
Cambridgeshire County Council,08-Jul-20,51301403128,"-1,031.56",Redacted Personal Data,SERVICE USER,Physical Disablity - Cost of Care,Countywide PD Service - Care,Direct Payments
Cambridgeshire County Council,08-Jul-20,51301403072,"-1,028.63",Redacted Personal Data,SERVICE USER,Physical Disablity - Cost of Care,Countywide PD Service - Care,Direct Payments
Cambridgeshire County Council,08-Jul-20,51301403072,"-1,028.63",Redacted Personal Data,SERVICE USER,Physical Disablity - Cost of Care,Countywide PD Service - Care,Direct Payments
Cambridgeshire County Council,08-Jul-20,51301403072,"-1,028.63",Redacted Personal Data,SERVICE USER,Physical Disablity - Cost of Care,Countywide PD Service - Care,Direct Payments
Cambridgeshire County Council,08-Jul-20,51301403381,"-1,026.67",Redacted Personal Data,SERVICE USER,LD - South Locality - Cost of Care,LD - South Cambs - Care,Direct Payments
Cambridgeshire County Council,08-Jul-20,51301403381,"-1,026.67",Redacted Personal Data,SERVICE USER,LD - South Locality - Cost of Care,LD - South Cambs - Care,Direct Payments
Cambridgeshire County Council,08-Jul-20,51301403381,"-1,026.67",Redacted Personal Data,SERVICE USER,LD - South Locality - Cost of Care,LD - South Cambs - Care,Direct Payments
Cambridgeshire County Council,08-Jul-20,51301403270,"-1,020.78",Redacted Personal Data,SERVICE USER,LD - South Locality - Cost of Care,LD - South Cambs - Care,Direct Payments
Cambridgeshire County Council,08-Jul-20,51301403489,"-1,018.88",Redacted Personal Data,SERVICE USER,LD - East Locality - Cost of Care,LD - East Cambs - Care,Direct Payments
Cambridgeshire County Council,08-Jul-20,51301403489,"-1,018.88",Redacted Personal Data,SERVICE USER,LD - East Locality - Cost of Care,LD - East Cambs - Care,Direct Payments
Cambridgeshire County Council,08-Jul-20,51301403489,"-1,018.88",Redacted Personal Data,SERVICE USER,LD - East Locality - Cost of Care,LD - East Cambs - Care,Direct Payments
Cambridgeshire County Council,08-Jul-20,51301402638,"-1,011.20",THE EDMUND TRUST,CARE ESTABLISHMENT,LD - South Locality - Cost of Care,LD - South Cambs - Care,Supported Living
Cambridgeshire County Council,08-Jul-20,51301402638,"-1,011.20",THE EDMUND TRUST,CARE ESTABLISHMENT,LD - South Locality - Cost of Care,LD - South Cambs - Care,Supported Living
Cambridgeshire County Council,08-Jul-20,51301402638,"-1,011.20",THE EDMUND TRUST,CARE ESTABLISHMENT,LD - South Locality - Cost of Care,LD - South Cambs - Care,Supported Living
Cambridgeshire County Council,08-Jul-20,51301403483,"-1,006.43",Redacted Personal Data,SERVICE USER,LD - Young Adults Team,LD - Young Adults - Special Needs,Direct Payments
Cambridgeshire County Council,08-Jul-20,51301403433,-999.10,Redacted Personal Data,FOSTER PARENT,LD - Hunts Locality - Cost of Care,LD - Huntingdonshire - Care,Direct Payments
Cambridgeshire County Council,08-Jul-20,51301403324,-997.79,Redacted Personal Data,SERVICE USER,LD - South Locality - Cost of Care,LD - South Cambs - Care,Direct Payments
Cambridgeshire County Council,08-Jul-20,51301403324,-997.79,Redacted Personal Data,SERVICE USER,LD - South Locality - Cost of Care,LD - South Cambs - Care,Direct Payments
Cambridgeshire County Council,08-Jul-20,51301403324,-997.79,Redacted Personal Data,SERVICE USER,LD - South Locality - Cost of Care,LD - South Cambs - Care,Direct Payments
Cambridgeshire County Council,08-Jul-20,51301403324,-997.79,Redacted Personal Data,SERVICE USER,LD - South Locality - Cost of Care,LD - South Cambs - Care,Direct Payments
Cambridgeshire County Council,08-Jul-20,51301403324,-997.79,Redacted Personal Data,SERVICE USER,LD - South Locality - Cost of Care,LD - South Cambs - Care,Direct Payments
Cambridgeshire County Council,08-Jul-20,51301403324,-997.79,Redacted Personal Data,SERVICE USER,LD - South Locality - Cost of Care,LD - South Cambs - Care,Direct Payments
Cambridgeshire County Council,08-Jul-20,51301403324,-997.79,Redacted Personal Data,SERVICE USER,LD - South Locality - Cost of Care,LD - South Cambs - Care,Direct Payments
Cambridgeshire County Council,08-Jul-20,51301403324,-997.79,Redacted Personal Data,SERVICE USER,LD - South Locality - Cost of Care,LD - South Cambs - Care,Direct Payments
Cambridgeshire County Council,08-Jul-20,51301403324,-997.79,Redacted Personal Data,SERVICE USER,LD - South Locality - Cost of Care,LD - South Cambs - Care,Direct Payments
Cambridgeshire County Council,08-Jul-20,51301403324,-997.79,Redacted Personal Data,SERVICE USER,LD - South Locality - Cost of Care,LD - South Cambs - Care,Direct Payments
Cambridgeshire County Council,08-Jul-20,51301403324,-997.79,Redacted Personal Data,SERVICE USER,LD - South Locality - Cost of Care,LD - South Cambs - Care,Direct Payments
Cambridgeshire County Council,30-Jul-20,51301410844,-994.29,KEY2 FUTURES LTD,TRADE SUPPLIER,LAC Placements,Placements - supported accommodation,Agency Placements - In County
Cambridgeshire County Council,08-Jul-20,51301403172,-993.30,Redacted Personal Data,SERVICE USER,Physical Disablity - Cost of Care,Countywide PD Service - Care,Direct Payments
Cambridgeshire County Council,08-Jul-20,51301403172,-993.30,Redacted Personal Data,SERVICE USER,Physical Disablity - Cost of Care,Countywide PD Service - Care,Direct Payments
Cambridgeshire County Council,08-Jul-20,51301403172,-993.30,Redacted Personal Data,SERVICE USER,Physical Disablity - Cost of Care,Countywide PD Service - Care,Direct Payments
Cambridgeshire County Council,08-Jul-20,51301403498,-993.04,Redacted Personal Data,SERVICE USER,Physical Disablity - Cost of Care,Countywide PD Service - Care,Direct Payments
Cambridgeshire County Council,08-Jul-20,51301403498,-993.04,Redacted Personal Data,SERVICE USER,Physical Disablity - Cost of Care,Countywide PD Service - Care,Direct Payments
Cambridgeshire County Council,08-Jul-20,51301403498,-993.04,Redacted Personal Data,SERVICE USER,Physical Disablity - Cost of Care,Countywide PD Service - Care,Direct Payments
Cambridgeshire County Council,08-Jul-20,51301403634,-991.93,THE CAMBRIDGE HOUSING SOCIETY LTD,CARE ESTABLISHMENT,OP - City & South Locality - Cost of Care,Older People - City & South - Care,Residential Care
Cambridgeshire County Council,08-Jul-20,51301399403,-988.00,THE ELMS NURSING HOME,CARE ESTABLISHMENT,OP - Hunts Locality - Cost of Care,Hunts OP Team - Care,Nursing Care
Cambridgeshire County Council,08-Jul-20,51301399403,-988.00,THE ELMS NURSING HOME,CARE ESTABLISHMENT,OP - Hunts Locality - Cost of Care,Hunts OP Team - Care,Nursing Care
Cambridgeshire County Council,08-Jul-20,51301399403,-988.00,THE ELMS NURSING HOME,CARE ESTABLISHMENT,OP - Hunts Locality - Cost of Care,Hunts OP Team - Care,Nursing Care
Cambridgeshire County Council,08-Jul-20,51301399403,-988.00,THE ELMS NURSING HOME,CARE ESTABLISHMENT,OP - Hunts Locality - Cost of Care,Hunts OP Team - Care,Nursing Care
Cambridgeshire County Council,08-Jul-20,51301399403,-988.00,THE ELMS NURSING HOME,CARE ESTABLISHMENT,OP - Hunts Locality - Cost of Care,Hunts OP Team - Care,Nursing Care
Cambridgeshire County Council,08-Jul-20,51301399403,-988.00,THE ELMS NURSING HOME,CARE ESTABLISHMENT,OP - Hunts Locality - Cost of Care,Hunts OP Team - Care,Nursing Care
Cambridgeshire County Council,08-Jul-20,51301399403,-988.00,THE ELMS NURSING HOME,CARE ESTABLISHMENT,OP - Hunts Locality - Cost of Care,Hunts OP Team - Care,Nursing Care
Cambridgeshire County Council,08-Jul-20,51301399403,-988.00,THE ELMS NURSING HOME,CARE ESTABLISHMENT,OP - Hunts Locality - Cost of Care,Hunts OP Team - Care,Nursing Care
Cambridgeshire County Council,08-Jul-20,51301399403,-988.00,THE ELMS NURSING HOME,CARE ESTABLISHMENT,OP - Hunts Locality - Cost of Care,Hunts OP Team - Care,Nursing Care
Cambridgeshire County Council,08-Jul-20,51301399403,-988.00,THE ELMS NURSING HOME,CARE ESTABLISHMENT,OP - Hunts Locality - Cost of Care,Hunts OP Team - Care,Nursing Care
Cambridgeshire County Council,08-Jul-20,51301399403,-988.00,THE ELMS NURSING HOME,CARE ESTABLISHMENT,OP - Hunts Locality - Cost of Care,Hunts OP Team - Care,Nursing Care
Cambridgeshire County Council,08-Jul-20,51301399403,-988.00,THE ELMS NURSING HOME,CARE ESTABLISHMENT,OP - Hunts Locality - Cost of Care,Hunts OP Team - Care,Nursing Care
Cambridgeshire County Council,08-Jul-20,51301399403,-988.00,THE ELMS NURSING HOME,CARE ESTABLISHMENT,OP - Hunts Locality - Cost of Care,Hunts OP Team - Care,Nursing Care
Cambridgeshire County Council,08-Jul-20,51301399403,-988.00,THE ELMS NURSING HOME,CARE ESTABLISHMENT,OP - Hunts Locality - Cost of Care,Hunts OP Team - Care,Nursing Care
Cambridgeshire County Council,08-Jul-20,51301399403,-988.00,THE ELMS NURSING HOME,CARE ESTABLISHMENT,OP - Hunts Locality - Cost of Care,Hunts OP Team - Care,Nursing Care
Cambridgeshire County Council,08-Jul-20,51301399403,-988.00,THE ELMS NURSING HOME,CARE ESTABLISHMENT,OP - Hunts Locality - Cost of Care,Hunts OP Team - Care,Nursing Care
Cambridgeshire County Council,08-Jul-20,51301399403,-988.00,THE ELMS NURSING HOME,CARE ESTABLISHMENT,OP - Hunts Locality - Cost of Care,Hunts OP Team - Care,Nursing Care
Cambridgeshire County Council,08-Jul-20,51301399403,-988.00,THE ELMS NURSING HOME,CARE ESTABLISHMENT,OP - Hunts Locality - Cost of Care,Hunts OP Team - Care,Nursing Care
Cambridgeshire County Council,08-Jul-20,51301399403,-988.00,THE ELMS NURSING HOME,CARE ESTABLISHMENT,OP - Hunts Locality - Cost of Care,Hunts OP Team - Care,Nursing Care
Cambridgeshire County Council,08-Jul-20,51301399403,-988.00,THE ELMS NURSING HOME,CARE ESTABLISHMENT,OP - Hunts Locality - Cost of Care,Hunts OP Team - Care,Nursing Care
Cambridgeshire County Council,08-Jul-20,51301399403,-988.00,THE ELMS NURSING HOME,CARE ESTABLISHMENT,OP - Hunts Locality - Cost of Care,Hunts OP Team - Care,Nursing Care
Cambridgeshire County Council,08-Jul-20,51301399403,-988.00,THE ELMS NURSING HOME,CARE ESTABLISHMENT,OP - Hunts Locality - Cost of Care,Hunts OP Team - Care,Nursing Care
Cambridgeshire County Council,08-Jul-20,51301399403,-988.00,THE ELMS NURSING HOME,CARE ESTABLISHMENT,OP - Hunts Locality - Cost of Care,Hunts OP Team - Care,Nursing Care
Cambridgeshire County Council,08-Jul-20,51301399403,-988.00,THE ELMS NURSING HOME,CARE ESTABLISHMENT,OP - Hunts Locality - Cost of Care,Hunts OP Team - Care,Nursing Care
Cambridgeshire County Council,08-Jul-20,51301399403,-988.00,THE ELMS NURSING HOME,CARE ESTABLISHMENT,OP - Hunts Locality - Cost of Care,Hunts OP Team - Care,Nursing Care
Cambridgeshire County Council,08-Jul-20,51301399403,-988.00,THE ELMS NURSING HOME,CARE ESTABLISHMENT,OP - Hunts Locality - Cost of Care,Hunts OP Team - Care,Nursing Care
Cambridgeshire County Council,08-Jul-20,51301399403,-988.00,THE ELMS NURSING HOME,CARE ESTABLISHMENT,OP - Hunts Locality - Cost of Care,Hunts OP Team - Care,Nursing Care
Cambridgeshire County Council,08-Jul-20,51301399403,-988.00,THE ELMS NURSING HOME,CARE ESTABLISHMENT,OP - Hunts Locality - Cost of Care,Hunts OP Team - Care,Nursing Care
Cambridgeshire County Council,08-Jul-20,51301399403,-988.00,THE ELMS NURSING HOME,CARE ESTABLISHMENT,OP - Hunts Locality - Cost of Care,Hunts OP Team - Care,Nursing Care
Cambridgeshire County Council,08-Jul-20,51301399403,-988.00,THE ELMS NURSING HOME,CARE ESTABLISHMENT,OP - Hunts Locality - Cost of Care,Hunts OP Team - Care,Nursing Care
Cambridgeshire County Council,08-Jul-20,51301399403,-988.00,THE ELMS NURSING HOME,CARE ESTABLISHMENT,OP - Hunts Locality - Cost of Care,Hunts OP Team - Care,Nursing Care
Cambridgeshire County Council,08-Jul-20,51301399403,-988.00,THE ELMS NURSING HOME,CARE ESTABLISHMENT,OP - Hunts Locality - Cost of Care,Hunts OP Team - Care,Nursing Care
Cambridgeshire County Council,08-Jul-20,51301399403,-988.00,THE ELMS NURSING HOME,CARE ESTABLISHMENT,OP - Hunts Locality - Cost of Care,Hunts OP Team - Care,Nursing Care
Cambridgeshire County Council,08-Jul-20,51301399403,-988.00,THE ELMS NURSING HOME,CARE ESTABLISHMENT,OP - Hunts Locality - Cost of Care,Hunts OP Team - Care,Nursing Care
Cambridgeshire County Council,08-Jul-20,51301399403,-988.00,THE ELMS NURSING HOME,CARE ESTABLISHMENT,OP - Hunts Locality - Cost of Care,Hunts OP Team - Care,Nursing Care
Cambridgeshire County Council,08-Jul-20,51301399403,-988.00,THE ELMS NURSING HOME,CARE ESTABLISHMENT,OP - Hunts Locality - Cost of Care,Hunts OP Team - Care,Nursing Care
Cambridgeshire County Council,08-Jul-20,51301399403,-988.00,THE ELMS NURSING HOME,CARE ESTABLISHMENT,OP - Hunts Locality - Cost of Care,Hunts OP Team - Care,Nursing Care
Cambridgeshire County Council,08-Jul-20,51301399403,-988.00,THE ELMS NURSING HOME,CARE ESTABLISHMENT,OP - Hunts Locality - Cost of Care,Hunts OP Team - Care,Nursing Care
Cambridgeshire County Council,08-Jul-20,51301399403,-988.00,THE ELMS NURSING HOME,CARE ESTABLISHMENT,OP - Hunts Locality - Cost of Care,Hunts OP Team - Care,Nursing Care
Cambridgeshire County Council,08-Jul-20,51301401026,-984.44,THE GABLES SPECIALIST NURSING HOME,CARE ESTABLISHMENT,OPMH - City & South,Older People Mental Health E Cambs,Nursing Care
Cambridgeshire County Council,08-Jul-20,51301401026,-984.44,THE GABLES SPECIALIST NURSING HOME,CARE ESTABLISHMENT,OPMH - City & South,Older People Mental Health E Cambs,Nursing Care
Cambridgeshire County Council,08-Jul-20,51301401026,-984.44,THE GABLES SPECIALIST NURSING HOME,CARE ESTABLISHMENT,OPMH - City & South,Older People Mental Health E Cambs,Nursing Care
Cambridgeshire County Council,08-Jul-20,51301401026,-984.44,THE GABLES SPECIALIST NURSING HOME,CARE ESTABLISHMENT,OPMH - City & South,Older People Mental Health E Cambs,Nursing Care
Cambridgeshire County Council,08-Jul-20,51301401026,-984.44,THE GABLES SPECIALIST NURSING HOME,CARE ESTABLISHMENT,OPMH - City & South,Older People Mental Health E Cambs,Nursing Care
Cambridgeshire County Council,08-Jul-20,51301401026,-984.44,THE GABLES SPECIALIST NURSING HOME,CARE ESTABLISHMENT,OPMH - City & South,Older People Mental Health E Cambs,Nursing Care
Cambridgeshire County Council,08-Jul-20,51301401026,-984.44,THE GABLES SPECIALIST NURSING HOME,CARE ESTABLISHMENT,OPMH - City & South,Older People Mental Health E Cambs,Nursing Care
Cambridgeshire County Council,08-Jul-20,51301401026,-984.44,THE GABLES SPECIALIST NURSING HOME,CARE ESTABLISHMENT,OPMH - City & South,Older People Mental Health E Cambs,Nursing Care
Cambridgeshire County Council,08-Jul-20,51301401026,-984.44,THE GABLES SPECIALIST NURSING HOME,CARE ESTABLISHMENT,OPMH - City & South,Older People Mental Health E Cambs,Nursing Care
Cambridgeshire County Council,08-Jul-20,51301401026,-984.44,THE GABLES SPECIALIST NURSING HOME,CARE ESTABLISHMENT,OPMH - City & South,Older People Mental Health E Cambs,Nursing Care
Cambridgeshire County Council,08-Jul-20,51301401026,-984.44,THE GABLES SPECIALIST NURSING HOME,CARE ESTABLISHMENT,OPMH - City & South,Older People Mental Health E Cambs,Nursing Care
Cambridgeshire County Council,08-Jul-20,51301401026,-984.44,THE GABLES SPECIALIST NURSING HOME,CARE ESTABLISHMENT,OPMH - City & South,Older People Mental Health E Cambs,Nursing Care
Cambridgeshire County Council,08-Jul-20,51301401026,-984.44,THE GABLES SPECIALIST NURSING HOME,CARE ESTABLISHMENT,OPMH - City & South,Older People Mental Health E Cambs,Nursing Care
Cambridgeshire County Council,08-Jul-20,51301401026,-984.44,THE GABLES SPECIALIST NURSING HOME,CARE ESTABLISHMENT,OPMH - City & South,Older People Mental Health E Cambs,Nursing Care
Cambridgeshire County Council,08-Jul-20,51301401026,-984.44,THE GABLES SPECIALIST NURSING HOME,CARE ESTABLISHMENT,OPMH - City & South,Older People Mental Health E Cambs,Nursing Care
Cambridgeshire County Council,08-Jul-20,51301401026,-984.44,THE GABLES SPECIALIST NURSING HOME,CARE ESTABLISHMENT,OPMH - City & South,Older People Mental Health E Cambs,Nursing Care
Cambridgeshire County Council,08-Jul-20,51301401026,-984.44,THE GABLES SPECIALIST NURSING HOME,CARE ESTABLISHMENT,OPMH - City & South,Older People Mental Health E Cambs,Nursing Care
Cambridgeshire County Council,08-Jul-20,51301401026,-984.44,THE GABLES SPECIALIST NURSING HOME,CARE ESTABLISHMENT,OPMH - City & South,Older People Mental Health E Cambs,Nursing Care
Cambridgeshire County Council,08-Jul-20,51301403089,-980.91,Redacted Personal Data,PARENT/GUARDIAN,Physical Disablity - Cost of Care,Countywide PD Service - Care,Direct Payments
Cambridgeshire County Council,08-Jul-20,51301403319,-979.99,Redacted Personal Data,INDIVIDUAL,LD - Young Adults Team,LD - Young Adults - Care,Direct Payments
Cambridgeshire County Council,08-Jul-20,51301403319,-979.99,Redacted Personal Data,INDIVIDUAL,LD - Young Adults Team,LD - Young Adults - Care,Direct Payments
Cambridgeshire County Council,08-Jul-20,51301403373,-976.57,Redacted Personal Data,PARENT/GUARDIAN,LD - Hunts Locality - Cost of Care,LD - Huntingdonshire - Care,Direct Payments
Cambridgeshire County Council,08-Jul-20,51301399400,-975.00,MAYCROFT CARE HOME LTD,CARE ESTABLISHMENT,OPMH - City & South,Older People Mental Health E Cambs,Residential Care
Cambridgeshire County Council,08-Jul-20,51301399400,-975.00,MAYCROFT CARE HOME LTD,CARE ESTABLISHMENT,OPMH - City & South,Older People Mental Health E Cambs,Residential Care
Cambridgeshire County Council,08-Jul-20,51301399400,-975.00,MAYCROFT CARE HOME LTD,CARE ESTABLISHMENT,OPMH - City & South,Older People Mental Health E Cambs,Residential Care
Cambridgeshire County Council,08-Jul-20,51301399400,-975.00,MAYCROFT CARE HOME LTD,CARE ESTABLISHMENT,OPMH - City & South,Older People Mental Health E Cambs,Residential Care
Cambridgeshire County Council,08-Jul-20,51301399400,-975.00,MAYCROFT CARE HOME LTD,CARE ESTABLISHMENT,OPMH - City & South,Older People Mental Health E Cambs,Residential Care
Cambridgeshire County Council,08-Jul-20,51301399400,-975.00,MAYCROFT CARE HOME LTD,CARE ESTABLISHMENT,OPMH - City & South,Older People Mental Health E Cambs,Residential Care
Cambridgeshire County Council,08-Jul-20,51301399451,-965.95,BROAD OAKS VCT LTD,CARE ESTABLISHMENT,LD - South Locality - Cost of Care,LD - South Cambs - Care,Residential Care
Cambridgeshire County Council,08-Jul-20,51301399451,-965.95,BROAD OAKS VCT LTD,CARE ESTABLISHMENT,LD - South Locality - Cost of Care,LD - South Cambs - Care,Residential Care
Cambridgeshire County Council,08-Jul-20,51301399451,-965.95,BROAD OAKS VCT LTD,CARE ESTABLISHMENT,LD - South Locality - Cost of Care,LD - South Cambs - Care,Residential Care
Cambridgeshire County Council,08-Jul-20,51301399451,-965.95,BROAD OAKS VCT LTD,CARE ESTABLISHMENT,LD - South Locality - Cost of Care,LD - South Cambs - Care,Residential Care
Cambridgeshire County Council,08-Jul-20,51301399451,-965.95,BROAD OAKS VCT LTD,CARE ESTABLISHMENT,LD - South Locality - Cost of Care,LD - South Cambs - Care,Residential Care
Cambridgeshire County Council,08-Jul-20,51301399451,-965.95,BROAD OAKS VCT LTD,CARE ESTABLISHMENT,LD - South Locality - Cost of Care,LD - South Cambs - Care,Residential Care
Cambridgeshire County Council,08-Jul-20,51301399451,-965.95,BROAD OAKS VCT LTD,CARE ESTABLISHMENT,LD - South Locality - Cost of Care,LD - South Cambs - Care,Residential Care
Cambridgeshire County Council,08-Jul-20,51301399451,-965.95,BROAD OAKS VCT LTD,CARE ESTABLISHMENT,LD - South Locality - Cost of Care,LD - South Cambs - Care,Residential Care
Cambridgeshire County Council,08-Jul-20,51301403491,-964.19,Redacted Personal Data,FOSTER PARENT,Physical Disablity - Cost of Care,Countywide PD Service - Care,Direct Payments
Cambridgeshire County Council,08-Jul-20,51301403491,-964.19,Redacted Personal Data,FOSTER PARENT,Physical Disablity - Cost of Care,Countywide PD Service - Care,Direct Payments
Cambridgeshire County Council,08-Jul-20,51301403491,-964.19,Redacted Personal Data,FOSTER PARENT,Physical Disablity - Cost of Care,Countywide PD Service - Care,Direct Payments
Cambridgeshire County Council,08-Jul-20,51301403388,-963.51,Redacted Personal Data,SERVICE USER,LD - Hunts Locality - Cost of Care,LD - Huntingdonshire - Care,Direct Payments
Cambridgeshire County Council,08-Jul-20,51301403388,-963.51,Redacted Personal Data,SERVICE USER,LD - Hunts Locality - Cost of Care,LD - Huntingdonshire - Care,Direct Payments
Cambridgeshire County Council,08-Jul-20,51301403388,-963.51,Redacted Personal Data,SERVICE USER,LD - Hunts Locality - Cost of Care,LD - Huntingdonshire - Care,Direct Payments
Cambridgeshire County Council,08-Jul-20,51301403130,-958.47,Redacted Personal Data,SERVICE USER,LD - East Locality - Cost of Care,LD - East Cambs - Care,Direct Payments
Cambridgeshire County Council,08-Jul-20,51301403130,-958.47,Redacted Personal Data,SERVICE USER,LD - East Locality - Cost of Care,LD - East Cambs - Care,Direct Payments
Cambridgeshire County Council,08-Jul-20,51301403130,-958.47,Redacted Personal Data,SERVICE USER,LD - East Locality - Cost of Care,LD - East Cambs - Care,Direct Payments
Cambridgeshire County Council,08-Jul-20,51301403090,-955.41,Redacted Personal Data,SERVICE USER,LD - South Locality - Cost of Care,LD - South Cambs - Care,Direct Payments
Cambridgeshire County Council,08-Jul-20,51301403069,-953.61,Redacted Personal Data,SERVICE USER,LD - East Locality - Cost of Care,LD - East Cambs - Care,Direct Payments
Cambridgeshire County Council,08-Jul-20,51301403069,-953.61,Redacted Personal Data,SERVICE USER,LD - East Locality - Cost of Care,LD - East Cambs - Care,Direct Payments
Cambridgeshire County Council,08-Jul-20,51301403069,-953.61,Redacted Personal Data,SERVICE USER,LD - East Locality - Cost of Care,LD - East Cambs - Care,Direct Payments
Cambridgeshire County Council,08-Jul-20,51301403188,-951.24,Redacted Personal Data,SERVICE USER,Physical Disablity - Cost of Care,Countywide PD Service - Care,Direct Payments
Cambridgeshire County Council,08-Jul-20,51301403188,-951.24,Redacted Personal Data,SERVICE USER,Physical Disablity - Cost of Care,Countywide PD Service - Care,Direct Payments
Cambridgeshire County Council,08-Jul-20,51301403188,-951.24,Redacted Personal Data,SERVICE USER,Physical Disablity - Cost of Care,Countywide PD Service - Care,Direct Payments
Cambridgeshire County Council,08-Jul-20,51301403562,-951.03,Redacted Personal Data,SERVICE USER,LD - East Locality - Cost of Care,LD - East Cambs - Care,Direct Payments
Cambridgeshire County Council,08-Jul-20,51301403562,-951.03,Redacted Personal Data,SERVICE USER,LD - East Locality - Cost of Care,LD - East Cambs - Care,Direct Payments
Cambridgeshire County Council,08-Jul-20,51301403562,-951.03,Redacted Personal Data,SERVICE USER,LD - East Locality - Cost of Care,LD - East Cambs - Care,Direct Payments
Cambridgeshire County Council,08-Jul-20,51301398196,-950.01,CHS GROUP,CARE ESTABLISHMENT,LAC Placements,Placements - supported accommodation,Agency Placements - In County
Cambridgeshire County Council,06-Jul-20,51301395950,-950.00,CHS GROUP,CARE ESTABLISHMENT,LAC Placements,Placements - supported accommodation,Agency Placements - In County
Cambridgeshire County Council,08-Jul-20,51301398185,-950.00,CHS GROUP,CARE ESTABLISHMENT,LAC Placements,Placements - supported accommodation,Agency Placements - In County
Cambridgeshire County Council,08-Jul-20,51301398492,-950.00,CHS GROUP,CARE ESTABLISHMENT,LAC Placements,Placements - supported accommodation,Agency Placements - In County
Cambridgeshire County Council,08-Jul-20,51301398199,-950.00,CHS GROUP,CARE ESTABLISHMENT,LAC Placements,Placements - supported accommodation,Agency Placements - In County
Cambridgeshire County Council,08-Jul-20,51301317563,-950.00,PARK HOUSE NURSING HOME,CARE ESTABLISHMENT,OP - Hunts Locality - Cost of Care,Hunts OP Team - Care,Nursing Care
Cambridgeshire County Council,08-Jul-20,51301317563,-950.00,PARK HOUSE NURSING HOME,CARE ESTABLISHMENT,OP - Hunts Locality - Cost of Care,Hunts OP Team - Care,Nursing Care
Cambridgeshire County Council,08-Jul-20,51301317563,-950.00,PARK HOUSE NURSING HOME,CARE ESTABLISHMENT,OP - Hunts Locality - Cost of Care,Hunts OP Team - Care,Nursing Care
Cambridgeshire County Council,08-Jul-20,51301317563,-950.00,PARK HOUSE NURSING HOME,CARE ESTABLISHMENT,OP - Hunts Locality - Cost of Care,Hunts OP Team - Care,Nursing Care
Cambridgeshire County Council,08-Jul-20,51301317563,-950.00,PARK HOUSE NURSING HOME,CARE ESTABLISHMENT,OP - Hunts Locality - Cost of Care,Hunts OP Team - Care,Nursing Care
Cambridgeshire County Council,08-Jul-20,51301317563,-950.00,PARK HOUSE NURSING HOME,CARE ESTABLISHMENT,OP - Hunts Locality - Cost of Care,Hunts OP Team - Care,Nursing Care
Cambridgeshire County Council,08-Jul-20,51301317563,-950.00,PARK HOUSE NURSING HOME,CARE ESTABLISHMENT,OP - Hunts Locality - Cost of Care,Hunts OP Team - Care,Nursing Care
Cambridgeshire County Council,08-Jul-20,51301317563,-950.00,PARK HOUSE NURSING HOME,CARE ESTABLISHMENT,OP - Hunts Locality - Cost of Care,Hunts OP Team - Care,Nursing Care
Cambridgeshire County Council,08-Jul-20,51301317563,-950.00,PARK HOUSE NURSING HOME,CARE ESTABLISHMENT,OP - Hunts Locality - Cost of Care,Hunts OP Team - Care,Nursing Care
Cambridgeshire County Council,08-Jul-20,51301317563,-950.00,PARK HOUSE NURSING HOME,CARE ESTABLISHMENT,OP - Hunts Locality - Cost of Care,Hunts OP Team - Care,Nursing Care
Cambridgeshire County Council,08-Jul-20,51301317563,-950.00,PARK HOUSE NURSING HOME,CARE ESTABLISHMENT,OP - Hunts Locality - Cost of Care,Hunts OP Team - Care,Nursing Care
Cambridgeshire County Council,08-Jul-20,51301317563,-950.00,PARK HOUSE NURSING HOME,CARE ESTABLISHMENT,OP - Hunts Locality - Cost of Care,Hunts OP Team - Care,Nursing Care
Cambridgeshire County Council,08-Jul-20,51301317563,-950.00,PARK HOUSE NURSING HOME,CARE ESTABLISHMENT,OP - Hunts Locality - Cost of Care,Hunts OP Team - Care,Nursing Care
Cambridgeshire County Council,08-Jul-20,51301317563,-950.00,PARK HOUSE NURSING HOME,CARE ESTABLISHMENT,OP - Hunts Locality - Cost of Care,Hunts OP Team - Care,Nursing Care
Cambridgeshire County Council,08-Jul-20,51301317563,-950.00,PARK HOUSE NURSING HOME,CARE ESTABLISHMENT,OP - Hunts Locality - Cost of Care,Hunts OP Team - Care,Nursing Care
Cambridgeshire County Council,08-Jul-20,51301317563,-950.00,PARK HOUSE NURSING HOME,CARE ESTABLISHMENT,OP - Hunts Locality - Cost of Care,Hunts OP Team - Care,Nursing Care
Cambridgeshire County Council,08-Jul-20,51301317563,-950.00,PARK HOUSE NURSING HOME,CARE ESTABLISHMENT,OP - Hunts Locality - Cost of Care,Hunts OP Team - Care,Nursing Care
Cambridgeshire County Council,08-Jul-20,51301317563,-950.00,PARK HOUSE NURSING HOME,CARE ESTABLISHMENT,OP - Hunts Locality - Cost of Care,Hunts OP Team - Care,Nursing Care
Cambridgeshire County Council,08-Jul-20,51301317563,-950.00,PARK HOUSE NURSING HOME,CARE ESTABLISHMENT,OP - Hunts Locality - Cost of Care,Hunts OP Team - Care,Nursing Care
Cambridgeshire County Council,08-Jul-20,51301317563,-950.00,PARK HOUSE NURSING HOME,CARE ESTABLISHMENT,OP - Hunts Locality - Cost of Care,Hunts OP Team - Care,Nursing Care
Cambridgeshire County Council,08-Jul-20,51301317563,-950.00,PARK HOUSE NURSING HOME,CARE ESTABLISHMENT,OP - Hunts Locality - Cost of Care,Hunts OP Team - Care,Nursing Care
Cambridgeshire County Council,08-Jul-20,51301317563,-950.00,PARK HOUSE NURSING HOME,CARE ESTABLISHMENT,OP - Hunts Locality - Cost of Care,Hunts OP Team - Care,Nursing Care
Cambridgeshire County Council,08-Jul-20,51301317563,-950.00,PARK HOUSE NURSING HOME,CARE ESTABLISHMENT,OP - Hunts Locality - Cost of Care,Hunts OP Team - Care,Nursing Care
Cambridgeshire County Council,08-Jul-20,51301317563,-950.00,PARK HOUSE NURSING HOME,CARE ESTABLISHMENT,OP - Hunts Locality - Cost of Care,Hunts OP Team - Care,Nursing Care
Cambridgeshire County Council,08-Jul-20,51301317563,-950.00,PARK HOUSE NURSING HOME,CARE ESTABLISHMENT,OP - Hunts Locality - Cost of Care,Hunts OP Team - Care,Nursing Care
Cambridgeshire County Council,08-Jul-20,51301317563,-950.00,PARK HOUSE NURSING HOME,CARE ESTABLISHMENT,OP - Hunts Locality - Cost of Care,Hunts OP Team - Care,Nursing Care
Cambridgeshire County Council,06-Jul-20,51301395947,-949.99,CHS GROUP,CARE ESTABLISHMENT,LAC Placements,Placements - supported accommodation,Agency Placements - In County
Cambridgeshire County Council,08-Jul-20,51301403418,-949.30,Redacted Personal Data,SERVICE USER,LD - South Locality - Cost of Care,LD - South Cambs - Special Needs,Direct Payments
Cambridgeshire County Council,08-Jul-20,51301403418,-949.30,Redacted Personal Data,SERVICE USER,LD - South Locality - Cost of Care,LD - South Cambs - Special Needs,Direct Payments
Cambridgeshire County Council,08-Jul-20,51301403418,-949.30,Redacted Personal Data,SERVICE USER,LD - South Locality - Cost of Care,LD - South Cambs - Special Needs,Direct Payments
Cambridgeshire County Council,08-Jul-20,51301401948,-944.27,Redacted Personal Data,SERVICE USER,LD - South Locality - Cost of Care,LD - South Cambs - Care,Direct Payments
Cambridgeshire County Council,08-Jul-20,51301401948,-944.27,Redacted Personal Data,SERVICE USER,LD - South Locality - Cost of Care,LD - South Cambs - Care,Direct Payments
Cambridgeshire County Council,08-Jul-20,51301401948,-944.27,Redacted Personal Data,SERVICE USER,LD - South Locality - Cost of Care,LD - South Cambs - Care,Direct Payments
Cambridgeshire County Council,08-Jul-20,51301398218,-942.86,THE NATIONAL FOSTERING AGENCY,CARE ESTABLISHMENT,LAC Placements,Placements - independent fostering,Agency Placements - Out of  County
Cambridgeshire County Council,08-Jul-20,51301403525,-942.86,Redacted Personal Data,SERVICE USER,Physical Disablity - Cost of Care,Countywide PD Service - Care,Direct Payments
Cambridgeshire County Council,09-Jul-20,51301404676,-942.86,Redacted Personal Data,SERVICE USER,Physical Disablity - Cost of Care,Countywide PD Service - Care,Direct Payments
Cambridgeshire County Council,08-Jul-20,51301403121,-935.00,Redacted Personal Data,SERVICE USER,Physical Disablity - Cost of Care,Countywide PD Service - Care,Direct Payments
Cambridgeshire County Council,08-Jul-20,51301403121,-935.00,Redacted Personal Data,SERVICE USER,Physical Disablity - Cost of Care,Countywide PD Service - Care,Direct Payments
Cambridgeshire County Council,08-Jul-20,51301403121,-935.00,Redacted Personal Data,SERVICE USER,Physical Disablity - Cost of Care,Countywide PD Service - Care,Direct Payments
Cambridgeshire County Council,08-Jul-20,51301401984,-927.74,Redacted Personal Data,INDIVIDUAL,OP - City & South Locality - Cost of Care,Older People - City & South - Care,Direct Payments
Cambridgeshire County Council,08-Jul-20,51301401984,-927.74,Redacted Personal Data,INDIVIDUAL,OP - City & South Locality - Cost of Care,Older People - City & South - Care,Direct Payments
Cambridgeshire County Council,08-Jul-20,51301401984,-927.74,Redacted Personal Data,INDIVIDUAL,OP - City & South Locality - Cost of Care,Older People - City & South - Care,Direct Payments
Cambridgeshire County Council,08-Jul-20,51301401462,-927.60,Redacted Personal Data,INDIVIDUAL,Physical Disablity - Cost of Care,Countywide PD Service - Care,Direct Payments
Cambridgeshire County Council,08-Jul-20,51301401462,-927.60,Redacted Personal Data,INDIVIDUAL,Physical Disablity - Cost of Care,Countywide PD Service - Care,Direct Payments
Cambridgeshire County Council,08-Jul-20,51301401462,-927.60,Redacted Personal Data,INDIVIDUAL,Physical Disablity - Cost of Care,Countywide PD Service - Care,Direct Payments
Cambridgeshire County Council,08-Jul-20,51301403273,-925.45,Redacted Personal Data,SERVICE USER,LD - South Locality - Cost of Care,LD - South Cambs - Care,Direct Payments
Cambridgeshire County Council,08-Jul-20,51301401405,-924.00,Redacted Personal Data,INDIVIDUAL,Autism and Adult Support - Cost of Care,Autism and Adult Support - Care,Direct Payments
Cambridgeshire County Council,08-Jul-20,51301401405,-924.00,Redacted Personal Data,INDIVIDUAL,Autism and Adult Support - Cost of Care,Autism and Adult Support - Care,Direct Payments
Cambridgeshire County Council,08-Jul-20,51301401405,-924.00,Redacted Personal Data,INDIVIDUAL,Autism and Adult Support - Cost of Care,Autism and Adult Support - Care,Direct Payments
Cambridgeshire County Council,08-Jul-20,51301403319,-923.99,Redacted Personal Data,INDIVIDUAL,LD - Young Adults Team,LD - Young Adults - Care,Direct Payments
Cambridgeshire County Council,08-Jul-20,51301403326,-923.58,Redacted Personal Data,SERVICE USER,Physical Disablity - Cost of Care,Countywide PD Service - Care,Direct Payments
Cambridgeshire County Council,08-Jul-20,51301403326,-923.58,Redacted Personal Data,SERVICE USER,Physical Disablity - Cost of Care,Countywide PD Service - Care,Direct Payments
Cambridgeshire County Council,08-Jul-20,51301403326,-923.58,Redacted Personal Data,SERVICE USER,Physical Disablity - Cost of Care,Countywide PD Service - Care,Direct Payments
Cambridgeshire County Council,08-Jul-20,51301399317,-915.06,PAULINE BURNETT HOUSE,CARE ESTABLISHMENT,LD - South Locality - Cost of Care,LD - South Cambs - Care,Residential Care
Cambridgeshire County Council,08-Jul-20,51301399317,-915.06,PAULINE BURNETT HOUSE,CARE ESTABLISHMENT,LD - South Locality - Cost of Care,LD - South Cambs - Care,Residential Care
Cambridgeshire County Council,08-Jul-20,51301399317,-915.06,PAULINE BURNETT HOUSE,CARE ESTABLISHMENT,LD - South Locality - Cost of Care,LD - South Cambs - Care,Residential Care
Cambridgeshire County Council,08-Jul-20,51301399317,-915.06,PAULINE BURNETT HOUSE,CARE ESTABLISHMENT,LD - South Locality - Cost of Care,LD - South Cambs - Care,Residential Care
Cambridgeshire County Council,08-Jul-20,51301401853,-911.43,Redacted Personal Data,SERVICE USER,Physical Disablity - Cost of Care,Countywide PD Service - Care,Direct Payments
Cambridgeshire County Council,08-Jul-20,51301401898,-906.41,Redacted Personal Data,SERVICE USER,LD - South Locality - Cost of Care,LD - South Cambs - Care,Direct Payments
Cambridgeshire County Council,08-Jul-20,51301403374,-902.44,Redacted Personal Data,SERVICE USER,LD - South Locality - Cost of Care,LD - South Cambs - Special Needs,Direct Payments
Cambridgeshire County Council,08-Jul-20,51301399790,-900.00,GLENNFIELD CARE CENTRE (OP),CARE ESTABLISHMENT,Strategic Management - Adults,Adults Assistant Director,Nursing Care
Cambridgeshire County Council,08-Jul-20,51301301675,-900.00,PARK HOUSE NURSING HOME,CARE ESTABLISHMENT,OP - City & South Locality - Cost of Care,Older People - City & South - Care,Nursing Care
Cambridgeshire County Council,08-Jul-20,51301301675,-900.00,PARK HOUSE NURSING HOME,CARE ESTABLISHMENT,OP - City & South Locality - Cost of Care,Older People - City & South - Care,Nursing Care
Cambridgeshire County Council,08-Jul-20,51301301675,-900.00,PARK HOUSE NURSING HOME,CARE ESTABLISHMENT,OP - City & South Locality - Cost of Care,Older People - City & South - Care,Nursing Care
Cambridgeshire County Council,08-Jul-20,51301301675,-900.00,PARK HOUSE NURSING HOME,CARE ESTABLISHMENT,OP - City & South Locality - Cost of Care,Older People - City & South - Care,Nursing Care
Cambridgeshire County Council,08-Jul-20,51301404080,-900.00,A CLASS CARE LTD,CARE ESTABLISHMENT,OP - City & South Locality - Cost of Care,Older People - City & South - Care,Domiciliary Care
Cambridgeshire County Council,08-Jul-20,51301301675,-900.00,PARK HOUSE NURSING HOME,CARE ESTABLISHMENT,OP - City & South Locality - Cost of Care,Older People - City & South - Care,Nursing Care
Cambridgeshire County Council,08-Jul-20,51301301675,-900.00,PARK HOUSE NURSING HOME,CARE ESTABLISHMENT,OP - City & South Locality - Cost of Care,Older People - City & South - Care,Nursing Care
Cambridgeshire County Council,08-Jul-20,51301301675,-900.00,PARK HOUSE NURSING HOME,CARE ESTABLISHMENT,OP - City & South Locality - Cost of Care,Older People - City & South - Care,Nursing Care
Cambridgeshire County Council,08-Jul-20,51301301675,-900.00,PARK HOUSE NURSING HOME,CARE ESTABLISHMENT,OP - City & South Locality - Cost of Care,Older People - City & South - Care,Nursing Care
Cambridgeshire County Council,08-Jul-20,51301301675,-900.00,PARK HOUSE NURSING HOME,CARE ESTABLISHMENT,OP - City & South Locality - Cost of Care,Older People - City & South - Care,Nursing Care
Cambridgeshire County Council,08-Jul-20,51301301675,-900.00,PARK HOUSE NURSING HOME,CARE ESTABLISHMENT,OP - City & South Locality - Cost of Care,Older People - City & South - Care,Nursing Care
Cambridgeshire County Council,08-Jul-20,51301301675,-900.00,PARK HOUSE NURSING HOME,CARE ESTABLISHMENT,OP - City & South Locality - Cost of Care,Older People - City & South - Care,Nursing Care
Cambridgeshire County Council,08-Jul-20,51301301675,-900.00,PARK HOUSE NURSING HOME,CARE ESTABLISHMENT,OP - City & South Locality - Cost of Care,Older People - City & South - Care,Nursing Care
Cambridgeshire County Council,08-Jul-20,51301402986,-896.79,GLENHOLME HEALTHCARE LTD,CARE ESTABLISHMENT,LD - Hunts Locality - Cost of Care,LD - Huntingdonshire - Care,Supported Living
Cambridgeshire County Council,27-Jul-20,51301409928,-893.49,CONQUEST CARE HOMES PETERBOROUGH,CARE ESTABLISHMENT,AMH - Hunts & Fens,Hunts Mental Health Team,Residential Care
Cambridgeshire County Council,27-Jul-20,51301409928,-893.49,CONQUEST CARE HOMES PETERBOROUGH,CARE ESTABLISHMENT,AMH - Hunts & Fens,Hunts Mental Health Team,Residential Care
Cambridgeshire County Council,27-Jul-20,51301409928,-893.49,CONQUEST CARE HOMES PETERBOROUGH,CARE ESTABLISHMENT,AMH - Hunts & Fens,Hunts Mental Health Team,Residential Care
Cambridgeshire County Council,27-Jul-20,51301409928,-893.49,CONQUEST CARE HOMES PETERBOROUGH,CARE ESTABLISHMENT,AMH - Hunts & Fens,Hunts Mental Health Team,Residential Care
Cambridgeshire County Council,27-Jul-20,51301409928,-893.49,CONQUEST CARE HOMES PETERBOROUGH,CARE ESTABLISHMENT,AMH - Hunts & Fens,Hunts Mental Health Team,Residential Care
Cambridgeshire County Council,27-Jul-20,51301409928,-893.49,CONQUEST CARE HOMES PETERBOROUGH,CARE ESTABLISHMENT,AMH - Hunts & Fens,Hunts Mental Health Team,Residential Care
Cambridgeshire County Council,27-Jul-20,51301409928,-893.49,CONQUEST CARE HOMES PETERBOROUGH,CARE ESTABLISHMENT,AMH - Hunts & Fens,Hunts Mental Health Team,Residential Care
Cambridgeshire County Council,27-Jul-20,51301409928,-893.49,CONQUEST CARE HOMES PETERBOROUGH,CARE ESTABLISHMENT,AMH - Hunts & Fens,Hunts Mental Health Team,Residential Care
Cambridgeshire County Council,27-Jul-20,51301409928,-893.49,CONQUEST CARE HOMES PETERBOROUGH,CARE ESTABLISHMENT,AMH - Hunts & Fens,Hunts Mental Health Team,Residential Care
Cambridgeshire County Council,27-Jul-20,51301409928,-893.49,CONQUEST CARE HOMES PETERBOROUGH,CARE ESTABLISHMENT,AMH - Hunts & Fens,Hunts Mental Health Team,Residential Care
Cambridgeshire County Council,27-Jul-20,51301409928,-893.49,CONQUEST CARE HOMES PETERBOROUGH,CARE ESTABLISHMENT,AMH - Hunts & Fens,Hunts Mental Health Team,Residential Care
Cambridgeshire County Council,27-Jul-20,51301409928,-893.49,CONQUEST CARE HOMES PETERBOROUGH,CARE ESTABLISHMENT,AMH - Hunts & Fens,Hunts Mental Health Team,Residential Care
Cambridgeshire County Council,27-Jul-20,51301409928,-893.49,CONQUEST CARE HOMES PETERBOROUGH,CARE ESTABLISHMENT,AMH - Hunts & Fens,Hunts Mental Health Team,Residential Care
Cambridgeshire County Council,27-Jul-20,51301409928,-893.49,CONQUEST CARE HOMES PETERBOROUGH,CARE ESTABLISHMENT,AMH - Hunts & Fens,Hunts Mental Health Team,Residential Care
Cambridgeshire County Council,08-Jul-20,51301399402,-892.86,ELTISLEY MANOR (PSYCARE LTD),CARE ESTABLISHMENT,AMH - Hunts & Fens,Hunts Mental Health Team,Residential Care
Cambridgeshire County Council,08-Jul-20,51301403139,-892.13,Redacted Personal Data,SERVICE USER,Physical Disablity - Cost of Care,Countywide PD Service - Care,Direct Payments
Cambridgeshire County Council,08-Jul-20,51301403139,-892.13,Redacted Personal Data,SERVICE USER,Physical Disablity - Cost of Care,Countywide PD Service - Care,Direct Payments
Cambridgeshire County Council,08-Jul-20,51301403139,-892.13,Redacted Personal Data,SERVICE USER,Physical Disablity - Cost of Care,Countywide PD Service - Care,Direct Payments
Cambridgeshire County Council,08-Jul-20,51301400905,-891.84,Potton House,COMPANY,OP - City & South Locality - Cost of Care,Older People - City & South - Care,Nursing Care
Cambridgeshire County Council,08-Jul-20,51301400905,-891.84,Potton House,COMPANY,OP - City & South Locality - Cost of Care,Older People - City & South - Care,Nursing Care
Cambridgeshire County Council,08-Jul-20,51301400905,-891.84,Potton House,COMPANY,OP - City & South Locality - Cost of Care,Older People - City & South - Care,Nursing Care
Cambridgeshire County Council,08-Jul-20,51301400905,-891.84,Potton House,COMPANY,OP - City & South Locality - Cost of Care,Older People - City & South - Care,Nursing Care
Cambridgeshire County Council,08-Jul-20,51301400905,-891.84,Potton House,COMPANY,OP - City & South Locality - Cost of Care,Older People - City & South - Care,Nursing Care
Cambridgeshire County Council,08-Jul-20,51301400905,-891.84,Potton House,COMPANY,OP - City & South Locality - Cost of Care,Older People - City & South - Care,Nursing Care
Cambridgeshire County Council,08-Jul-20,51301403496,-885.50,Redacted Personal Data,SERVICE USER,Physical Disablity - Cost of Care,Countywide PD Service - Care,Direct Payments
Cambridgeshire County Council,08-Jul-20,51301403496,-885.50,Redacted Personal Data,SERVICE USER,Physical Disablity - Cost of Care,Countywide PD Service - Care,Direct Payments
Cambridgeshire County Council,08-Jul-20,51301403496,-885.50,Redacted Personal Data,SERVICE USER,Physical Disablity - Cost of Care,Countywide PD Service - Care,Direct Payments
Cambridgeshire County Council,08-Jul-20,51301403763,-881.04,GLENHOLME HEALTHCARE LTD,CARE ESTABLISHMENT,LD - Fenland Locality - Cost of Care,LD - Fenland  - Care,Residential Care
Cambridgeshire County Council,08-Jul-20,51301403763,-881.04,GLENHOLME HEALTHCARE LTD,CARE ESTABLISHMENT,LD - Fenland Locality - Cost of Care,LD - Fenland  - Care,Residential Care
Cambridgeshire County Council,08-Jul-20,51301403763,-881.04,GLENHOLME HEALTHCARE LTD,CARE ESTABLISHMENT,LD - Fenland Locality - Cost of Care,LD - Fenland  - Care,Residential Care
Cambridgeshire County Council,08-Jul-20,51301403763,-881.04,GLENHOLME HEALTHCARE LTD,CARE ESTABLISHMENT,LD - Fenland Locality - Cost of Care,LD - Fenland  - Care,Residential Care
Cambridgeshire County Council,08-Jul-20,51301403763,-881.04,GLENHOLME HEALTHCARE LTD,CARE ESTABLISHMENT,LD - Fenland Locality - Cost of Care,LD - Fenland  - Care,Residential Care
Cambridgeshire County Council,08-Jul-20,51301403763,-881.04,GLENHOLME HEALTHCARE LTD,CARE ESTABLISHMENT,LD - Fenland Locality - Cost of Care,LD - Fenland  - Care,Residential Care
Cambridgeshire County Council,08-Jul-20,51301403763,-881.04,GLENHOLME HEALTHCARE LTD,CARE ESTABLISHMENT,LD - Fenland Locality - Cost of Care,LD - Fenland  - Care,Residential Care
Cambridgeshire County Council,08-Jul-20,51301403763,-881.04,GLENHOLME HEALTHCARE LTD,CARE ESTABLISHMENT,LD - Fenland Locality - Cost of Care,LD - Fenland  - Care,Residential Care
Cambridgeshire County Council,08-Jul-20,51301403763,-881.04,GLENHOLME HEALTHCARE LTD,CARE ESTABLISHMENT,LD - Fenland Locality - Cost of Care,LD - Fenland  - Care,Residential Care
Cambridgeshire County Council,08-Jul-20,51301403763,-881.04,GLENHOLME HEALTHCARE LTD,CARE ESTABLISHMENT,LD - Fenland Locality - Cost of Care,LD - Fenland  - Care,Residential Care
Cambridgeshire County Council,08-Jul-20,51301403763,-881.04,GLENHOLME HEALTHCARE LTD,CARE ESTABLISHMENT,LD - Fenland Locality - Cost of Care,LD - Fenland  - Care,Residential Care
Cambridgeshire County Council,08-Jul-20,51301403763,-881.04,GLENHOLME HEALTHCARE LTD,CARE ESTABLISHMENT,LD - Fenland Locality - Cost of Care,LD - Fenland  - Care,Residential Care
Cambridgeshire County Council,08-Jul-20,51301403763,-881.04,GLENHOLME HEALTHCARE LTD,CARE ESTABLISHMENT,LD - Fenland Locality - Cost of Care,LD - Fenland  - Care,Residential Care
Cambridgeshire County Council,08-Jul-20,51301403763,-881.04,GLENHOLME HEALTHCARE LTD,CARE ESTABLISHMENT,LD - Fenland Locality - Cost of Care,LD - Fenland  - Care,Residential Care
Cambridgeshire County Council,08-Jul-20,51301403246,-880.00,Redacted Personal Data,SERVICE USER,Physical Disablity - Cost of Care,Countywide PD Service - Care,Direct Payments
Cambridgeshire County Council,08-Jul-20,51301403246,-880.00,Redacted Personal Data,SERVICE USER,Physical Disablity - Cost of Care,Countywide PD Service - Care,Direct Payments
Cambridgeshire County Council,08-Jul-20,51301403246,-880.00,Redacted Personal Data,SERVICE USER,Physical Disablity - Cost of Care,Countywide PD Service - Care,Direct Payments
Cambridgeshire County Council,08-Jul-20,51301401880,-880.00,Redacted Personal Data,INDIVIDUAL,Physical Disablity - Cost of Care,Countywide PD Service - Care,Direct Payments
Cambridgeshire County Council,08-Jul-20,51301401880,-880.00,Redacted Personal Data,INDIVIDUAL,Physical Disablity - Cost of Care,Countywide PD Service - Care,Direct Payments
Cambridgeshire County Council,08-Jul-20,51301401880,-880.00,Redacted Personal Data,INDIVIDUAL,Physical Disablity - Cost of Care,Countywide PD Service - Care,Direct Payments
Cambridgeshire County Council,08-Jul-20,51301401919,-880.00,Redacted Personal Data,SERVICE USER,OP - City & South Locality - Cost of Care,Older People - City & South - Care,Direct Payments
Cambridgeshire County Council,08-Jul-20,51301401919,-880.00,Redacted Personal Data,SERVICE USER,OP - City & South Locality - Cost of Care,Older People - City & South - Care,Direct Payments
Cambridgeshire County Council,08-Jul-20,51301401919,-880.00,Redacted Personal Data,SERVICE USER,OP - City & South Locality - Cost of Care,Older People - City & South - Care,Direct Payments
Cambridgeshire County Council,08-Jul-20,51301403222,-879.26,Redacted Personal Data,SERVICE USER,LD - South Locality - Cost of Care,LD - South Cambs - Care,Direct Payments
Cambridgeshire County Council,08-Jul-20,51301402863,-878.15,THE AVENUES TRUST LTD,TRUST (OTHER),LD - South Locality - Cost of Care,LD - South Cambs - Care,Domiciliary Care
Cambridgeshire County Council,08-Jul-20,51301401441,-877.80,Redacted Personal Data,INDIVIDUAL,OP - City & South Locality - Cost of Care,Older People - City & South - Care,Direct Payments
Cambridgeshire County Council,08-Jul-20,51301401441,-877.80,Redacted Personal Data,INDIVIDUAL,OP - City & South Locality - Cost of Care,Older People - City & South - Care,Direct Payments
Cambridgeshire County Council,08-Jul-20,51301401441,-877.80,Redacted Personal Data,INDIVIDUAL,OP - City & South Locality - Cost of Care,Older People - City & South - Care,Direct Payments
Cambridgeshire County Council,08-Jul-20,51301400766,-873.09,AURORA ORCHARD MANOR,CARE ESTABLISHMENT,LD - Young Adults Team,LD - Young Adults - Care,Residential Care
Cambridgeshire County Council,08-Jul-20,51301403115,-867.06,Redacted Personal Data,SERVICE USER,LD - Hunts Locality - Cost of Care,LD - Huntingdonshire - Care,Direct Payments
Cambridgeshire County Council,08-Jul-20,51301400901,-866.64,HC-ONE,CARE ESTABLISHMENT,OPMH - Hunts & Fens,Older People Mental Health Fenland,Nursing Care
Cambridgeshire County Council,08-Jul-20,51301400901,-866.64,HC-ONE,CARE ESTABLISHMENT,OPMH - Hunts & Fens,Older People Mental Health Fenland,Nursing Care
Cambridgeshire County Council,08-Jul-20,51301400901,-866.64,HC-ONE,CARE ESTABLISHMENT,OPMH - Hunts & Fens,Older People Mental Health Fenland,Nursing Care
Cambridgeshire County Council,08-Jul-20,51301400901,-866.64,HC-ONE,CARE ESTABLISHMENT,OPMH - Hunts & Fens,Older People Mental Health Fenland,Nursing Care
Cambridgeshire County Council,08-Jul-20,51301400901,-866.64,HC-ONE,CARE ESTABLISHMENT,OPMH - Hunts & Fens,Older People Mental Health Fenland,Nursing Care
Cambridgeshire County Council,08-Jul-20,51301400901,-866.64,HC-ONE,CARE ESTABLISHMENT,OPMH - Hunts & Fens,Older People Mental Health Fenland,Nursing Care
Cambridgeshire County Council,08-Jul-20,51301401417,-864.00,Redacted Personal Data,INDIVIDUAL,Physical Disablity - Cost of Care,Countywide PD Service - Care,Direct Payments
Cambridgeshire County Council,08-Jul-20,51301401417,-864.00,Redacted Personal Data,INDIVIDUAL,Physical Disablity - Cost of Care,Countywide PD Service - Care,Direct Payments
Cambridgeshire County Council,08-Jul-20,51301401417,-864.00,Redacted Personal Data,INDIVIDUAL,Physical Disablity - Cost of Care,Countywide PD Service - Care,Direct Payments
Cambridgeshire County Council,08-Jul-20,51301403854,-857.14,WOODLANDS CARE CENTRE,CARE ESTABLISHMENT,OPMH - Under 65,Older People Mental Health - Under 65's,Residential Care
Cambridgeshire County Council,09-Jul-20,51301404676,-857.14,Redacted Personal Data,SERVICE USER,Physical Disablity - Cost of Care,Countywide PD Service - Care,Direct Payments
Cambridgeshire County Council,08-Jul-20,51301398790,-856.80,MEADOWS HOMECARE SERVICES,CARE ESTABLISHMENT,Physical Disablity - Cost of Care,Countywide PD Service - Care,Domiciliary Care
Cambridgeshire County Council,08-Jul-20,51301398833,-856.20,MEADOWS HOMECARE SERVICES,CARE ESTABLISHMENT,OP - Fenland Locality - Cost of Care,Older People - Fenland - Care,Homecare
Cambridgeshire County Council,08-Jul-20,51301398833,-856.20,MEADOWS HOMECARE SERVICES,CARE ESTABLISHMENT,OP - Fenland Locality - Cost of Care,Older People - Fenland - Care,Homecare
Cambridgeshire County Council,08-Jul-20,51301398833,-856.20,MEADOWS HOMECARE SERVICES,CARE ESTABLISHMENT,OP - Fenland Locality - Cost of Care,Older People - Fenland - Care,Homecare
Cambridgeshire County Council,08-Jul-20,51301398833,-856.20,MEADOWS HOMECARE SERVICES,CARE ESTABLISHMENT,OP - Fenland Locality - Cost of Care,Older People - Fenland - Care,Homecare
Cambridgeshire County Council,08-Jul-20,51301398825,-856.00,MEADOWS HOMECARE SERVICES,CARE ESTABLISHMENT,OP - East Cambs Locality - Cost of Care,East Cambs - O P Team - Care,Homecare
Cambridgeshire County Council,08-Jul-20,51301398825,-856.00,MEADOWS HOMECARE SERVICES,CARE ESTABLISHMENT,OP - East Cambs Locality - Cost of Care,East Cambs - O P Team - Care,Homecare
Cambridgeshire County Council,08-Jul-20,51301398825,-856.00,MEADOWS HOMECARE SERVICES,CARE ESTABLISHMENT,OP - East Cambs Locality - Cost of Care,East Cambs - O P Team - Care,Homecare
Cambridgeshire County Council,08-Jul-20,51301398825,-856.00,MEADOWS HOMECARE SERVICES,CARE ESTABLISHMENT,OP - East Cambs Locality - Cost of Care,East Cambs - O P Team - Care,Homecare
Cambridgeshire County Council,08-Jul-20,51301398825,-856.00,MEADOWS HOMECARE SERVICES,CARE ESTABLISHMENT,OP - East Cambs Locality - Cost of Care,East Cambs - O P Team - Care,Homecare
Cambridgeshire County Council,08-Jul-20,51301398825,-856.00,MEADOWS HOMECARE SERVICES,CARE ESTABLISHMENT,OP - East Cambs Locality - Cost of Care,East Cambs - O P Team - Care,Homecare
Cambridgeshire County Council,08-Jul-20,51301398825,-856.00,MEADOWS HOMECARE SERVICES,CARE ESTABLISHMENT,OP - East Cambs Locality - Cost of Care,East Cambs - O P Team - Care,Homecare
Cambridgeshire County Council,08-Jul-20,51301403324,-855.25,Redacted Personal Data,SERVICE USER,LD - South Locality - Cost of Care,LD - South Cambs - Care,Direct Payments
Cambridgeshire County Council,08-Jul-20,51301403634,-850.23,THE CAMBRIDGE HOUSING SOCIETY LTD,CARE ESTABLISHMENT,OP - City & South Locality - Cost of Care,Older People - City & South - Care,Residential Care
Cambridgeshire County Council,08-Jul-20,51301399442,-850.00,BROWN'S FIELD HOUSE (ABBEYFIELD SOCIETY),CARE ESTABLISHMENT,OP - City & South Locality - Cost of Care,Older People - City & South - Care,Residential Care
Cambridgeshire County Council,08-Jul-20,51301399442,-850.00,BROWN'S FIELD HOUSE (ABBEYFIELD SOCIETY),CARE ESTABLISHMENT,OP - City & South Locality - Cost of Care,Older People - City & South - Care,Residential Care
Cambridgeshire County Council,08-Jul-20,51301399442,-850.00,BROWN'S FIELD HOUSE (ABBEYFIELD SOCIETY),CARE ESTABLISHMENT,OP - City & South Locality - Cost of Care,Older People - City & South - Care,Residential Care
Cambridgeshire County Council,08-Jul-20,51301399442,-850.00,BROWN'S FIELD HOUSE (ABBEYFIELD SOCIETY),CARE ESTABLISHMENT,OP - City & South Locality - Cost of Care,Older People - City & South - Care,Residential Care
Cambridgeshire County Council,08-Jul-20,51301399442,-850.00,BROWN'S FIELD HOUSE (ABBEYFIELD SOCIETY),CARE ESTABLISHMENT,OP - City & South Locality - Cost of Care,Older People - City & South - Care,Residential Care
Cambridgeshire County Council,08-Jul-20,51301402038,-850.00,Redacted Personal Data,INDIVIDUAL,OP - City & South Locality - Cost of Care,Older People - City & South - Care,Direct Payments
Cambridgeshire County Council,08-Jul-20,51301402038,-850.00,Redacted Personal Data,INDIVIDUAL,OP - City & South Locality - Cost of Care,Older People - City & South - Care,Direct Payments
Cambridgeshire County Council,08-Jul-20,51301402038,-850.00,Redacted Personal Data,INDIVIDUAL,OP - City & South Locality - Cost of Care,Older People - City & South - Care,Direct Payments
Cambridgeshire County Council,08-Jul-20,51301402038,-850.00,Redacted Personal Data,INDIVIDUAL,OP - City & South Locality - Cost of Care,Older People - City & South - Care,Direct Payments
Cambridgeshire County Council,08-Jul-20,51301402038,-850.00,Redacted Personal Data,INDIVIDUAL,OP - City & South Locality - Cost of Care,Older People - City & South - Care,Direct Payments
Cambridgeshire County Council,08-Jul-20,51301402038,-850.00,Redacted Personal Data,INDIVIDUAL,OP - City & South Locality - Cost of Care,Older People - City & South - Care,Direct Payments
Cambridgeshire County Council,08-Jul-20,51301402038,-850.00,Redacted Personal Data,INDIVIDUAL,OP - City & South Locality - Cost of Care,Older People - City & South - Care,Direct Payments
Cambridgeshire County Council,08-Jul-20,51301400356,-850.00,KINGFISHER HOUSE,CARE ESTABLISHMENT,Physical Disablity - Cost of Care,Countywide PD Service - Care,Nursing Care
Cambridgeshire County Council,08-Jul-20,51301400356,-850.00,KINGFISHER HOUSE,CARE ESTABLISHMENT,Physical Disablity - Cost of Care,Countywide PD Service - Care,Nursing Care
